Transaction Reference,Supplier Name,Line Value,Department,Category,Transaction Date,Year/Period,SME,Costs split between Babergh and Mid Suffolk District Councils Y/N,% of transaction apportioned to Mid Suffolk District Council
10053462,AARON SERVICES LTD,"27,286.09",Planned Maint - Heating,Property Servicing,29-Dec-22,2223/10,SME,N,
20028241,AARON SERVICES LTD,"24,831.20",Current Liabilities,Cert IBS Creditors Holding ac,29-Dec-22,2223/10,SME,N,
20028244,AARON SERVICES LTD,"1,202.47",Current Liabilities,Cert IBS Creditors Holding ac,12-Jan-23,2223/10,SME,N,
20028257,AARON SERVICES LTD,"36,989.08",Current Liabilities,Cert IBS Creditors Holding ac,19-Jan-23,2223/10,SME,N,
20028262,AARON SERVICES LTD,"20,738.20",Current Liabilities,Cert IBS Creditors Holding ac,26-Jan-23,2223/10,SME,N,
10053696,AE WHITE SURFACING,"1,075.00",Roads and Paths,Improvements,06-Jan-23,2223/10,SME,N,
10053714,AE WHITE SURFACING,"7,100.00",Sheltered Accommodation,Repairs,10-Jan-22,2223/10,SME,N,
10053889,AE WHITE SURFACING,"1,575.00",Hadleigh Pool,Repairs,12-Jan-23,2223/10,SME,N,
10053922,AE WHITE SURFACING,"4,745.00",Estate Imps/parking areas,Improvements,13-Jan-23,2223/10,SME,N,
10053710,ANGLIAN WATER,"2,297.36",Sheltered Accommodation,Water Rates - Metered,02-Jan-23,2223/10,LGE,N,
10053975,ANGLIAN WATER,252.32,Temporary Accommodation,Water Rates - Other Charges,16-Jan-23,2223/10,LGE,N,
10053535,BOTTOMLINE TECHNOLOGIES,701.21,ICT,Software Licnse (Line of Bus) ,31-Dec-22,2223/10,LGE,Y,50%
10053501,BOWER FULLER,443.13,Tenancy Services,Fire Prevention,30-Dec-22,2223/10,SME,N,
10053502,BOWER FULLER,361.92,Sheltered Accommodation,Fire Prevention,30-Dec-22,2223/10,SME,N,
10053506,BOWER FULLER,"1,763.82",Sheltered Accommodation,Fire Prevention,30-Dec-22,2223/10,SME,N,
10053562,BUTTON & TURNER LTD,330.65,Street & Major Road Cleansing,Plant & Vehicle - Other costs,14-Dec-22,2223/10,SME,N,
10053563,BUTTON & TURNER LTD,314.94,Street & Major Road Cleansing,Plant & Vehicle - Other costs,12-Dec-22,2223/10,SME,N,
10053564,BUTTON & TURNER LTD,318.27,Street & Major Road Cleansing,Plant & Vehicle - Other costs,17-Dec-22,2223/10,SME,N,
10053565,BUTTON & TURNER LTD,392.02,Open Spaces,Plant & Vehicle - Other costs,23-Dec-22,2223/10,SME,N,
10053566,CAPITA BUSINESS SERVICES LTD,"15,771.97",Open Housing Joint Project,Improvements,05-Jan-23,2223/10,LGE,Y,50%
10053691,AQUASAMPLERS,743,Water Sampling,Sampling & Analysis,30-Nov-22,2223/10,SME,N,
10053459,CHEQUERS HOTEL LTD,"1,470.00",Homelessness Private Sector,B&B Costs,05-Dec-22,2223/10,SME,N,
10053460,CHEQUERS HOTEL LTD,"1,400.00",Homelessness Private Sector,B&B Costs,05-Dec-22,2223/10,SME,N,
10053461,CHEQUERS HOTEL LTD,300,Homelessness Private Sector,B&B Costs,05-Dec-22,2223/10,SME,N,
10053547,CHEQUERS HOTEL LTD,"2,450.00",Homelessness Private Sector,B&B Costs,05-Dec-22,2223/10,SME,N,
10053548,CHEQUERS HOTEL LTD,420,Homelessness Private Sector,B&B Costs,05-Dec-22,2223/10,SME,N,
10053549,CHEQUERS HOTEL LTD,960,Homelessness Private Sector,B&B Costs,05-Dec-22,2223/10,SME,N,
10053389,CHIPSIDE LTD,383.58,C Parks General,Contracted Services,31-Oct-22,2223/10,SME,N,
10053390,CHIPSIDE LTD,408.83,C Parks General,Contracted Services,30-Nov-22,2223/10,SME,N,
10053604,CHIPSIDE LTD,366.42,C Parks General,Contracted Services,31-Dec-22,2223/10,SME,N,
10053967,CLARKE FENCING LTD,256,Street & Major Road Cleansing,Plant & Vehicle - Other costs,19-Jan-23,2223/10,SME,N,
10053258,D W ADAMS LTD,422,Disabled Facilities (Revenue),Repairs,17-Dec-22,2223/10,SME,N,
10053639,D W ADAMS LTD,"4,769.00",Council House Adaptions,Improvements,06-Jan-23,2223/10,SME,N,
10053780,D W ADAMS LTD,"1,673.00",Building Services,Repairs,13-Jan-23,2223/10,SME,N,
10053812,D W ADAMS LTD,"10,973.00",Council House Adaptions,Improvements,16-Jan-23,2223/10,SME,N,
10053972,D W ADAMS LTD,"4,686.00",Council House Adaptions,Improvements,20-Jan-23,2223/10,SME,N,
10053846,DMA HEALTH AND SAFETY LTD,420,"Schoolfield, Glemsford",Prof & Consultancy Fees,17-Jan-23,2223/10,SME,N,
10053848,DMA HEALTH AND SAFETY LTD,300,Planned Maint - Ext Painting,Prof & Consultancy Fees,17-Jan-23,2223/10,SME,N,
10053641,ENER-G SWITCH2 LTD,229.8,Temporary Accommodation,Repairs,06-Jan-23,2223/10,SME,N,
10053641,ENER-G SWITCH2 LTD,184.53,Temporary Accommodation,Repairs,06-Jan-23,2223/10,SME,N,
10053656,ENGLISH SECURITY,991.91,Sheltered Accommodation,Repairs,09-Jan-23,2223/10,SME,N,
10053793,ENGLISH SECURITY,262.5,Temporary Accommodation,Fire Prevention,19-Dec-22,2223/10,SME,N,
10053508,FELLBRIDGE BUILDING SERVICES,"2,970.84",Building Services,Repairs,03-Jan-23,2223/10,SME,N,
10053754,FELLBRIDGE BUILDING SERVICES,781.5,Major Imps,Repairs,12-Jan-23,2223/10,SME,N,
10053463,FORE-MOST GARAGE DOORS LTD,393,Building Services,Repairs,31-Dec-22,2223/10,SME,N,
10053463,FORE-MOST GARAGE DOORS LTD,140,"Garages, Forecourts & Stores",Repairs,31-Dec-22,2223/10,SME,N,
10053463,FORE-MOST GARAGE DOORS LTD,70,Building Services,Repairs,31-Dec-22,2223/10,SME,N,
10053883,GB ADAPTIONS LTD,"5,619.00",Mand Disabled Facilities Grant,Grants,18-Jan-23,2223/10,SME,N,
10053594,G4S CASH SOLUTIONS LTD,332.7,C Parks General,Audit Fees,31-Dec-22,2223/10,LGE,N,
10053524,HAYES DIGGINS BUILDERS,"1,275.00",Kingfisher Leisure Centre,Repairs,04-Jan-23,2223/10,SME,N,
10053593,HOUSEMARK LTD,"6,335.00",Capita System Support,Subscriptions,05-Jan-23,2223/10,SME,N,
10053612,KEN GRIME & SON LTD,"1,024.42",Building Services,Repairs,06-Jan-23,2223/10,SME,N,
10053858,KENDA-CLEAN,25,Chilton Depot,Window Cleaning,17-Jan-23,2223/10,SME,Y,50%
10053858,KENDA-CLEAN,"1,420.00",Sheltered Accommodation,Window Cleaning,17-Jan-23,2223/10,SME,N,
10053858,KENDA-CLEAN,15,Temporary Accommodation,Window Cleaning,17-Jan-23,2223/10,SME,N,
10053858,KENDA-CLEAN,227,Tenancy Services,Window Cleaning,17-Jan-23,2223/10,SME,N,
10053746,LOCAL GOVERNMENT INFORMATION UNIT,"2,428.00",Management Team,Subscriptions,03-Jan-23,2223/10,LGE,N,
10053781,M & H CIVIL ENGINEERING LTD,911.7,Building Services,Repairs,11-Jan-23,2223/10,SME,N,
10053475,MATERIAL CHANGE COMPOSTING LTD,666.6,Open Spaces,Waste Disposal,31-Dec-22,2223/10,LGE,N,
10053611,MB TREES (EAST ANGLIA) LTD,"4,760.00",Amenity Areas,Tree felling/maintenance,06-Jan-23,2223/10,SME,N,
10053742,MB TREES (EAST ANGLIA) LTD,"3,840.00",Open Spaces,Tree felling/maintenance,11-Jan-23,2223/10,SME,N,
10053901,MB TREES (EAST ANGLIA) LTD,940,Public Tree Programme,Tree felling/maintenance,18-Jan-23,2223/10,SME,N,
10053915,MB TREES (EAST ANGLIA) LTD,"3,850.00",Public Tree Programme,Tree felling/maintenance,18-Jan-23,2223/10,SME,N,
10053357,MERCURY BUILDING SERVICES LTD,260,Hadleigh Pool,Repairs,21-Dec-22,2223/10,SME,N,
10053357,MERCURY BUILDING SERVICES LTD,228,Hadleigh Pool,Repairs,21-Dec-22,2223/10,SME,N,
10053358,MERCURY BUILDING SERVICES LTD,"19,480.00",Kingfisher Leisure Centre,Repairs,21-Dec-22,2223/10,SME,N,
10053599,MERCURY BUILDING SERVICES LTD,"1,145.00",Kingfisher Leisure Centre,Repairs,06-Jan-23,2223/10,SME,N,
10053599,MERCURY BUILDING SERVICES LTD,"6,328.00",Kingfisher Leisure Centre,Repairs,06-Jan-23,2223/10,SME,N,
10053301,MIXBROW LTD,"14,007.00",Council House Adaptions,Improvements,20-Dec-22,2223/10,SME,N,
10053303,MIXBROW LTD,"6,847.00",Council House Adaptions,Improvements,20-Dec-22,2223/10,SME,N,
10053394,MIXBROW LTD,"8,030.00",Council House Adaptions,Improvements,22-Dec-22,2223/10,SME,N,
10053884,MIXBROW LTD,"2,721.00",Council House Adaptions,Improvements,17-Jan-23,2223/10,SME,N,
10053827,MONTHIND CLEAN LTD,665.83,Jnt Waste Contract,General Cleaning,15-Jan-23,2223/10,LGE,Y,50%
10053156,ORWELL HOUSING ASSOCIATION LTD,575.8,Sheltered Accommodation,Contracted Services,12-Dec-22,2223/10,LGE,N,
10053285,REID PLUMBING & HEATING CONTRACTORS LTD,"10,292.27",Central Heating,Major Contracts,19-Dec-22,2223/10,SME,N,
10053841,REID PLUMBING & HEATING CONTRACTORS LTD,"26,958.55",Central Heating,Major Contracts,17-Jan-23,2223/10,SME,N,
10052944,SANDY LANE NURSERY,"3,668.85",Open Spaces,Horticultural Purchases,21-Nov-22,2223/10,SME,N,
10054077,SANDY LANE NURSERY,588.5,Open Spaces,Horticultural Purchases,23-Jan-23,2223/10,SME,Y,50%
30169502,SEAGER HOME SOLUTIONS,"26,707.51",Kitchens/Bathrooms,Major Contracts,20-Jan-23,2223/10,SME,N,
10053719,SOLACE GROUP LTD,"1,080.00",Management Team,Subscriptions,22-Dec-22,2223/10,SME,Y,50%
10054014,SUDBURY OFFICE SUPPLIES,325.74,C Parks General,"Equipment, Tools & Materials",16-Jan-23,2223/10,SME,N,
10054131,SUFFOLK TREE SERVICES LTD,350,Amenity Areas,Tree felling/maintenance,26-Jan-23,2223/10,SME,N,
10053235,SUREFIX,"1,320.00",Major Imps,Repairs,22-Nov-22,2223/10,SME,N,
10053274,SUREFIX,"1,250.00",Major Imps,Repairs,19-Dec-22,2223/10,SME,N,
10053275,SUREFIX,900,Major Imps,Repairs,28-Nov-22,2223/10,SME,N,
10053387,SUREFIX,"1,800.00",Window & Door Rplcmts,Repairs,22-Dec-22,2223/10,SME,N,
10053596,SUREFIX,"3,400.00",Window & Door Rplcmts,Repairs,03-Jan-23,2223/10,SME,N,
10053598,SUREFIX,"3,038.84",Window & Door Rplcmts,Repairs,06-Jan-23,2223/10,SME,N,
10053971,SUREFIX,850,Window & Door Rplcmts,Repairs,19-Jan-23,2223/10,SME,N,
10053378,TDT ENTERPRISES LTD,665,Wenham Depot,Repairs,22-Dec-22,2223/10,SME,Y,50%
10053782,THERMATECH,475,Tenancy Services,Fire Prevention,12-Jan-23,2223/10,SME,N,
10053709,TRUCKEAST LTD,310,Street & Major Road Cleansing,Plant & Vehicle - Other costs,30-Dec-22,2223/10,LGE,N,
10053234,WINDIMAN LTD,"3,849.00",Window & Door Rplcmts,Improvements,16-Dec-22,2223/10,SME,N,
10053510,WINDIMAN LTD,"1,185.00",Major Imps,Improvements,31-Dec-22,2223/10,SME,N,
10053511,WINDIMAN LTD,"1,200.00",Window & Door Rplcmts,Improvements,31-Dec-22,2223/10,SME,N,
10053559,WINDIMAN LTD,"1,145.00",Window & Door Rplcmts,Improvements,31-Dec-22,2223/10,SME,N,
10053801,WINDIMAN LTD,"2,580.00",Window & Door Rplcmts,Improvements,13-Jan-23,2223/10,SME,N,
10053803,WINDIMAN LTD,"2,865.00",Building Services,Repairs,13-Jan-23,2223/10,SME,N,
10053816,WINDIMAN LTD,980,Building Services,Repairs,13-Jan-23,2223/10,SME,N,
10053845,WINDIMAN LTD,"1,230.00",Window & Door Rplcmts,Improvements,17-Jan-23,2223/10,SME,N,
10053476,WORKWEAR (EAST ANGLIA) LTD,574.15,Open Spaces,Protective clothing,05-Dec-22,2223/10,SME,N,
10053477,WORKWEAR (EAST ANGLIA) LTD,295.54,Open Spaces,Protective clothing,05-Dec-22,2223/10,SME,N,
10053478,WORKWEAR (EAST ANGLIA) LTD,575.72,Street & Major Road Cleansing,Protective clothing,05-Dec-22,2223/10,SME,N,
10053479,WORKWEAR (EAST ANGLIA) LTD,319.2,Street & Major Road Cleansing,Protective clothing,05-Dec-22,2223/10,SME,N,
10053480,WORKWEAR (EAST ANGLIA) LTD,322.39,Street & Major Road Cleansing,Protective clothing,05-Dec-22,2223/10,SME,N,
10053482,WORKWEAR (EAST ANGLIA) LTD,317.6,Street & Major Road Cleansing,Protective clothing,05-Dec-22,2223/10,SME,N,
10053484,WORKWEAR (EAST ANGLIA) LTD,253.38,Open Spaces,Protective clothing,05-Dec-22,2223/10,SME,N,
10053484,WORKWEAR (EAST ANGLIA) LTD,253.4,Street & Major Road Cleansing,Protective clothing,05-Dec-22,2223/10,SME,N,
10053485,WORKWEAR (EAST ANGLIA) LTD,364.62,Open Spaces,Protective clothing,05-Dec-22,2223/10,SME,N,
10053486,WORKWEAR (EAST ANGLIA) LTD,290.32,Open Spaces,Protective clothing,05-Dec-22,2223/10,SME,N,
10053540,WORKWEAR (EAST ANGLIA) LTD,405.23,Open Spaces,Protective clothing,05-Dec-22,2223/10,SME,N,
10053998,NEWAUTO LTD T/A MOGO UK,"4,543.90",Taxi & Private Hire Licensing,"Equipment, Tools & Materials",22-Jan-23,2223/10,SME,N,
10053446,ESSEX COUNTY COUNCIL,"3,006.00",Pre App Charging,Landscape Consultancy,30-Dec-22,2223/10,LGE,N,
10053447,ESSEX COUNTY COUNCIL,"4,195.15",Devt Management -Applications,Landscape Consultancy,30-Dec-22,2223/10,LGE,N,
10053567,CHUBB FIRE & SECURITY LTD,"6,202.76",Tenancy Services,Community Alarm Costs,13-Dec-22,2223/10,LGE,N,
10053568,CHUBB FIRE & SECURITY LTD,"6,202.76",Tenancy Services,Community Alarm Costs,11-Nov-22,2223/10,LGE,N,
10054035,IDOX SOFTWARE LTD,"25,200.00",ICT - CapsUniform,Prof & Consultancy Fees,23-Jan-23,2223/10,SME,Y,50%
10053424,IPSWICH BOROUGH COUNCIL,"11,887.76",Shared Revenues Partnership,Contributions to other Bodies,14-Dec-22,2223/10,LGE,N,
10053431,EDF ENERGY,231.04,Belle Vue House,Electricity,01-Dec-22,2223/10,LGE,N,
10053431,EDF ENERGY,731.44,C Parks General,Electricity,01-Dec-22,2223/10,LGE,N,
10053431,EDF ENERGY,"2,349.83",Chilton Depot,Electricity,01-Dec-22,2223/10,LGE,Y,50%
10053431,EDF ENERGY,848.37,Climate Change and Sustainabil,Electricity,01-Dec-22,2223/10,LGE,N,
10053431,EDF ENERGY,218.17,Community Safety-CCTV,Electricity,01-Dec-22,2223/10,LGE,N,
10053431,EDF ENERGY,31.29,Hadleigh Market,Electricity,01-Dec-22,2223/10,LGE,N,
10053431,EDF ENERGY,10.81,Headquarters General,Electricity,01-Dec-22,2223/10,LGE,N,
10053431,EDF ENERGY,"1,943.35",HQ Energy,Electricity,01-Dec-22,2223/10,LGE,N,
10053431,EDF ENERGY,"17,749.44",Kingfisher Leisure Centre,Electricity,01-Dec-22,2223/10,LGE,N,
10053431,EDF ENERGY,478.46,Public Conveniences,Electricity,01-Dec-22,2223/10,LGE,N,
10053431,EDF ENERGY,126.91,Sewage Treatment Works,Electricity,01-Dec-22,2223/10,LGE,N,
10053431,EDF ENERGY,"21,074.46",Sheltered Accommodation,Electricity,01-Dec-22,2223/10,LGE,N,
10053431,EDF ENERGY,128.05,SP Comm Alarms (Non-SH),Electricity,01-Dec-22,2223/10,LGE,N,
10053431,EDF ENERGY,479.03,Temporary Accommodation,Electricity,01-Dec-22,2223/10,LGE,N,
10053431,EDF ENERGY,"10,316.41",Tenancy Services,Electricity,01-Dec-22,2223/10,LGE,N,
10053431,EDF ENERGY,461.74,Wenham Depot,Electricity,01-Dec-22,2223/10,LGE,Y,50%
20028266,EDF ENERGY,223.87,Belle Vue House,Electricity,03-Jan-23,2223/10,LGE,N,
20028266,EDF ENERGY,729.97,C Parks General,Electricity,03-Jan-23,2223/10,LGE,N,
20028266,EDF ENERGY,97.79,Calais St Depot,Electricity,03-Jan-23,2223/10,LGE,N,
20028266,EDF ENERGY,917.89,Climate Change and Sustainabil,Electricity,03-Jan-23,2223/10,LGE,N,
20028266,EDF ENERGY,300.13,Community Safety-CCTV,Electricity,03-Jan-23,2223/10,LGE,N,
20028266,EDF ENERGY,32.54,Hadleigh Market,Electricity,03-Jan-23,2223/10,LGE,N,
20028266,EDF ENERGY,"44,742.16",Hadleigh Pool,Electricity,03-Jan-23,2223/10,LGE,N,
20028266,EDF ENERGY,11.16,Headquarters General,Electricity,03-Jan-23,2223/10,LGE,N,
20028266,EDF ENERGY,"1,739.11",HQ Energy,Electricity,03-Jan-23,2223/10,LGE,N,
20028266,EDF ENERGY,"20,050.19",Kingfisher Leisure Centre,Electricity,03-Jan-23,2223/10,LGE,N,
20028266,EDF ENERGY,"1,165.34",Public Conveniences,Electricity,03-Jan-23,2223/10,LGE,N,
20028266,EDF ENERGY,"1,772.05",Sewage Treatment Works,Electricity,03-Jan-23,2223/10,LGE,N,
20028266,EDF ENERGY,"21,665.94",Sheltered Accommodation,Electricity,03-Jan-23,2223/10,LGE,N,
20028266,EDF ENERGY,"1,079.43",SP Comm Alarms (Non-SH),Electricity,03-Jan-23,2223/10,LGE,N,
20028266,EDF ENERGY,"1,867.66",Temporary Accommodation,Electricity,03-Jan-23,2223/10,LGE,N,
20028266,EDF ENERGY,"13,702.63",Tenancy Services,Electricity,03-Jan-23,2223/10,LGE,N,
20028266,EDF ENERGY,583.95,Wenham Depot,Electricity,03-Jan-23,2223/10,LGE,Y,50%
20028256,GPC BARCLAYS,"5,602.40",Current Assets,Barclaycard Control,16-Jan-23,2223/10,LGE,Y,18%
20028260,COMPUTERSHARE ,413,Current Assets,ChildCare Vouchers-Control,23-Jan-23,2223/10,LGE,N,
20028264,TALK TALK BUSINESS,689.4,ICT,Telephone Costs,10-Jan-23,2223/10,LGE,N,
20028249,BURES ST MARY PARISH COUNCIL,370.5,Street & Major Road Cleansing,Contributions & Donations,13-Jan-23,2223/10,SME,N,
20028246,CAPEL ST MARY PARISH COUNCIL,593.3,Bring Sites,Contributions & Donations,12-Jan-23,2223/10,SME,N,
10053951,COCKFIELD PARISH COUNCIL,"2,000.00",Grants & Contrbns,Contributions & Donations,20-Jan-23,2223/10,SME,N,
20028250,EAST BERGHOLT PARISH COUNCIL,"1,235.00",Street & Major Road Cleansing,Contributions & Donations,13-Jan-23,2223/10,SME,N,
10053608,EDWARDSTONE MILLENIUM GREEN TRUST,350,Grants & Contrbns,Contributions & Donations,06-Jan-23,2223/10,SME,N,
10053822,GREAT CORNARD PARISH COUNCIL,"6,000.00",Grants & Contrbns,Contributions & Donations,16-Jan-23,2223/10,SME,N,
20028251,HOLBROOK PARISH COUNCIL,267.9,Street & Major Road Cleansing,Contributions & Donations,13-Jan-23,2223/10,SME,N,
10053667,LAVENHAM PARISH COUNCIL,391.61,CIL Funded REFCUS,Grants,10-Jan-23,2223/10,SME,N,
20028253,LAVENHAM PARISH COUNCIL,"2,593.50",Street & Major Road Cleansing,Contributions & Donations,13-Jan-23,2223/10,SME,N,
10053655,LITTLE CORNARD PARISH COUNCIL,500,Grants & Contrbns,Contributions & Donations,09-Jan-23,2223/10,SME,N,
20028254,LONG MELFORD PARISH COUNCIL,"1,111.50",Street & Major Road Cleansing,Contributions & Donations,13-Jan-23,2223/10,SME,N,
10053826,NEDGING WITH NAUGHTON PARISH COUNCIL,450,Grants & Contrbns,Contributions & Donations,16-Jan-23,2223/10,SME,N,
20028252,STRATFORD ST MARY PARISH COUNCIL,308.75,Street & Major Road Cleansing,Contributions & Donations,13-Jan-23,2223/10,SME,N,
10053817,SUDBURY TOWN COUNCIL,285.35,Sheltered Accommodation,General Cleaning,16-Jan-23,2223/10,SME,N,
10053833,SUDBURY TOWN COUNCIL,"19,594.04",Comm Devt Grants,Grants,16-Jan-23,2223/10,SME,N,
10053880,SUDBURY TOWN COUNCIL,"19,594.04",Comm Devt Grants,Grants,16-Jan-23,2223/10,SME,N,
10052821,SUFFOLK COUNTY COUNCIL,"5,041.00",Pre App Charging,Highways  Consultancy,01-Dec-22,2223/10,LGE,N,
10053222,SUFFOLK COUNTY COUNCIL,"1,230.00",Land Chgs,Contracted Services,15-Dec-22,2223/10,LGE,N,
10053758,SUFFOLK COUNTY COUNCIL,735,Land Chgs,Contracted Services,11-Jan-23,2223/10,LGE,N,
10053783,SUFFOLK COUNTY COUNCIL,981.72,Info Mgmt,Contracted Services,12-Jan-23,2223/10,LGE,Y,50%
10053893,SUFFOLK COUNTY COUNCIL,"2,117.33",Garden Waste,Garden Waste Disposal,17-Jan-23,2223/10,LGE,N,
10053948,SUFFOLK COUNTY COUNCIL,"13,659.14",Garden Waste,Garden Waste Disposal,19-Jan-23,2223/10,LGE,N,
10053950,SUFFOLK COUNTY COUNCIL,"2,878.50",Taxi & Private Hire Licensing,Prof & Consultancy Fees,19-Jan-23,2223/10,LGE,N,
10054181,ROYAL MAIL,"1,135.06",Electoral Registration,Postage,30-Jan-23,2223/10,LGE,Y,100%
10053410,REED SPECIALIST RECRUITMENT LTD,766.64,Financial Servs,Agency Staff,16-Dec-22,2223/10,LGE,Y,50%
10053449,REED SPECIALIST RECRUITMENT LTD,766.64,Financial Servs,Agency Staff,23-Dec-22,2223/10,LGE,Y,50%
10053643,REED SPECIALIST RECRUITMENT LTD,459.98,Financial Servs,Agency Staff,30-Dec-22,2223/10,LGE,Y,50%
10053805,REED SPECIALIST RECRUITMENT LTD,613.31,Financial Servs,Agency Staff,06-Jan-23,2223/10,LGE,Y,50%
10053991,REED SPECIALIST RECRUITMENT LTD,766.64,Financial Servs,Agency Staff,13-Jan-23,2223/10,LGE,Y,50%
10053409,UNIT 4 BUSINESS SOFTWARE LIMITED,"29,890.96",ICT - Finance System,Contracted Services,23-Dec-22,2223/10,LGE,Y,50%
10053413,TELEFONICA UK LIMITED - O2,334.94,ICT,Telephone Costs,27-Dec-22,2223/10,LGE,Y,50%
10054145,TELEFONICA UK LIMITED - O2,332.5,ICT,Telephone Costs,27-Jan-23,2223/10,LGE,Y,50%
10053607,ZURICH MUNICIPAL,318,Open Spaces,Miscellaneous Insurance Excess,31-Dec-22,2223/10,LGE,N,
10053779,EAST OF ENGLAND CO-OPERATIVE SOCIETY LTD,"1,495.00",Public Health Funerals,Contracted Services,27-Dec-22,2223/10,LGE,N,
10053491,LEX AUTOLEASE,365.95,Building Services,Lease Cars - Payment,27-Dec-22,2223/10,SME,Y,50%
10053492,LEX AUTOLEASE,365.95,Building Services,Lease Cars - Payment,27-Dec-22,2223/10,SME,Y,50%
10053493,LEX AUTOLEASE,323.02,Building Services,Lease Cars - Payment,28-Dec-22,2223/10,SME,Y,50%
10053859,LEX AUTOLEASE,304.25,Building Services,Lease Cars - Payment,29-Dec-22,2223/10,SME,Y,50%
10053860,LEX AUTOLEASE,376.73,Building Services,Lease Cars - Payment,30-Dec-22,2223/10,SME,Y,50%
10053861,LEX AUTOLEASE,318.97,Building Services,Lease Cars - Payment,30-Dec-22,2223/10,SME,Y,50%
10053862,LEX AUTOLEASE,332.77,Building Services,Lease Cars - Payment,30-Dec-22,2223/10,SME,Y,50%
10053863,LEX AUTOLEASE,380.78,Building Services,Lease Cars - Payment,30-Dec-22,2223/10,SME,Y,50%
10054151,LEX AUTOLEASE,328.72,Building Services,Lease Cars - Payment,09-Jan-23,2223/10,SME,Y,50%
10054152,LEX AUTOLEASE,311.34,Building Services,Lease Cars - Payment,09-Jan-23,2223/10,SME,Y,50%
10054153,LEX AUTOLEASE,336.11,Building Services,Lease Cars - Payment,09-Jan-23,2223/10,SME,Y,50%
10054154,LEX AUTOLEASE,331.38,Building Services,Lease Cars - Payment,10-Jan-23,2223/10,SME,Y,50%
10054155,LEX AUTOLEASE,311.43,Building Services,Lease Cars - Payment,10-Jan-23,2223/10,SME,Y,50%
10054156,LEX AUTOLEASE,324.97,Building Services,Lease Cars - Payment,10-Jan-23,2223/10,SME,Y,50%
10054157,LEX AUTOLEASE,346.16,Building Services,Lease Cars - Payment,10-Jan-23,2223/10,SME,Y,50%
10054158,LEX AUTOLEASE,355.2,Building Services,Lease Cars - Payment,11-Jan-23,2223/10,SME,Y,50%
10053799,CIVICA UK LIMITED,"15,250.00",Governance,Desktop Software,06-Jan-23,2223/10,LGE,Y,50%
10054097,HADLEIGH UNITED REFORMED CHURCH,"5,750.00",Temporary Accommodation,Rent Payable,25-Jan-23,2223/10,SME,N,
10053836,CYCLESCHEME LTD,531.63,Current Assets,Cycling Scheme,14-Jan-23,2223/10,SME,N,
10054031,SUFFOLK AGRICULTURAL ASSOCIATION,314.17,Guaranteed Rent Scheme,Misc Premises Costs,10-Jan-23,2223/10,SME,Y,50%
10054032,SUFFOLK AGRICULTURAL ASSOCIATION,318,Guaranteed Rent Scheme,Misc Premises Costs,10-Jan-23,2223/10,SME,Y,50%
10054036,PATHFINDER DEVELOPMENT CONSULTANTS LTD,"17,535.84","Norman Way, Lavenham S106",Prof & Consultancy Fees,23-Jan-23,2223/10,SME,N,
10053176,WHYBROW PROPERTY SOLUTIONS LTD,"4,213.62",Building Services,Repairs,15-Dec-22,2223/10,SME,N,
10053178,WHYBROW PROPERTY SOLUTIONS LTD,175,Building Services,Repairs,15-Dec-22,2223/10,SME,N,
10053178,WHYBROW PROPERTY SOLUTIONS LTD,"1,621.89",Building Services,Repairs,15-Dec-22,2223/10,SME,N,
10053232,WHYBROW PROPERTY SOLUTIONS LTD,"1,438.25",Building Services,Repairs,15-Dec-22,2223/10,SME,N,
10053242,WHYBROW PROPERTY SOLUTIONS LTD,330,Council House Adaptions,Improvements,14-Dec-22,2223/10,SME,N,
10053243,WHYBROW PROPERTY SOLUTIONS LTD,473.6,Building Services,Repairs,14-Dec-22,2223/10,SME,N,
10053244,WHYBROW PROPERTY SOLUTIONS LTD,675.5,Building Services,Repairs,14-Dec-22,2223/10,SME,N,
10053247,WHYBROW PROPERTY SOLUTIONS LTD,469.26,Building Services,Repairs,14-Dec-22,2223/10,SME,N,
10053247,WHYBROW PROPERTY SOLUTIONS LTD,469.26,Building Services,Repairs,14-Dec-22,2223/10,SME,N,
10053250,WHYBROW PROPERTY SOLUTIONS LTD,428.65,Building Services,Repairs,14-Dec-22,2223/10,SME,N,
10053254,WHYBROW PROPERTY SOLUTIONS LTD,575,Building Services,Repairs,14-Dec-22,2223/10,SME,N,
10053255,WHYBROW PROPERTY SOLUTIONS LTD,355,Building Services,Repairs,14-Dec-22,2223/10,SME,N,
10053256,WHYBROW PROPERTY SOLUTIONS LTD,437,Building Services,Repairs,14-Dec-22,2223/10,SME,N,
10053283,WHYBROW PROPERTY SOLUTIONS LTD,"3,967.36",Building Services,Repairs,19-Dec-22,2223/10,SME,N,
10053298,WHYBROW PROPERTY SOLUTIONS LTD,257.24,Building Services,Repairs,14-Dec-22,2223/10,SME,N,
10053299,WHYBROW PROPERTY SOLUTIONS LTD,"4,886.24",Building Services,Repairs,15-Dec-22,2223/10,SME,N,
10053321,WHYBROW PROPERTY SOLUTIONS LTD,"6,611.50",Council House Adaptions,Improvements,20-Dec-22,2223/10,SME,N,
10053322,WHYBROW PROPERTY SOLUTIONS LTD,"5,047.17",Building Services,Repairs,20-Dec-22,2223/10,SME,N,
10053383,WHYBROW PROPERTY SOLUTIONS LTD,"2,616.82",Building Services,Repairs,22-Dec-22,2223/10,SME,N,
10053383,WHYBROW PROPERTY SOLUTIONS LTD,"2,616.83",Building Services,Repairs,22-Dec-22,2223/10,SME,N,
10053395,WHYBROW PROPERTY SOLUTIONS LTD,"1,693.72",Building Services,Repairs,22-Dec-22,2223/10,SME,N,
10053645,WHYBROW PROPERTY SOLUTIONS LTD,"1,769.00",Kitchens/Bathrooms,Improvements,13-Dec-22,2223/10,SME,N,
10053689,WHYBROW PROPERTY SOLUTIONS LTD,324,Building Services,Repairs,22-Feb-22,2223/10,SME,N,
10053335,L A C CLEANING CONTRACTORS LIMITED,696,Wenham Depot TDP,General Cleaning,19-Dec-22,2223/10,SME,Y,50%
10053834,L A C CLEANING CONTRACTORS LIMITED,"2,770.50",Building Services,Repairs,17-Jan-23,2223/10,SME,N,
10053919,L A C CLEANING CONTRACTORS LIMITED,"1,565.50",Voids Maintenance,Repairs,19-Jan-23,2223/10,SME,N,
10054063,L A C CLEANING CONTRACTORS LIMITED,498.5,Other Temp Accommodation,General Cleaning,25-Jan-23,2223/10,SME,N,
10053546,ARMSTRONG YORK ASBESTOS ENVIRONMENTAL,"8,503.49",Asbestos Survey & Reinspection,Prof & Consultancy Fees,30-Dec-22,2223/10,SME,N,
10053324,DMP TRAINING (UK),384,Street & Major Road Cleansing,Training,21-Nov-22,2223/10,SME,N,
10053701,STOWE VETERINARY GROUP,356.15,Animal Welfare Licensing,Prof & Consultancy Fees,10-Jan-23,2223/10,SME,N,
10053890,COMMUNITY ACTION SUFFOLK,"1,427.05",Community Housing Fund,Grants,18-Jan-23,2223/10,SME,N,
10053660,CHILDCARE VOUCHER LTD EDENRED (UK GROUP),"1,356.75",Health & Safety,Misc Employee Costs,09-Jan-23,2223/10,SME,Y,50%
10053745,CARTER JONAS LLP,"1,950.00",Major Imps,Prof & Consultancy Fees,27-Oct-22,2223/10,LGE,N,
10053778,GAINSBOROUGH HOUSE SOCIETY,"152,504.86",CIL Funded REFCUS,Grants,13-Jan-23,2223/10,SME,N,
10053818,OPUS PEOPLE SOLUTIONS LTD,157.9,Health & Safety,Agency Staff,12-Jan-23,2223/10,SME,N,
10053818,OPUS PEOPLE SOLUTIONS LTD,215.76,Devt Management -Applications,Agency Staff,12-Jan-23,2223/10,SME,N,
10054043,OPUS PEOPLE SOLUTIONS LTD,197.78,Health & Safety,Agency Staff,19-Jan-23,2223/10,SME,N,
10054043,OPUS PEOPLE SOLUTIONS LTD,322.66,Homeless Prevention Fund,Agency Staff,19-Jan-23,2223/10,SME,N,
10054043,OPUS PEOPLE SOLUTIONS LTD,270.99,Devt Management -Applications,Agency Staff,19-Jan-23,2223/10,SME,N,
10053550,ROSE BUILDERS LTD,"61,015.06",Structural Works,Major Contracts,30-Nov-22,2223/10,SME,N,
10053999,ECOSYSTEMS TREE & GROUNDS CARE,"2,550.00",Public Tree Programme,Tree felling/maintenance,22-Jan-22,2223/10,SME,N,
10054001,ECOSYSTEMS TREE & GROUNDS CARE,350,Amenity Areas,Tree felling/maintenance,22-Jan-22,2223/10,SME,N,
10054002,ECOSYSTEMS TREE & GROUNDS CARE,650,Public Tree Programme,Tree felling/maintenance,22-Jan-22,2223/10,SME,N,
10054003,ECOSYSTEMS TREE & GROUNDS CARE,760,Public Tree Programme,Tree felling/maintenance,22-Jan-22,2223/10,SME,N,
10054004,ECOSYSTEMS TREE & GROUNDS CARE,575,Sheltered Accommodation,Tree felling/maintenance,22-Jan-22,2223/10,SME,N,
10054137,ECOSYSTEMS TREE & GROUNDS CARE,400,Public Tree Programme,Tree felling/maintenance,26-Jan-22,2223/10,SME,N,
10054138,ECOSYSTEMS TREE & GROUNDS CARE,600,Amenity Areas,Tree felling/maintenance,26-Jan-22,2223/10,SME,N,
10054140,ECOSYSTEMS TREE & GROUNDS CARE,"1,100.00",Public Tree Programme,Tree felling/maintenance,26-Jan-23,2223/10,SME,N,
10053437,VERTAS GROUP LTD,285.83,Health & Safety,"Equipment, Tools & Materials",30-Dec-22,2223/10,SME,Y,50%
10053408,COLLINS SKIP HIRE,550,Building Services,Waste Disposal,23-Dec-22,2223/10,SME,Y,50%
10053811,COLLINS SKIP HIRE,825,Building Services,Waste Disposal,16-Jan-23,2223/10,SME,Y,50%
10053872,POSTURITE LTD,"1,579.95",Health & Safety,Furniture,17-Jan-23,2223/10,SME,Y,50%
10053920,POSTURITE LTD,781.66,Health & Safety,Furniture,18-Jan-23,2223/10,SME,Y,50%
10053992,POSTURITE LTD,405,Health & Safety,Furniture,20-Jan-23,2223/10,SME,Y,50%
10053715,FORESOLUTIONS LTD,390.39,Street & Major Road Cleansing,Plant & Vehicle - Other costs,10-Jan-23,2223/10,SME,N,
10053534,PENNA PLC,"9,900.00",Management Team,Agency Staff,04-Jan-23,2223/10,SME,Y,50%
10053316,G H BULLARD & ASSOCIATES LLP,"1,395.00",Major Imps,Prof & Consultancy Fees,20-Dec-22,2223/10,SME,N,
20028259,FROST AND PARTNERS,"2,046.00",Homes for Ukraine,Rent Payable,20-Jan-23,2223/10,SME,N,
10053551,SUFFOLK MARKET EVENTS,956.4,BRRP-MarketTownVision&Invest,Prof & Consultancy Fees,05-Jan-23,2223/10,SME,Y,40%
10053756,ADVANCE SUPPLIES,331.12,Public Conveniences,Cleaning Materials,11-Jan-23,2223/10,SME,N,
10053412,HAYS SPECIALIST RECRUITMENT LTD,"1,120.00",Financial Servs,Agency Staff,26-Dec-22,2223/10,LGE,Y,50%
10053412,HAYS SPECIALIST RECRUITMENT LTD,"1,680.00",HRA Accountancy,Agency Staff,26-Dec-22,2223/10,LGE,Y,50%
10053517,HAYS SPECIALIST RECRUITMENT LTD,"1,122.58",Assets & Development,Agency Staff,03-Jan-23,2223/10,LGE,Y,50%
10053517,HAYS SPECIALIST RECRUITMENT LTD,280.65,HRA Strategic Property,Agency Staff,03-Jan-23,2223/10,LGE,Y,50%
10053695,HAYS SPECIALIST RECRUITMENT LTD,"1,085.16",Assets & Development,Agency Staff,09-Jan-23,2223/10,LGE,Y,50%
10053695,HAYS SPECIALIST RECRUITMENT LTD,271.3,HRA Strategic Property,Agency Staff,09-Jan-23,2223/10,LGE,Y,50%
10053837,HAYS SPECIALIST RECRUITMENT LTD,"1,403.24",Assets & Development,Agency Staff,16-Jan-23,2223/10,LGE,Y,50%
10053837,HAYS SPECIALIST RECRUITMENT LTD,350.8,HRA Strategic Property,Agency Staff,16-Jan-23,2223/10,LGE,Y,50%
10054040,HAYS SPECIALIST RECRUITMENT LTD,"1,566.94",Assets & Development,Agency Staff,23-Jan-23,2223/10,LGE,Y,50%
10054040,HAYS SPECIALIST RECRUITMENT LTD,391.74,HRA Strategic Property,Agency Staff,23-Jan-23,2223/10,LGE,Y,50%
10054144,HAYS SPECIALIST RECRUITMENT LTD,"1,038.96",Commissioning & Procurement,Agency Staff,26-Jan-23,2223/10,LGE,Y,50%
10053495,RICHARD UTTING ASSOCIATES LLP,"1,889.18",Waldingfield Rd S106 Andersons,Prof & Consultancy Fees,31-Dec-22,2223/10,SME,N,
10053509,RICHARD UTTING ASSOCIATES LLP,"2,890.00",Bourne Hill Wherstead S106 acq,Prof & Consultancy Fees,31-Dec-22,2223/10,SME,N,
10052971,PUBLIC SEWER SERVICES,"15,572.85",Major Imps,Improvements,07-Dec-22,2223/10,SME,N,
10053616,PUBLIC SEWER SERVICES,300,Kitchens/Bathrooms,Repairs,31-Dec-22,2223/10,SME,N,
10053627,PUBLIC SEWER SERVICES,300,Building Services,Repairs,31-Dec-22,2223/10,SME,N,
10053631,PUBLIC SEWER SERVICES,"3,526.58",Major Imps,Improvements,31-Dec-22,2223/10,SME,N,
10053800,PUBLIC SEWER SERVICES,"1,759.85",Unadopted Drains & Sewers,Repairs,31-Dec-22,2223/10,SME,N,
10053444,PRIVATE LANDLORD,680,Guaranteed Rent Scheme,Rent Payable,03-Jan-23,2223/10,ST,N,
10053581,THE STOWMARKET GLASS COMPANY LTD,302.54,Window & Door Rplcmts,Repairs,09-Dec-22,2223/10,SME,N,
10053582,THE STOWMARKET GLASS COMPANY LTD,432.1,Window & Door Rplcmts,Repairs,15-Dec-22,2223/10,SME,N,
10053590,THE STOWMARKET GLASS COMPANY LTD,296.4,Building Services,Repairs,16-Dec-22,2223/10,SME,N,
10053732,ASPECT CONTRACTS LTD,"10,405.00",Asbestos,Improvements,10-Jan-23,2223/10,LGE,N,
10054030,ASPECT CONTRACTS LTD,"6,539.00",Asbestos,Improvements,08-Dec-22,2223/10,LGE,N,
10053697,SUPERSTRUCTURES LTD,750,Roads and Paths,Prof & Consultancy Fees,20-Dec-22,2223/10,SME,N,
10053698,SUPERSTRUCTURES LTD,300,Structural Works,Prof & Consultancy Fees,20-Dec-22,2223/10,SME,N,
10053698,SUPERSTRUCTURES LTD,100,Structural Works,Prof & Consultancy Fees,20-Dec-22,2223/10,SME,N,
20028240,RIX PETROLEUM (EAST ANGLIA) LTD,687.3,Open Spaces,Plant & Vehicle Fuel,02-Jan-23,2223/10,SME,Y,50%
20028240,RIX PETROLEUM (EAST ANGLIA) LTD,387.31,Wenham Depot,Heating Oil,02-Jan-23,2223/10,SME,Y,50%
20028240,RIX PETROLEUM (EAST ANGLIA) LTD,"2,325.00",Tenancy Services,Heating Oil,02-Jan-23,2223/10,SME,N,
10053353,NORTHUMBRIAN WATER LTD,69.51,Chilton Depot,Legionella Testing,21-Dec-22,2223/10,LGE,Y,50%
10053353,NORTHUMBRIAN WATER LTD,37.7,HQ Energy,Legionella Testing,21-Dec-22,2223/10,LGE,N,
10053353,NORTHUMBRIAN WATER LTD,293.68,Sheltered Accommodation,Legionella Testing,21-Dec-22,2223/10,LGE,N,
10053353,NORTHUMBRIAN WATER LTD,101.37,Temporary Accommodation,Legionella Testing,21-Dec-22,2223/10,LGE,N,
10053353,NORTHUMBRIAN WATER LTD,254.87,Tenancy Services,Legionella Testing,21-Dec-22,2223/10,LGE,N,
10053353,NORTHUMBRIAN WATER LTD,31.86,Wenham Depot,Legionella Testing,21-Dec-22,2223/10,LGE,Y,50%
10053703,STORETEC SERVICES LTD,540.68,ICT,"Equipment, Tools & Materials",31-Dec-22,2223/10,SME,Y,50%
10053481,AIRMAX REMOTE LTD,437.88,Building Services,Plant & Vehicle - Other costs,31-Dec-22,2223/10,SME,Y,50%
10053465,DOCUSIGN INC,"11,396.00",Tenancy Services,Software Licnse (Line of Bus) ,02-Nov-22,2223/10,SME,Y,50%
10053404,GRAVITAS RECRUITMENT GROUP LTD,"2,000.00",ICT,Agency Staff,23-Dec-22,2223/10,LGE,Y,50%
10053521,GRAVITAS RECRUITMENT GROUP LTD,"1,500.00",ICT,Agency Staff,04-Jan-23,2223/10,LGE,Y,50%
10053707,GRAVITAS RECRUITMENT GROUP LTD,"2,000.00",ICT,Agency Staff,10-Jan-23,2223/10,LGE,Y,50%
10053844,GRAVITAS RECRUITMENT GROUP LTD,"2,000.00",ICT,Agency Staff,17-Jan-23,2223/10,LGE,Y,50%
10054041,GRAVITAS RECRUITMENT GROUP LTD,"2,000.00",ICT,Agency Staff,24-Jan-23,2223/10,LGE,Y,50%
10053554,JOHN FORD GROUP LTD,"5,500.00",Mand Disabled Facilities Grant,Grants,05-Jan-23,2223/10,SME,N,
10053748,JOHN FORD GROUP LTD,"7,487.00",Mand Disabled Facilities Grant,Grants,12-Jan-23,2223/10,SME,N,
10054050,JOHN FORD GROUP LTD,"15,204.71",Mand Disabled Facilities Grant,Grants,24-Jan-23,2223/10,SME,N,
10054094,JOHN FORD GROUP LTD,"7,398.00",Mand Disabled Facilities Grant,Grants,25-Jan-23,2223/10,SME,N,
10053878,RESIDENTIALLY CHARTERED SURVEYORS,375,Tenancy Services,Prof & Consultancy Fees,14-Dec-22,2223/10,SME,N,
10053923,RESIDENTIALLY CHARTERED SURVEYORS,375,Other Temp Accommodation,Misc Supplies & Services Costs,19-Jan-23,2223/10,SME,N,
10054091,RESIDENTIALLY CHARTERED SURVEYORS,650,"Uplands, Sudbury",Prof & Consultancy Fees,25-Jan-23,2223/10,SME,N,
10053375,TOP FLOORS (EAST ANGLIA) LTD,"1,604.59",Other Temp Accommodation,"Equipment, Tools & Materials",21-Dec-22,2223/10,SME,N,
10054048,TOP FLOORS (EAST ANGLIA) LTD,"1,887.57",Other Temp Accommodation,"Equipment, Tools & Materials",18-Jan-23,2223/10,SME,N,
10054049,TOP FLOORS (EAST ANGLIA) LTD,"1,684.37",Other Temp Accommodation,"Equipment, Tools & Materials",18-Jan-23,2223/10,SME,N,
10053434,SUDBURYS,825,Guaranteed Rent Scheme,Rent Payable,03-Jan-23,2223/10,SME,N,
10053995,SUDBURYS,440,Guaranteed Rent Scheme,Rent Payable,23-Jan-23,2223/10,SME,N,
10053448,WILLIAM H BROWN ESTATE AGENTS - SUDBURY,925,Guaranteed Rent Scheme,Rent Payable,03-Jan-23,2223/10,SME,N,
10053654,WILLIAM H BROWN ESTATE AGENTS - SUDBURY,725,Guaranteed Rent Scheme,Rent Payable,09-Jan-23,2223/10,SME,N,
10053659,ABBEYCROFT LEISURE,"17,762.50",Hadleigh Pool,Major Contracts,09-Jan-23,2223/10,LGE,N,
10053659,ABBEYCROFT LEISURE,"8,047.50",New Hadl Pl & Leisure Centre,Major Contracts,09-Jan-23,2223/10,LGE,N,
10053659,ABBEYCROFT LEISURE,"34,925.00",Kingfisher Leisure Centre,Major Contracts,09-Jan-23,2223/10,LGE,N,
10054042,BELLWAY HOMES LIMITED (ESSEX DIVISION),"97,513.62",Bourne Hill Wherstead S106 acq,Prof & Consultancy Fees,17-Jan-23,2223/10,LGE,N,
10053570,A C LEIGH (NORWICH) LTD,454.46,Building Services,"Equipment, Tools & Materials",15-Dec-22,2223/10,SME,N,
10053576,A C LEIGH (NORWICH) LTD,374.88,Building Services,"Equipment, Tools & Materials",20-Dec-22,2223/10,SME,N,
10053894,DAVID STAGG & ASSOCIATES LTD T/A DSA ELE,"3,928.66",Rewiring,Major Contracts,12-Jan-23,2223/10,SME,N,
10053820,3 POINT PROPERTY MANAGEMENT LTD,580,Guaranteed Rent Scheme,Rent Payable,16-Jan-23,2223/10,SME,N,
10053730,COOKS BLIND AND SHUTTERS LTD,362,Creeting Rd Depot,Repairs,31-Dec-22,2223/10,SME,Y,50%
10053730,COOKS BLIND AND SHUTTERS LTD,369,Wenham Depot,Repairs,31-Dec-22,2223/10,SME,Y,50%
10053730,COOKS BLIND AND SHUTTERS LTD,500,Chilton Depot,Repairs,31-Dec-22,2223/10,SME,Y,50%
10053536,WEST DEVON BOROUGH COUNCIL,"2,971.00",Management Team,Subscriptions,04-Jan-23,2223/10,LGE,N,
10054046,DG ACCESSIBLE DESIGNS,"4,496.59",Mand Disabled Facilities Grant,Grants,24-Jan-23,2223/10,SME,N,
10054057,STAGE EVENT SECURITY LTD,"1,530.00",Open Spaces,Contracted Services,10-Jan-23,2223/10,SME,N,
10053609,HUGHES TRADE,264.8,RoughSleepersInterventionYr3,Furniture,06-Jan-23,2223/10,LGE,N,
10053640,HUGHES TRADE,398.92,Temporary Accommodation,Furniture,06-Jan-23,2223/10,LGE,N,
10053737,HUGHES TRADE,537.98,Other Temp Accommodation,Furniture,11-Jan-23,2223/10,LGE,N,
10053843,HUGHES TRADE,"3,123.68",Sheltered Accommodation,"Equipment, Tools & Materials",17-Jan-23,2223/10,LGE,N,
10053924,HUGHES TRADE,284.26,RoughSleepersInterventionYr3,Furniture,19-Jan-23,2223/10,LGE,N,
10053436,APTL ENTERPRISES LTD,"5,506.67",PV Panels,Contracted Services,31-Dec-22,2223/10,SME,N,
10053749,APTL ENTERPRISES LTD,"4,360.00",PV Panels,Contracted Services,02-Dec-22,2223/10,SME,N,
10053750,APTL ENTERPRISES LTD,"8,465.00",PV Panels,Contracted Services,04-Nov-22,2223/10,SME,N,
10053864,ANGLIA COMMERCIAL FLOORING LTD,969.15,Building Services,Repairs,12-Jan-23,2223/10,SME,N,
10053867,ANGLIA COMMERCIAL FLOORING LTD,894.3,Building Services,Repairs,17-Jan-23,2223/10,SME,N,
10053868,ANGLIA COMMERCIAL FLOORING LTD,580.28,Building Services,Repairs,17-Jan-23,2223/10,SME,N,
10053870,ANGLIA COMMERCIAL FLOORING LTD,264.55,Building Services,Repairs,17-Jan-23,2223/10,SME,N,
10053933,ANGLIA COMMERCIAL FLOORING LTD,784.74,Voids Maintenance,Repairs,12-Jan-23,2223/10,SME,N,
10053934,ANGLIA COMMERCIAL FLOORING LTD,376.68,Voids Maintenance,Repairs,12-Jan-23,2223/10,SME,N,
10053935,ANGLIA COMMERCIAL FLOORING LTD,674.88,Voids Maintenance,Repairs,12-Jan-23,2223/10,SME,N,
20028265,ANGLIAN WATER BUS (NAT) LTD T/A WAVE,142.09,C Parks General,Water Rates - Metered,12-Jan-23,2223/10,LGE,N,
20028265,ANGLIAN WATER BUS (NAT) LTD T/A WAVE,529.03,Chilton Depot,Water Rates - Metered,12-Jan-23,2223/10,LGE,Y,50%
20028265,ANGLIAN WATER BUS (NAT) LTD T/A WAVE,4.1,Friars Meadow Sudb,Water Rates - Metered,12-Jan-23,2223/10,LGE,N,
20028265,ANGLIAN WATER BUS (NAT) LTD T/A WAVE,61.16,General Rechargeable Works,Misc Supplies & Services Costs,12-Jan-23,2223/10,LGE,N,
20028265,ANGLIAN WATER BUS (NAT) LTD T/A WAVE,166.53,HQ Energy,Water Rates - Metered,12-Jan-23,2223/10,LGE,N,
20028265,ANGLIAN WATER BUS (NAT) LTD T/A WAVE,12.82,Public Conveniences,Water Rates - Metered,12-Jan-23,2223/10,LGE,N,
20028265,ANGLIAN WATER BUS (NAT) LTD T/A WAVE,"2,289.25",Sheltered Accommodation,Water Rates - Metered,12-Jan-23,2223/10,LGE,N,
20028265,ANGLIAN WATER BUS (NAT) LTD T/A WAVE,"-2,632.75",Temporary Accommodation,Water Rates - Metered,12-Jan-23,2223/10,LGE,N,
20028265,ANGLIAN WATER BUS (NAT) LTD T/A WAVE,163.96,Tenancy Services,Water Rates - Metered,12-Jan-23,2223/10,LGE,N,
10053529,STUDLEY CAPITAL LIMITED,"1,425.00",Hamilton Road Regeneration,Prof & Consultancy Fees,04-Jan-23,2223/10,ST,N,
10053777,SKY HIGH ACCESS LTD,280,Open Spaces,"Equipment, Tools & Materials",30-Sep-22,2223/10,SME,N,
10053414,GREENACRE RECRUITMENT LTD,"3,276.70",Management Team,Agency Staff,27-Dec-22,2223/10,SME,Y,50%
10053523,GREENACRE RECRUITMENT LTD,"1,111.25",Management Team,Agency Staff,04-Jan-23,2223/10,SME,Y,50%
10053734,GREENACRE RECRUITMENT LTD,"2,857.50",Management Team,Agency Staff,11-Jan-23,2223/10,SME,Y,50%
10053886,GREENACRE RECRUITMENT LTD,"3,245.80",Management Team,Agency Staff,18-Jan-23,2223/10,SME,Y,50%
10054088,GREENACRE RECRUITMENT LTD,"3,651.25",Management Team,Agency Staff,25-Jan-23,2223/10,SME,Y,50%
10054149,BRANTHAM VILLAGE HALL,500,Grants & Contrbns,Contributions & Donations,27-Jan-23,2223/10,SME,N,
10053543,BABERGH GROWTH LTD,"1,594.39","Norman Way, Lavenham S106",Prof & Consultancy Fees,31-Dec-22,2223/10,SME,N,
10053518,TIAA LTD,"4,506.38",Internal Audit,Contracted Services,04-Jan-23,2223/10,SME,Y,50%
10054024,BYCHOICE LTD,950,Guaranteed Rent Scheme,Rent Payable,24-Jan-23,2223/10,SME,N,
10054126,PINSENT MASONS LLP,"1,256.00",Belle Vue Refurb/Rplcmt,Prof & Consultancy Fees,23-Jan-23,2223/10,LGE,N,
10054126,PINSENT MASONS LLP,350,Belle Vue Refurb/Rplcmt,BC and Planning Fees,23-Jan-23,2223/10,LGE,N,
10054025,REEFER PROPERTIES LTD,695,Guaranteed Rent Scheme,Rent Payable,24-Jan-23,2223/10,SME,N,
10054058,WADDINGTON BROWN LTD,883.13,Organisational Devt,Agency Staff,23-Jan-23,2223/10,SME,Y,50%
10054059,WADDINGTON BROWN LTD,942,Organisational Devt,Agency Staff,23-Jan-23,2223/10,SME,Y,50%
10053466,CS ESTATE & PROPERTY MANAGEMENT T/A,262.58,Tenancy Services,Other Service Charges,23-Dec-22,2223/10,SME,N,
10053467,CS ESTATE & PROPERTY MANAGEMENT T/A,262.58,Tenancy Services,Other Service Charges,23-Dec-22,2223/10,SME,N,
10053468,CS ESTATE & PROPERTY MANAGEMENT T/A,262.58,Tenancy Services,Other Service Charges,23-Dec-22,2223/10,SME,N,
10053469,CS ESTATE & PROPERTY MANAGEMENT T/A,262.58,Tenancy Services,Other Service Charges,23-Dec-22,2223/10,SME,N,
10053470,CS ESTATE & PROPERTY MANAGEMENT T/A,262.58,Tenancy Services,Other Service Charges,23-Dec-22,2223/10,SME,N,
10053471,CS ESTATE & PROPERTY MANAGEMENT T/A,312.01,Tenancy Services,Other Service Charges,23-Dec-22,2223/10,SME,N,
10053472,CS ESTATE & PROPERTY MANAGEMENT T/A,312.01,Tenancy Services,Other Service Charges,23-Dec-22,2223/10,SME,N,
10053473,CS ESTATE & PROPERTY MANAGEMENT T/A,262.58,Tenancy Services,Other Service Charges,23-Dec-22,2223/10,SME,N,
10053637,FRIENDS OF LONG MELFORD LIBRARY,"2,500.00",CCB Warm Spaces,"Equipment, Tools & Materials",06-Jan-23,2223/10,SME,N,
10053638,FRIENDS OF LONG MELFORD LIBRARY,"1,070.57",CCB Warm Spaces,"Equipment, Tools & Materials",06-Jan-23,2223/10,SME,N,
10053435,PRIVATE LANDLORD,515,Guaranteed Rent Scheme,Rent Payable,03-Jan-23,2223/10,ST,N,
10053663,PRIVATE LANDLORD,675,Guaranteed Rent Scheme,Rent Payable,09-Jan-23,2223/10,ST,N,
10054021,PRIVATE LANDLORD,700,Guaranteed Rent Scheme,Rent Payable,23-Jan-23,2223/10,ST,N,
10054027,PRIVATE LANDLORD,"1,198.00",Guaranteed Rent Scheme,Rent Payable,24-Jan-23,2223/10,ST,N,
10053830,BUCHER MUNICIPAL LTD,"4,766.15",Street & Major Road Cleansing,Plant & Vehicle - Other costs,16-Jan-23,2223/10,LGE,N,
10053974,PLUG-N-GO-LIMITED,412.47,Climate Change and Sustainabil,Contracted Services,12-Jan-23,2223/10,SME,N,
20028258,PAUL WRIGHT & CO,500,Guaranteed Rent Scheme,Rent Payable,19-Jan-23,2223/10,SME,N,
20028258,PAUL WRIGHT & CO,750,Guaranteed Rent Scheme,Misc Supplies & Services Costs,19-Jan-23,2223/10,SME,N,
10054029,PRIVATE LANDLORD,550,Guaranteed Rent Scheme,Rent Payable,24-Jan-23,2223/10,ST,N,
10054133,CONSTABLE MEMORIAL HALL EAST BERGHOLT,"1,493.10",Grants & Contrbns,Grants,26-Jan-23,2223/10,SME,N,
10053442,PRIVATE LANDLORD,490,Guaranteed Rent Scheme,Rent Payable,03-Jan-23,2223/10,ST,N,
10053665,PRIVATE LANDLORD,"1,320.00",Guaranteed Rent Scheme,Rent Payable,09-Jan-23,2223/10,ST,N,
10053753,SUFFOLK DOORS & WINDOWS LTD,500,Window & Door Rplcmts,Repairs,12-Jan-23,2223/10,SME,N,
10053651,PRIVATE LANDLORD,786.5,Guaranteed Rent Scheme,Rent Payable,09-Jan-23,2223/10,ST,N,
10053636,PRIVATE LANDLORD,650,Guaranteed Rent Scheme,Rent Payable,09-Jan-23,2223/10,ST,N,
10054056,CEL SOLICITORS,"3,488.02",Building Services,BMBS Repairs Work,24-Jan-23,2223/10,SME,N,
10053496,COUNTRYSTYLE RECYCLING LTD,"3,945.84",Bring Sites,Contracted Services,31-Dec-22,2223/10,SME,N,
10053538,ANDERSON DESIGN & BUILD LIMITED,"91,798.05",Waldingfield Rd S106 Andersons,Prof & Consultancy Fees,20-Dec-22,2223/10,SME,N,
10053355,ENVIROSIGNS LTD,"1,722.00",Public Sector Decarbonisation,Prof & Consultancy Fees,21-Dec-22,2223/10,SME,N,
10052650,TRUETECH INTEGRATED LTD,"3,704.21",Public Sector Decarbonisation,Prof & Consultancy Fees,27-Nov-22,2223/10,SME,N,
10053662,PRIVATE LANDLORD,800,Guaranteed Rent Scheme,Rent Payable,09-Jan-23,2223/10,ST,N,
10053666,PRIVATE LANDLORD,700,Guaranteed Rent Scheme,Rent Payable,09-Jan-23,2223/10,ST,N,
10053664,PRIVATE LANDLORD,800,Guaranteed Rent Scheme,Rent Payable,09-Jan-23,2223/10,ST,N,
10053344,ARAN INSULATION LTD,"3,169.71",Insulation Imps,Improvements,21-Dec-22,2223/10,SME,N,
10053345,ARAN INSULATION LTD,"2,719.71",Insulation Imps,Improvements,21-Dec-22,2223/10,SME,N,
10053346,ARAN INSULATION LTD,"3,797.84",Insulation Imps,Improvements,21-Dec-22,2223/10,SME,N,
10053347,ARAN INSULATION LTD,745,Insulation Imps,Improvements,21-Dec-22,2223/10,SME,N,
10053686,ARAN INSULATION LTD,"3,669.93",Insulation Imps,Improvements,09-Jan-23,2223/10,SME,N,
10053700,ARAN INSULATION LTD,905.68,Insulation Imps,Improvements,10-Jan-23,2223/10,SME,N,
10053738,ARAN INSULATION LTD,"3,911.48",Insulation Imps,Improvements,11-Jan-23,2223/10,SME,N,
10053813,ARAN INSULATION LTD,"4,200.79",Insulation Imps,Improvements,16-Jan-23,2223/10,SME,N,
10053814,ARAN INSULATION LTD,"5,811.42",Insulation Imps,Improvements,16-Jan-23,2223/10,SME,N,
10053443,PRIVATE LANDLORD,500,Guaranteed Rent Scheme,Rent Payable,03-Jan-23,2223/10,ST,N,
10053997,PRIVATE LANDLORD,580,Guaranteed Rent Scheme,Rent Payable,23-Jan-23,2223/10,ST,N,
10053445,PRIVATE LANDLORD,575,Guaranteed Rent Scheme,Rent Payable,03-Jan-23,2223/10,ST,N,
10054098,IPSERV LTD,"2,853.62",Communications,Commercial Printing,25-Jan-23,2223/10,SME,N,
10054023,DAVID BURR LETTINGS,750,Guaranteed Rent Scheme,Rent Payable,24-Jan-23,2223/10,SME,N,
10053024,FOURWAYS VEHICLE SOLUTIONS LTD,726,Open Spaces,"Equipment, Tools & Materials",10-Nov-22,2223/10,SME,N,
10053230,FOURWAYS VEHICLE SOLUTIONS LTD,726,Open Spaces,"Equipment, Tools & Materials",08-Dec-22,2223/10,SME,N,
10053652,PRIVATE LANDLORD,715,Guaranteed Rent Scheme,Rent Payable,09-Jan-23,2223/10,ST,N,
10053996,PRIVATE LANDLORD,500,Guaranteed Rent Scheme,Rent Payable,23-Jan-23,2223/10,ST,N,
10053545,KEYS REMOVALS LTD,469.43,Homeless Prevention Fund,Removal Expenses,23-Dec-22,2223/10,SME,N,
10053877,NAGELS UK LTD,"1,360.00",C Parks General,"Equipment, Tools & Materials",18-Jan-23,2223/10,SME,N,
10053809,PRIVATE LANDLORD,675,Guaranteed Rent Scheme,Rent Payable,16-Jan-23,2223/10,ST,N,
10053743,THE ORCHARD PLAYERS,375,Grants & Contrbns,Contributions & Donations,11-Jan-23,2223/10,SME,N,
10053825,PRIVATE LANDLORD,598.63,Guaranteed Rent Scheme,Rent Payable,16-Jan-23,2223/10,ST,N,
10054026,PRIVATE LANDLORD,650,Guaranteed Rent Scheme,Rent Payable,24-Jan-23,2223/10,ST,N,
10053528,BELL CONTAINER TRADING LTD,695.27,Public Realm TransitionProject,"Equipment, Tools & Materials",29-Dec-22,2223/10,SME,N,
10053687,MINI WASTE LTD,800,Open Spaces,Waste Disposal,23-Dec-22,2223/10,SME,N,
10053807,PRIVATE LANDLORD,695,Guaranteed Rent Scheme,Rent Payable,16-Jan-23,2223/10,ST,N,
10053405,PRIVATE LANDLORD,937.5,Homeless Prevention Fund,Misc Supplies & Services Costs,23-Dec-22,2223/10,ST,N,
10053392,EQUANS REGENERATION LTD,"14,546.47",Environmental Imps,Improvements,09-Dec-22,2223/10,LGE,N,
10053819,HAMILTON SMITH LETTINGS,670,Guaranteed Rent Scheme,Rent Payable,16-Jan-23,2223/10,SME,N,
10053650,JB PROPERTY SOLUTIONS (SUFFOLK) LTD T/A,455,Guaranteed Rent Scheme,Rent Payable,09-Jan-23,2223/10,SME,N,
10053824,KBM HOUSE SHARE & PROPERTY MANAGEMENT LT,550,Guaranteed Rent Scheme,Rent Payable,13-Jan-23,2223/10,SME,N,
10053635,PAY 360 LIMITED,"1,030.12",Bank Chgs,Bank Charges,06-Jan-23,2223/10,LGE,Y,50%
10053804,PAY 360 LIMITED,"4,207.13",Bank Chgs,Bank Charges,13-Jan-23,2223/10,LGE,N,
10053810,PRIVATE LANDLORD,550,Guaranteed Rent Scheme,Rent Payable,16-Jan-23,2223/10,ST,N,
10054006,PRIVATE LANDLORD,885,Guaranteed Rent Scheme,Rent Payable,23-Jan-23,2223/10,ST,N,
10053921,STEVEN JAMES ALLEN LTD,"1,900.00",Structural Works,Prof & Consultancy Fees,18-Jan-23,2223/10,SME,N,
10053653,PRIVATE LANDLORD,750,Guaranteed Rent Scheme,Rent Payable,09-Jan-23,2223/10,ST,N,
10054022,PRIVATE LANDLORD,575,Guaranteed Rent Scheme,Rent Payable,24-Jan-23,2223/10,ST,N,
10053954,EASTEC UK LTD,675,Open Spaces,Training,28-Nov-22,2223/10,SME,N,
10053955,EASTEC UK LTD,660,Open Spaces,Training,30-Nov-22,2223/10,SME,N,
10053956,EASTEC UK LTD,"1,525.00",Open Spaces,Training,28-Nov-22,2223/10,SME,N,
10053957,EASTEC UK LTD,660,Open Spaces,Training,28-Nov-22,2223/10,SME,N,
10053959,EASTEC UK LTD,700,Open Spaces,Training,28-Nov-22,2223/10,SME,N,
10053960,EASTEC UK LTD,"1,230.00",Open Spaces,Training,28-Nov-22,2223/10,SME,N,
10053961,EASTEC UK LTD,"1,025.00",Open Spaces,Training,28-Nov-22,2223/10,SME,N,
10053962,EASTEC UK LTD,700,Open Spaces,Training,28-Nov-22,2223/10,SME,N,
10053560,NEWSQUEST MEDIA GROUP,562.39,Devt Management -Applications,Advertising&mkting (non-staff),04-Jan-23,2223/10,LGE,N,
10053744,NEWSQUEST MEDIA GROUP,716.9,Devt Management -Applications,Advertising&mkting (non-staff),11-Jan-23,2223/10,LGE,N,
10053917,NEWSQUEST MEDIA GROUP,395.54,Devt Management -Applications,Advertising&mkting (non-staff),18-Jan-23,2223/10,LGE,N,
10054100,NEWSQUEST MEDIA GROUP,460,Belle Vue Refurb/Rplcmt,Prof & Consultancy Fees,24-Jan-23,2223/10,LGE,N,
10054101,NEWSQUEST MEDIA GROUP,716.9,Devt Management -Applications,Advertising&mkting (non-staff),25-Jan-23,2223/10,LGE,N,
10053647,INSIGHT TECHNOLOGY (SUFFOLK) LTD,201.1,Sheltered Accommodation,Fire Prevention,08-Jan-23,2223/10,SME,N,
10053647,INSIGHT TECHNOLOGY (SUFFOLK) LTD,86.2,Tenancy Services,Fire Prevention,08-Jan-23,2223/10,SME,N,
10053918,BELL DECORATING GROUP LTD,"5,950.78",Planned Maint - Ext Painting,Major Contracts,17-Jan-23,2223/10,LGE,N,
10053415,IMTECH INVIRON LIMITED,"30,461.56",Pld Maint/Enhncmts-Corp Bldgs,Improvements,28-Dec-22,2223/10,LGE,Y,50%
10053728,J COOK CARPENTRY LTD,770,Tenancy Services,Fire Prevention,11-Jan-23,2223/10,SME,N,
10053776,J COOK CARPENTRY LTD,300,Tenancy Services,Fire Prevention,13-Jan-23,2223/10,SME,N,
20028248,ORBIT HOUSING ASSOCIATION,"3,448.70",Homeless Prevention Fund,Misc Supplies & Services Costs,12-Jan-23,2223/10,LGE,N,
10053527,MARKS CONSULTING PARTNERS LIMTED,"3,060.00",Building Servs Tech Staff,Agency Staff,04-Jan-23,2223/10,SME,Y,50%
10053731,MARKS CONSULTING PARTNERS LIMTED,"1,360.00",Building Servs Tech Staff,Agency Staff,11-Jan-23,2223/10,SME,Y,50%
10053882,MARKS CONSULTING PARTNERS LIMTED,"1,700.00",Building Servs Tech Staff,Agency Staff,18-Jan-23,2223/10,SME,Y,50%
10054062,MARKS CONSULTING PARTNERS LIMTED,"1,700.00",Building Servs Tech Staff,Agency Staff,25-Jan-23,2223/10,SME,Y,50%
10053464,FAITHORN FARRELL TIMMS,"2,000.00",HRA Strategic Property,Contracted Services,22-Dec-22,2223/10,SME,Y,50%
10053716,QODA CONSULTING LTD,875,Major Imps,Prof & Consultancy Fees,25-Nov-22,2223/10,SME,N,
20028242,PRIVATE LANDLORD,575,Guaranteed Rent Scheme,Rent Payable,04-Jan-23,2223/10,ST,N,
20028242,PRIVATE LANDLORD,"1,500.00",Guaranteed Rent Scheme,Misc Supplies & Services Costs,04-Jan-23,2223/10,ST,N,
10053526,PRECISION RESOURCE GROUP LTD T/A PANORAM,"3,093.75",HRA Strategic Property,Agency Staff,04-Jan-23,2223/10,LGE,Y,50%
10053736,PRECISION RESOURCE GROUP LTD T/A PANORAM,"2,250.00",HRA Strategic Property,Agency Staff,11-Jan-23,2223/10,LGE,Y,50%
10053892,PRECISION RESOURCE GROUP LTD T/A PANORAM,"2,812.50",HRA Strategic Property,Agency Staff,18-Jan-23,2223/10,LGE,Y,50%
10054096,PRECISION RESOURCE GROUP LTD T/A PANORAM,"2,812.50",HRA Strategic Property,Agency Staff,25-Jan-23,2223/10,LGE,Y,50%
10053320,PILAT EUROPE LTD,"18,830.00",Organisational Devt,Contracted Services,20-Dec-22,2223/10,SME,Y,50%
10054007,PRIVATE LANDLORD,575,Guaranteed Rent Scheme,Rent Payable,23-Jan-23,2223/10,ST,N,
10054132,SUDBURY HOCKEY CLUB,"2,549.47",Grants & Contrbns,Grants,26-Jan-23,2223/10,SME,N,
10053150,CREATIVE VEHICLE WRAPPING LIMITED,"2,495.00",Rplcmt Ref Freighters-Jnt Schm,Plant & Vehicle - Purchase,13-Dec-22,2223/10,SME,N,
10053832,SUDBURY GYMNASTICS CLUB,"7,402.11",Grants & Contrbns,Grants,16-Jan-23,2223/10,SME,N,
10053455,HOME TO RENT LTD,975,Guaranteed Rent Scheme,Rent Payable,03-Jan-23,2223/10,SME,N,
10053456,PRIVATE LANDLORD,"1,000.00",Guaranteed Rent Scheme,Rent Payable,03-Jan-23,2223/10,ST,N,
10053291,MEET UP WEDNESDAY,500,Grants & Contrbns,Contributions & Donations,20-Dec-22,2223/10,SME,N,
10053372,TODD STORAGE,372,Homeless Prevention Fund,Removal Expenses,01-Oct-22,2223/10,SME,N,
10053373,TODD STORAGE,360,Homeless Prevention Fund,Removal Expenses,01-Nov-22,2223/10,SME,N,
10053374,TODD STORAGE,372,Homeless Prevention Fund,Removal Expenses,01-Dec-22,2223/10,SME,N,
10053603,TODD STORAGE,372,Homeless Prevention Fund,Removal Expenses,03-Jan-23,2223/10,SME,N,
10053733,TODD STORAGE,888.19,Homeless Prevention Fund,Removal Expenses,13-Sep-22,2223/10,SME,N,
10053417,HADLEIGH COMMUNITY SUPPORT,500,Grants & Contrbns,Contributions & Donations,28-Dec-22,2223/10,SME,N,
10053418,HADLEIGH COMMUNITY SUPPORT,431,Grants & Contrbns,Contributions & Donations,28-Dec-22,2223/10,SME,N,
10053525,MACKMAN LTD,"2,500.00",Business Innovation Grants,Grants,04-Jan-23,2223/10,SME,N,
10053393,PRIVATE LANDLORD,460,Homeless Prevention Fund,Misc Supplies & Services Costs,19-Dec-22,2223/10,ST,N,
10053690,BUILDING COST INFORMATION SERVICE LTD,"2,400.00",Open Spaces,Subscriptions,09-Jan-23,2223/10,SME,Y,50%
10053520,LONG MELFORD C OF E PRIMARY SCHOOL,"1,000.00",Grants & Contrbns,Contributions & Donations,04-Jan-23,2223/10,SME,N,
10053522,ACTON PRIMARY SCHOOL,"1,000.00",Grants & Contrbns,Contributions & Donations,04-Jan-23,2223/10,SME,N,
10053558,H E MAYFIELD ENTERPRISES LTD,350,Homeless Prevention Fund,Misc Supplies & Services Costs,05-Jan-23,2223/10,SME,N,
10053829,H E MAYFIELD ENTERPRISES LTD,350,Homeless Prevention Fund,Misc Supplies & Services Costs,16-Jan-23,2223/10,SME,N,
10053539,A & D PLUMBING SERVICES LTD,"5,529.00",Mand Disabled Facilities Grant,Grants,05-Jan-23,2223/10,SME,N,
10053769,MORE IQ LIMITED,"2,400.00",Building Services,Training,11-Jan-23,2223/10,SME,Y,50%
10053759,HIREBASE (HUWS GRAY LTD),565.1,Open Spaces,Grounds & Site Maintenance,10-Oct-22,2223/10,LGE,N,
10053881,HIREBASE (HUWS GRAY LTD),324.3,Assets & Development,Repairs,31-Oct-22,2223/10,LGE,N,
10053897,HIREBASE (HUWS GRAY LTD),296.1,Assets & Development,Repairs,31-Dec-22,2223/10,LGE,N,
10053898,HIREBASE (HUWS GRAY LTD),310.2,Assets & Development,Repairs,30-Sep-22,2223/10,LGE,N,
10053899,HIREBASE (HUWS GRAY LTD),310.2,Assets & Development,Repairs,30-Nov-22,2223/10,LGE,N,
10053966,ADRIAN WHITEHOUSE & COMPANY,"2,335.00",Homeless Prevention Fund,Misc Supplies & Services Costs,20-Jan-23,2223/10,SME,N,
20028261,SEFE ENERGY LIMITED,383.04,Belle Vue House,Gas,17-Jan-23,2223/10,LGE,N,
20028261,SEFE ENERGY LIMITED,71.18,HQ Energy,Gas,17-Jan-23,2223/10,LGE,N,
20028261,SEFE ENERGY LIMITED,"3,892.50",Sheltered Accommodation,Gas,17-Jan-23,2223/10,LGE,N,
20028261,SEFE ENERGY LIMITED,565.19,Temporary Accommodation,Gas,17-Jan-23,2223/10,LGE,N,
10053592,AARON SERVICES LTD,"-5,192.88",Central Heating,Repairs,27-Jun-22,2223/10,SME,N,
1092,MTM PLANT AND SALES LTD,-138,Building Services,Repairs,16-Jan-23,2223/10,SME,N,
1093,MTM PLANT AND SALES LTD,165.6,Current Assets,LLOYDS GENERAL PAYMENTS,16-Jan-23,2223/10,SME,N,
310,NEWSQUEST MEDIA GROUP,-249.99,BRRP-MarketTownVision&Invest,Advertising&mkting (non-staff),19-Jan-23,2223/10,LGE,Y,50%
20028271,AARON SERVICES LTD,"6,520.31",Current Liabilities,Cert IBS Creditors Holding ac,03-Feb-23,2223/11,SME,N,
10054238,AE WHITE SURFACING,411.85,Insurance Claims,Misc Premises Costs,31-Jan-23,2223/11,SME,N,
10054278,AE WHITE SURFACING,411.85,Insurance Claims,Misc Premises Costs,31-Dec-22,2223/11,SME,N,
10054486,AE WHITE SURFACING,"2,450.00",Pld Maint/ Enhncmts-C Parks,Repairs,08-Feb-23,2223/11,SME,N,
10054785,AE WHITE SURFACING,750,Estate Imps/parking areas,Improvements,25-Jan-23,2223/11,SME,N,
10054052,ANGLIAN WATER,827.9,Water Sampling,Sampling & Analysis,23-Jan-23,2223/11,LGE,N,
10054755,ARLINGCLOSE LTD,"11,625.00",Treasury Management,Contracted Services,01-Dec-22,2223/11,SME,N,
10054542,BINDER LTD,"10,137.10",Renovation/Home Repair Grants,Grants,09-Feb-23,2223/11,SME,N,
10054591,BINDER LTD,311,Sewage Treatment Works,Contracted Services,07-Feb-23,2223/11,SME,N,
10054592,BINDER LTD,311,Sewage Treatment Works,Contracted Services,07-Feb-23,2223/11,SME,N,
10054639,BINDER LTD,365.75,Sewage Treatment Works,Contracted Services,06-Feb-23,2223/11,SME,N,
10054347,BOTTOMLINE TECHNOLOGIES,701.21,ICT,Software Licnse (Line of Bus) ,31-Jan-23,2223/11,LGE,Y,50%
10053507,BOWER FULLER,448.24,Public Realm TransitionProject,"Equipment, Tools & Materials",30-Dec-22,2223/11,SME,N,
10054439,BOWER FULLER,"3,254.40",Sheltered Accommodation,Fire Prevention,31-Jan-23,2223/11,SME,N,
10054440,BOWER FULLER,"3,669.90",Temporary Accommodation,Fire Prevention,31-Jan-23,2223/11,SME,N,
10054441,BOWER FULLER,652.65,Temporary Accommodation,Fire Prevention,31-Jan-23,2223/11,SME,N,
10054442,BOWER FULLER,370.89,Tenancy Services,Fire Prevention,31-Jan-23,2223/11,SME,N,
10054442,BOWER FULLER,123.63,Temporary Accommodation,Fire Prevention,31-Jan-23,2223/11,SME,N,
10054447,BOWER FULLER,369.1,Sheltered Accommodation,Repairs,31-Jan-23,2223/11,SME,N,
10054448,BOWER FULLER,"2,394.06",Tenancy Services,Fire Prevention,31-Jan-23,2223/11,SME,N,
10054451,BOWER FULLER,223.2,Sheltered Accommodation,Fire Prevention,31-Jan-23,2223/11,SME,N,
10054451,BOWER FULLER,159.12,Sheltered Accommodation,Fire Prevention,31-Jan-23,2223/11,SME,N,
10054451,BOWER FULLER,290.01,Sheltered Accommodation,Fire Prevention,31-Jan-23,2223/11,SME,N,
10054452,BOWER FULLER,376.02,Sheltered Accommodation,Fire Prevention,31-Jan-23,2223/11,SME,N,
10054455,BOWER FULLER,"1,763.73",Temporary Accommodation,Fire Prevention,31-Jan-23,2223/11,SME,N,
10054497,BUTTON & TURNER LTD,330.06,Open Spaces,Plant & Vehicle - Other costs,18-Jan-23,2223/11,SME,N,
10054438,CAPITA BUSINESS SERVICES LTD,"8,787.99",Building Services,Contracted Services,07-Feb-23,2223/11,LGE,Y,50%
10054382,AQUASAMPLERS,481,Water Sampling,Sampling & Analysis,31-Dec-22,2223/11,SME,N,
10053916,CHARTERED INSTITUTE OF ENVIRONMENTAL HEA,900,Housing Standards,Training,18-Jan-23,2223/11,LGE,Y,50%
10054738,CHEQUERS HOTEL LTD,"1,470.00",Homelessness Private Sector,B&B Costs,02-Jan-23,2223/11,SME,N,
10054739,CHEQUERS HOTEL LTD,440,Homelessness Private Sector,B&B Costs,02-Jan-23,2223/11,SME,N,
10054740,CHEQUERS HOTEL LTD,360,Homelessness Private Sector,B&B Costs,02-Jan-23,2223/11,SME,N,
10054741,CHEQUERS HOTEL LTD,"1,500.00",Homelessness Private Sector,B&B Costs,02-Jan-23,2223/11,SME,N,
10054375,CHIPSIDE LTD,454.08,C Parks General,Contracted Services,31-Jan-23,2223/11,SME,N,
10054471,D ADAMS CARPENTRY,"5,478.97",Mand Disabled Facilities Grant,Grants,08-Feb-23,2223/11,SME,N,
10053887,D W ADAMS LTD,717,Building Services,Repairs,18-Jan-23,2223/11,SME,N,
10054095,D W ADAMS LTD,"5,290.00",Council House Adaptions,Improvements,25-Jan-23,2223/11,SME,N,
10054103,D W ADAMS LTD,670,Building Services,Repairs,25-Jan-23,2223/11,SME,N,
10054104,D W ADAMS LTD,670,Building Services,Repairs,25-Jan-23,2223/11,SME,N,
10054334,D W ADAMS LTD,"1,806.00",Council House Adaptions,Improvements,03-Feb-23,2223/11,SME,N,
10054607,D W ADAMS LTD,"1,667.00",Council House Adaptions,Improvements,13-Feb-23,2223/11,SME,N,
10054608,D W ADAMS LTD,"9,777.00",Council House Adaptions,Improvements,13-Feb-23,2223/11,SME,N,
10054609,D W ADAMS LTD,557,Building Services,Repairs,13-Feb-23,2223/11,SME,N,
10054613,DMA HEALTH AND SAFETY LTD,462,Building Services,Training,13-Feb-23,2223/11,SME,Y,50%
10054172,CIVICA ELECTION SERVICES,"1,520.54",Electoral Registration,Returning Officer Fees,10-Jan-23,2223/11,LGE,N,
10054675,CIVICA ELECTION SERVICES,487.85,Electoral Registration,Contracted Services,10-Feb-23,2223/11,LGE,N,
10054309,ENER-G SWITCH2 LTD,414.33,Temporary Accommodation,Repairs,02-Feb-23,2223/11,SME,N,
10054546,ENER-G SWITCH2 LTD,496.68,Temporary Accommodation,Electricity,24-Jan-23,2223/11,SME,N,
10054037,ENGLISH SECURITY,119.82,Chilton Depot,Fire Prevention,23-Jan-23,2223/11,SME,Y,50%
10054037,ENGLISH SECURITY,138.47,Sheltered Accommodation,Fire Prevention,23-Jan-23,2223/11,SME,N,
10054037,ENGLISH SECURITY,504.74,Tenancy Services,Fire Prevention,23-Jan-23,2223/11,SME,N,
10054536,ENGLISH SECURITY,"1,080.00",Sheltered Accommodation,Fire Prevention,09-Feb-23,2223/11,SME,N,
10054593,ENGLISH SECURITY,685.9,Sheltered Accommodation,Fire Prevention,10-Feb-23,2223/11,SME,N,
10054724,ENGLISH SECURITY,"1,973.12",Tenancy Services,Fire Prevention,16-Feb-23,2223/11,SME,N,
10053929,FELLBRIDGE BUILDING SERVICES,"12,133.25",Voids Maintenance,Repairs,19-Jan-23,2223/11,SME,N,
10053930,FELLBRIDGE BUILDING SERVICES,"18,131.75",Voids Maintenance,Repairs,19-Jan-23,2223/11,SME,N,
10054018,FELLBRIDGE BUILDING SERVICES,"1,208.66",Building Services,Repairs,23-Jan-23,2223/11,SME,N,
10054129,FELLBRIDGE BUILDING SERVICES,415.33,Building Services,Repairs,26-Jan-23,2223/11,SME,N,
10054297,FELLBRIDGE BUILDING SERVICES,455.74,Voids Maintenance,Repairs,02-Feb-23,2223/11,SME,N,
10054298,FELLBRIDGE BUILDING SERVICES,574.24,Voids Maintenance,Repairs,02-Feb-23,2223/11,SME,N,
10054308,FELLBRIDGE BUILDING SERVICES,651,Building Services,Repairs,02-Feb-23,2223/11,SME,N,
10054387,FELLBRIDGE BUILDING SERVICES,"2,485.53",Roofing,Repairs,06-Feb-23,2223/11,SME,N,
10054396,FELLBRIDGE BUILDING SERVICES,731.29,Building Services,Repairs,06-Feb-23,2223/11,SME,N,
10054397,FELLBRIDGE BUILDING SERVICES,798.85,Building Services,Repairs,06-Feb-23,2223/11,SME,N,
10054399,FELLBRIDGE BUILDING SERVICES,362.27,Building Services,Repairs,06-Feb-23,2223/11,SME,N,
10054507,FELLBRIDGE BUILDING SERVICES,"1,600.90",Insulation Imps,Repairs,09-Feb-23,2223/11,SME,N,
10054601,FELLBRIDGE BUILDING SERVICES,"12,526.54",Voids Maintenance,Repairs,13-Feb-23,2223/11,SME,N,
10054212,FORE-MOST GARAGE DOORS LTD,"2,006.40",Building Services,Repairs,31-Jan-23,2223/11,SME,N,
10054212,FORE-MOST GARAGE DOORS LTD,163,"Garages, Forecourts & Stores",Repairs,31-Jan-23,2223/11,SME,N,
10054064,G & G SIGNS,302.05,Street Naming & Numbering,Signs,23-Jan-23,2223/11,SME,N,
10054092,HAYES DIGGINS BUILDERS,"3,646.00",Insulation Imps,Repairs,25-Jan-23,2223/11,SME,N,
10054459,HAYES DIGGINS BUILDERS,520,Dampness,Repairs,08-Feb-23,2223/11,SME,N,
10054596,HAYES DIGGINS BUILDERS,"4,870.00",Insulation Imps,Improvements,13-Feb-23,2223/11,SME,N,
10054646,HAYES DIGGINS BUILDERS,700,Hadleigh Pool,Repairs,15-Feb-23,2223/11,SME,N,
10054474,HQN LTD,"1,100.00",Building Services,Training,31-Jan-23,2223/11,SME,Y,50%
10054186,JMP SERVICES LTD,740,Street & Major Road Cleansing,Contracted Services,30-Jan-23,2223/11,SME,N,
10054604,KEN GRIME & SON LTD,430.51,Voids Maintenance,Repairs,13-Feb-23,2223/11,SME,N,
10054432,KEYWAYS THE LOCKSMITHS LTD,264,Open Spaces,"Equipment, Tools & Materials",07-Feb-23,2223/11,SME,N,
10054193,MALJON TIMBER PRESERVATION LTD,655,Building Services,Repairs,30-Jan-23,2223/11,SME,N,
10054606,MALJON TIMBER PRESERVATION LTD,494,Insulation Imps,Repairs,13-Feb-23,2223/11,SME,N,
10054465,MATERIAL CHANGE COMPOSTING LTD,"2,033.13",Open Spaces,Waste Disposal,31-Jan-23,2223/11,LGE,N,
10054669,MB TREES (EAST ANGLIA) LTD,"1,480.00",Tenancy Services,Tree felling/maintenance,16-Feb-23,2223/11,SME,N,
10054230,MERCURY BUILDING SERVICES LTD,"2,457.00",Hadleigh Pool,Repairs,31-Jan-23,2223/11,SME,N,
10054381,MERCURY BUILDING SERVICES LTD,976,Kingfisher Leisure Centre,Repairs,06-Feb-23,2223/11,SME,N,
10054565,MERCURY BUILDING SERVICES LTD,"4,265.00",Kingfisher Leisure Centre,Repairs,10-Feb-23,2223/11,SME,N,
10054641,MERCURY BUILDING SERVICES LTD,457,Sheltered Accommodation,Repairs,10-Feb-23,2223/11,SME,N,
10054676,MERCURY BUILDING SERVICES LTD,"1,430.00",Sheltered Accommodation,Repairs,16-Feb-23,2223/11,SME,N,
10054620,MID SUFFOLK FENCING LTD,"1,202.00",Voids Maintenance,Repairs,07-Feb-23,2223/11,SME,N,
10054316,MIXBROW LTD,"2,985.46",Council House Adaptions,Improvements,02-Feb-23,2223/11,SME,N,
10054663,MONTHIND CLEAN LTD,665.83,Jnt Waste Contract,General Cleaning,15-Feb-23,2223/11,LGE,Y,50%
10054532,ORWELL HOUSING ASSOCIATION LTD,575.8,Sheltered Accommodation,Contracted Services,08-Feb-23,2223/11,LGE,N,
10054701,PHS GROUP PLC,492.44,Wenham Depot,Contracted Services,11-Feb-23,2223/11,LGE,Y,50%
10054099,PLASUFIX LTD,"20,762.24",Roofing,Major Contracts,25-Jan-23,2223/11,SME,N,
10053963,PRO-FLAT SPECIALIST SERVICES LTD,"3,871.00",Roofing,Repairs,19-Jan-23,2223/11,SME,N,
10053964,PRO-FLAT SPECIALIST SERVICES LTD,796,Roofing,Repairs,19-Jan-23,2223/11,SME,N,
10054290,PRO-FLAT SPECIALIST SERVICES LTD,326,Building Services,Repairs,31-Jan-23,2223/11,SME,N,
10054352,PRO-FLAT SPECIALIST SERVICES LTD,986,Roofing,Repairs,31-Jan-23,2223/11,SME,N,
10054618,PRO-FLAT SPECIALIST SERVICES LTD,"1,894.00",Roofing,Repairs,09-Feb-23,2223/11,SME,N,
10054039,REID PLUMBING & HEATING CONTRACTORS LTD,"20,378.87",Central Heating,Major Contracts,23-Jan-23,2223/11,SME,N,
10054127,REID PLUMBING & HEATING CONTRACTORS LTD,"11,374.62",Central Heating,Major Contracts,26-Jan-23,2223/11,SME,N,
10054201,REID PLUMBING & HEATING CONTRACTORS LTD,"10,023.72",Central Heating,Major Contracts,30-Jan-23,2223/11,SME,N,
10054295,REID PLUMBING & HEATING CONTRACTORS LTD,"15,998.16",Central Heating,Major Contracts,02-Feb-23,2223/11,SME,N,
10054404,REID PLUMBING & HEATING CONTRACTORS LTD,"11,704.21",Central Heating,Major Contracts,06-Feb-23,2223/11,SME,N,
10054415,REID PLUMBING & HEATING CONTRACTORS LTD,"11,895.98",Central Heating,Major Contracts,07-Feb-23,2223/11,SME,N,
10054622,RICOH UK LTD,665.97,ICT,Photocopying,03-Feb-23,2223/11,LGE,Y,50%
10054788,SANDY LANE NURSERY,377.5,Open Spaces,Horticultural Purchases,08-Feb-23,2223/11,SME,Y,50%
10054642,SEAGER HOME SOLUTIONS,"35,270.21",Kitchens/Bathrooms,Major Contracts,14-Feb-23,2223/11,SME,N,
10054957,SEAGER HOME SOLUTIONS,"6,036.77",Mand Disabled Facilities Grant,Grants,28-Feb-23,2223/11,SME,N,
10054809,SOLACE GROUP LTD,"1,100.00",Cost of Democracy,Member's Courses & Conferences,22-Feb-23,2223/11,SME,N,
10053761,SPALDINGS LTD,791.97,Open Spaces,"Equipment, Tools & Materials",11-Jan-23,2223/11,SME,N,
10054074,SUFFOLK TREE SERVICES LTD,"7,000.00",Neighbourhood Services,Grounds & Site Maintenance,24-Jan-23,2223/11,SME,N,
10053238,SUREFIX,"8,400.00",Major Imps,Improvements,13-Dec-22,2223/11,SME,N,
10053970,SUREFIX,"3,200.00",Window & Door Rplcmts,Repairs,18-Jan-23,2223/11,SME,N,
10054161,SUREFIX,850,Window & Door Rplcmts,Repairs,27-Jan-23,2223/11,SME,N,
10054162,SUREFIX,950,Window & Door Rplcmts,Repairs,24-Jan-23,2223/11,SME,N,
10054163,SUREFIX,875,Window & Door Rplcmts,Repairs,25-Jan-23,2223/11,SME,N,
10054165,SUREFIX,850,Window & Door Rplcmts,Repairs,27-Jan-23,2223/11,SME,N,
10054339,SUREFIX,975,Window & Door Rplcmts,Repairs,31-Jan-23,2223/11,SME,N,
10054340,SUREFIX,"3,850.00",Window & Door Rplcmts,Repairs,01-Feb-23,2223/11,SME,N,
10054357,SUREFIX,"1,600.00",Window & Door Rplcmts,Repairs,30-Jan-23,2223/11,SME,N,
10054585,SUREFIX,"2,131.30",Building Services,Repairs,09-Feb-23,2223/11,SME,N,
10054586,SUREFIX,850,Window & Door Rplcmts,Repairs,09-Feb-23,2223/11,SME,N,
10054587,SUREFIX,"3,710.00",Window & Door Rplcmts,Repairs,06-Feb-23,2223/11,SME,N,
10054590,SUREFIX,950,Window & Door Rplcmts,Repairs,09-Feb-23,2223/11,SME,N,
10054671,SUREFIX,850,Window & Door Rplcmts,Repairs,13-Feb-23,2223/11,SME,N,
10054882,SUREFIX,273.88,Building Services,Repairs,21-Feb-23,2223/11,SME,N,
10054231,TDT ENTERPRISES LTD,"1,467.12",Wenham Depot,Repairs,31-Jan-23,2223/11,SME,Y,50%
10054710,TDT ENTERPRISES LTD,"1,063.00",Community Safety-CCTV,"Equipment, Tools & Materials",17-Feb-23,2223/11,SME,N,
10054500,THE PLAY INSPECTION COMPANY LTD,"2,555.82",Open Spaces,"Equipment, Tools & Materials",31-Jan-23,2223/11,SME,N,
10054105,THERMATECH,450,Tenancy Services,Fire Prevention,23-Jan-23,2223/11,SME,N,
10054106,THERMATECH,450,Tenancy Services,Fire Prevention,23-Jan-23,2223/11,SME,N,
10054107,THERMATECH,700,Tenancy Services,Fire Prevention,23-Jan-23,2223/11,SME,N,
10054108,THERMATECH,"1,800.00",Tenancy Services,Fire Prevention,23-Jan-23,2223/11,SME,N,
10054109,THERMATECH,"2,500.00",Tenancy Services,Fire Prevention,23-Jan-23,2223/11,SME,N,
10054110,THERMATECH,"2,725.00",Tenancy Services,Fire Prevention,23-Jan-23,2223/11,SME,N,
10054111,THERMATECH,675,Tenancy Services,Fire Prevention,23-Jan-23,2223/11,SME,N,
10054113,THERMATECH,"1,725.00",Tenancy Services,Fire Prevention,23-Jan-23,2223/11,SME,N,
10054114,THERMATECH,"1,250.00",Tenancy Services,Fire Prevention,23-Jan-23,2223/11,SME,N,
10054115,THERMATECH,700,Tenancy Services,Fire Prevention,23-Jan-23,2223/11,SME,N,
10054116,THERMATECH,875,Tenancy Services,Fire Prevention,23-Jan-23,2223/11,SME,N,
10054117,THERMATECH,475,Tenancy Services,Fire Prevention,23-Jan-23,2223/11,SME,N,
10054118,THERMATECH,"1,050.00",Sheltered Accommodation,Fire Prevention,23-Jan-23,2223/11,SME,N,
10054119,THERMATECH,950,Tenancy Services,Fire Prevention,24-Jan-23,2223/11,SME,N,
10054120,THERMATECH,850,Tenancy Services,Fire Prevention,24-Jan-23,2223/11,SME,N,
10054121,THERMATECH,475,Tenancy Services,Fire Prevention,24-Jan-23,2223/11,SME,N,
10054191,THERMATECH,"1,040.00",Sheltered Accommodation,Fire Prevention,30-Jan-23,2223/11,SME,N,
10054194,THERMATECH,350,Chilton Depot,Fire Prevention,30-Jan-23,2223/11,SME,Y,50%
10054766,THERMATECH,"5,475.00",Tenancy Services,Fire Prevention,16-Feb-23,2223/11,SME,Y,50%
10054767,THERMATECH,"2,400.00",Sheltered Accommodation,Fire Prevention,16-Feb-23,2223/11,SME,N,
10054767,THERMATECH,"7,750.00",Sheltered Accommodation,Fire Prevention,16-Feb-23,2223/11,SME,N,
10054314,TRUCKEAST LTD,705.28,Open Spaces,Plant & Vehicle - Other costs,02-Feb-23,2223/11,LGE,N,
10054134,WINDIMAN LTD,780,Window & Door Rplcmts,Repairs,26-Jan-23,2223/11,SME,N,
10053945,WORKWEAR (EAST ANGLIA) LTD,331.95,Open Spaces,Protective clothing,12-Jan-23,2223/11,SME,N,
10053946,WORKWEAR (EAST ANGLIA) LTD,209.68,Open Spaces,Protective clothing,19-Jan-23,2223/11,SME,N,
10053946,WORKWEAR (EAST ANGLIA) LTD,209.68,Street & Major Road Cleansing,Protective clothing,19-Jan-23,2223/11,SME,N,
10053947,WORKWEAR (EAST ANGLIA) LTD,297.09,Open Spaces,Protective clothing,17-Jan-23,2223/11,SME,N,
10053947,WORKWEAR (EAST ANGLIA) LTD,297.09,Street & Major Road Cleansing,Protective clothing,17-Jan-23,2223/11,SME,N,
10054502,CHUBB FIRE & SECURITY LTD,"6,202.76",Tenancy Services,Community Alarm Costs,16-Jan-23,2223/11,LGE,N,
10054183,IDOX SOFTWARE LTD,"6,550.00",ICT - CapsUniform,Prof & Consultancy Fees,30-Jan-23,2223/11,SME,Y,50%
10054289,IPSWICH BOROUGH COUNCIL,"279,345.00",Shared Revenues Partnership,Major Contracts,01-Feb-23,2223/11,LGE,N,
20028282,GPC BARCLAYS,"6,065.57",Current Assets,Barclaycard Control,16-Feb-23,2223/11,LGE,Y,14%
20028277,ALLSTAR BUSINESS SOLUTIONS LTD,"5,461.47",Building Services,Plant & Vehicle - Other costs,31-Jan-23,2223/11,SME,Y,50%
10054416,STANNAH STAIRLIFTS LTD,"2,621.00",Mand Disabled Facilities Grant,Grants,07-Feb-23,2223/11,LGE,N,
10054317,ACTON PARISH COUNCIL,500,Grants & Contrbns,Contributions & Donations,02-Feb-23,2223/11,SME,N,
10054840,ALPHETON PARISH COUNCIL,500,Grants & Contrbns,Contributions & Donations,23-Feb-23,2223/11,SME,N,
10054699,CHATTISHAM & HINTLESHAM PARISH COUNCIL,"1,000.00",Grants & Contrbns,Contributions & Donations,17-Feb-23,2223/11,SME,N,
10054884,CHELSWORTH PARISH MEETING,500,Grants & Contrbns,Contributions & Donations,24-Feb-23,2223/11,SME,N,
10054527,COPDOCK & OI CRICKET CLUB LTD,"1,750.00",Grants & Contrbns,Contributions & Donations,10-Feb-23,2223/11,SME,N,
10054886,GROTON PARISH COUNCIL,412,Grants & Contrbns,Contributions & Donations,24-Feb-23,2223/11,SME,N,
10054303,LAVENHAM FORUM,"1,500.00",Grants & Contrbns,Contributions & Donations,02-Feb-23,2223/11,SME,N,
10054842,LONG MELFORD PARISH COUNCIL,500,Grants & Contrbns,Contributions & Donations,23-Feb-23,2223/11,SME,N,
10054288,NEW ANGLIA LOCAL ENTERPRISE PARTNERSHIP,"488,647.18",Enterprise Zones,Contributions to other Bodies,31-Jan-23,2223/11,SME,N,
10054905,POLSTEAD PARISH COUNCIL,500,Grants & Contrbns,Contributions & Donations,26-Feb-23,2223/11,SME,N,
10054845,SHIMPLING PARISH COUNCIL,"1,000.00",Grants & Contrbns,Contributions & Donations,23-Feb-23,2223/11,SME,N,
10054670,SUDBURY TOWN COUNCIL,"1,400.00",Grants & Contrbns,Contributions & Donations,16-Feb-23,2223/11,SME,N,
10054276,WHATFIELD PARISH COUNCIL,450,Grants & Contrbns,Contributions & Donations,01-Feb-23,2223/11,SME,N,
10053806,SUFFOLK COUNTY COUNCIL,"1,230.00",Land Chgs,Contracted Services,15-Dec-22,2223/11,LGE,N,
10053821,SUFFOLK COUNTY COUNCIL,261.36,ICT,Desktop Software,13-Jan-23,2223/11,LGE,Y,50%
10054293,SUFFOLK COUNTY COUNCIL,418.51,General Rechargeable Works,Misc Supplies & Services Costs,01-Feb-23,2223/11,LGE,N,
10054503,SUFFOLK COUNTY COUNCIL,"4,049.00",ICT,Computer Equpt Purchases,08-Feb-23,2223/11,LGE,Y,50%
10054504,SUFFOLK COUNTY COUNCIL,"1,040.68",Info Mgmt,Contracted Services,09-Feb-23,2223/11,LGE,Y,50%
10054506,SUFFOLK COUNTY COUNCIL,"7,000.00",Devt Policy & Local Plans,Subscriptions,09-Feb-23,2223/11,LGE,Y,50%
10054615,SUFFOLK COUNTY COUNCIL,"100,778.00",Enterprise Zones,Contributions to other Bodies,13-Feb-23,2223/11,LGE,N,
10054636,SUFFOLK COUNTY COUNCIL,253.64,ICT,Desktop Software,13-Feb-23,2223/11,LGE,Y,50%
10054657,SUFFOLK COUNTY COUNCIL,"6,052.35",Garden Waste,Garden Waste Disposal,14-Feb-23,2223/11,LGE,N,
10054802,SUFFOLK COUNTY COUNCIL,"59,874.59",Trade Waste,Trade Waste Disposal,22-Feb-23,2223/11,LGE,N,
10054875,SUFFOLK COUNTY COUNCIL,"4,667.87",ICT,Photocopying,23-Feb-23,2223/11,LGE,Y,50%
10054408,ROYAL MAIL,265.64,Electoral Registration,Postage,06-Feb-23,2223/11,LGE,Y,100%
10054177,REED SPECIALIST RECRUITMENT LTD,766.64,Financial Servs,Agency Staff,20-Jan-23,2223/11,LGE,Y,50%
10054362,REED SPECIALIST RECRUITMENT LTD,766.64,Financial Servs,Agency Staff,27-Jan-23,2223/11,LGE,Y,50%
10054570,REED SPECIALIST RECRUITMENT LTD,766.64,Financial Servs,Agency Staff,03-Feb-23,2223/11,LGE,Y,50%
10054720,REED SPECIALIST RECRUITMENT LTD,766.64,Financial Servs,Agency Staff,10-Feb-23,2223/11,LGE,Y,50%
10054906,TELEFONICA UK LIMITED - O2,330.83,ICT,Telephone Costs,27-Feb-23,2223/11,LGE,Y,50%
10054369,BT PAYMENT SERVICES,"5,049.89",ICT,Telephone Costs,04-Feb-23,2223/11,LGE,N,
10054335,LEX AUTOLEASE,323.02,Building Services,Lease Cars - Payment,29-Jan-23,2223/11,SME,Y,50%
10054336,LEX AUTOLEASE,365.95,Building Services,Lease Cars - Payment,29-Jan-23,2223/11,SME,Y,50%
10054337,LEX AUTOLEASE,365.95,Building Services,Lease Cars - Payment,29-Jan-23,2223/11,SME,Y,50%
10054729,LEX AUTOLEASE,304.25,Building Services,Lease Cars - Payment,30-Jan-23,2223/11,SME,Y,50%
10054730,LEX AUTOLEASE,376.73,Building Services,Lease Cars - Payment,02-Feb-23,2223/11,SME,Y,50%
10054858,LEX AUTOLEASE,318.97,Building Services,Lease Cars - Payment,07-Feb-23,2223/11,SME,Y,50%
10054859,LEX AUTOLEASE,332.77,Building Services,Lease Cars - Payment,08-Feb-23,2223/11,SME,Y,50%
10054860,LEX AUTOLEASE,380.78,Building Services,Lease Cars - Payment,08-Feb-23,2223/11,SME,Y,50%
10054861,LEX AUTOLEASE,328.72,Building Services,Lease Cars - Payment,09-Feb-23,2223/11,SME,Y,50%
10054862,LEX AUTOLEASE,311.34,Building Services,Lease Cars - Payment,09-Feb-23,2223/11,SME,Y,50%
10054863,LEX AUTOLEASE,336.11,Building Services,Lease Cars - Payment,09-Feb-23,2223/11,SME,Y,50%
10054864,LEX AUTOLEASE,331.38,Building Services,Lease Cars - Payment,12-Feb-23,2223/11,SME,Y,50%
10054865,LEX AUTOLEASE,311.43,Building Services,Lease Cars - Payment,12-Feb-23,2223/11,SME,Y,50%
10054866,LEX AUTOLEASE,324.97,Building Services,Lease Cars - Payment,12-Feb-23,2223/11,SME,Y,50%
10054867,LEX AUTOLEASE,355.2,Building Services,Lease Cars - Payment,12-Feb-23,2223/11,SME,Y,50%
10054868,LEX AUTOLEASE,346.16,Building Services,Lease Cars - Payment,12-Feb-23,2223/11,SME,Y,50%
10053989,WHYBROW PROPERTY SOLUTIONS LTD,"9,091.48",Voids Maintenance,Repairs,13-Jan-23,2223/11,SME,N,
10054013,WHYBROW PROPERTY SOLUTIONS LTD,300,Kitchens/Bathrooms,Repairs,23-Jan-23,2223/11,SME,N,
10054234,WHYBROW PROPERTY SOLUTIONS LTD,588.96,Voids Maintenance,Repairs,31-Jan-23,2223/11,SME,N,
10054291,WHYBROW PROPERTY SOLUTIONS LTD,"6,859.12",Voids Maintenance,Repairs,02-Feb-23,2223/11,SME,N,
10054294,WHYBROW PROPERTY SOLUTIONS LTD,"11,717.19",Voids Maintenance,Repairs,02-Feb-23,2223/11,SME,N,
10054355,WHYBROW PROPERTY SOLUTIONS LTD,"5,000.00",Voids Maintenance,Repairs,03-Feb-23,2223/11,SME,N,
10054356,WHYBROW PROPERTY SOLUTIONS LTD,"5,000.00",Voids Maintenance,Repairs,03-Feb-23,2223/11,SME,N,
10054358,WHYBROW PROPERTY SOLUTIONS LTD,"8,527.66",Voids Maintenance,Repairs,03-Feb-23,2223/11,SME,N,
10054359,WHYBROW PROPERTY SOLUTIONS LTD,"13,174.80",Voids Maintenance,Repairs,03-Feb-23,2223/11,SME,N,
10054360,WHYBROW PROPERTY SOLUTIONS LTD,"16,755.13",Voids Maintenance,Repairs,03-Feb-23,2223/11,SME,N,
10054400,WHYBROW PROPERTY SOLUTIONS LTD,"7,500.00",Voids Maintenance,Repairs,06-Feb-23,2223/11,SME,N,
10054401,WHYBROW PROPERTY SOLUTIONS LTD,"2,116.85",Voids Maintenance,Repairs,06-Feb-23,2223/11,SME,N,
10054434,WHYBROW PROPERTY SOLUTIONS LTD,"1,079.70",Sheltered Accommodation,Repairs,03-Feb-23,2223/11,SME,N,
10054510,WHYBROW PROPERTY SOLUTIONS LTD,"2,635.10",Voids Maintenance,Repairs,09-Feb-23,2223/11,SME,N,
10054512,WHYBROW PROPERTY SOLUTIONS LTD,"5,223.76",Voids Maintenance,Repairs,09-Feb-23,2223/11,SME,N,
10054514,WHYBROW PROPERTY SOLUTIONS LTD,"7,229.04",Voids Maintenance,Repairs,09-Feb-23,2223/11,SME,N,
10054681,WHYBROW PROPERTY SOLUTIONS LTD,425,Voids Maintenance,Repairs,16-Feb-23,2223/11,SME,N,
10054682,WHYBROW PROPERTY SOLUTIONS LTD,"11,747.91",Voids Maintenance,Repairs,16-Feb-23,2223/11,SME,N,
10054066,L A C CLEANING CONTRACTORS LIMITED,718.5,Wenham Depot TDP,General Cleaning,23-Jan-23,2223/11,SME,Y,50%
10054329,L A C CLEANING CONTRACTORS LIMITED,495.5,Building Services,Repairs,02-Feb-23,2223/11,SME,N,
10054331,L A C CLEANING CONTRACTORS LIMITED,"2,294.50",Voids Maintenance,Repairs,03-Feb-23,2223/11,SME,N,
10054520,L A C CLEANING CONTRACTORS LIMITED,425.5,Voids Maintenance,Repairs,09-Feb-23,2223/11,SME,N,
10054521,L A C CLEANING CONTRACTORS LIMITED,257.5,Building Services,Repairs,09-Feb-23,2223/11,SME,N,
10054818,L A C CLEANING CONTRACTORS LIMITED,648.48,Sheltered Accommodation,General Cleaning,22-Feb-23,2223/11,SME,N,
10054825,L A C CLEANING CONTRACTORS LIMITED,795.25,Voids Maintenance,Repairs,23-Feb-23,2223/11,SME,N,
10054827,L A C CLEANING CONTRACTORS LIMITED,"2,723.25",Voids Maintenance,Repairs,23-Feb-23,2223/11,SME,N,
10054301,ARMSTRONG YORK ASBESTOS ENVIRONMENTAL,"12,673.73",Asbestos Survey & Reinspection,Prof & Consultancy Fees,31-Jan-23,2223/11,SME,N,
10054760,BURES SPORTS GROUND COMMITTEE,"20,000.00",Grants & Contrbns,Grants,20-Feb-23,2223/11,SME,N,
10054395,THE ROYAL HOSPITAL COMMUNITY ACTION CHAR,"5,780.80",Cost of Democracy,Chairman's Expenses,06-Feb-23,2223/11,LGE,N,
10054844,ESRI UK LTD,"4,202.00",ICT,Software Licnse (Line of Bus) ,23-Feb-23,2223/11,LGE,Y,50%
10054377,OPUS PEOPLE SOLUTIONS LTD,197.78,Health & Safety,Agency Staff,02-Feb-23,2223/11,SME,N,
10054377,OPUS PEOPLE SOLUTIONS LTD,626.71,Homeless Prevention Fund,Agency Staff,02-Feb-23,2223/11,SME,N,
10054377,OPUS PEOPLE SOLUTIONS LTD,516.37,Devt Management -Applications,Agency Staff,02-Feb-23,2223/11,SME,N,
10054599,OPUS PEOPLE SOLUTIONS LTD,197.78,Health & Safety,Agency Staff,09-Feb-23,2223/11,SME,N,
10054599,OPUS PEOPLE SOLUTIONS LTD,107.88,Homeless Prevention Fund,Agency Staff,09-Feb-23,2223/11,SME,N,
10054599,OPUS PEOPLE SOLUTIONS LTD,68.28,Devt Management -Applications,Agency Staff,09-Feb-23,2223/11,SME,N,
10054908,OPUS PEOPLE SOLUTIONS LTD,197.78,Health & Safety,Agency Staff,23-Feb-23,2223/11,SME,N,
10054908,OPUS PEOPLE SOLUTIONS LTD,136.56,Devt Management -Applications,Agency Staff,23-Feb-23,2223/11,SME,N,
10054139,ECOSYSTEMS TREE & GROUNDS CARE,375,Tenancy Services,Tree felling/maintenance,26-Jan-23,2223/11,SME,N,
10054141,ECOSYSTEMS TREE & GROUNDS CARE,300,Public Tree Programme,Tree felling/maintenance,26-Jan-23,2223/11,SME,N,
10054178,ECOSYSTEMS TREE & GROUNDS CARE,"1,600.00",Amenity Areas,Tree felling/maintenance,28-Jan-22,2223/11,SME,N,
10054179,ECOSYSTEMS TREE & GROUNDS CARE,"2,200.00",Amenity Areas,Tree felling/maintenance,28-Jan-23,2223/11,SME,N,
10054180,ECOSYSTEMS TREE & GROUNDS CARE,"2,450.00",Amenity Areas,Tree felling/maintenance,28-Jan-23,2223/11,SME,N,
10054218,ECOSYSTEMS TREE & GROUNDS CARE,350,Tenancy Services,Tree felling/maintenance,31-Jan-23,2223/11,SME,N,
10054219,ECOSYSTEMS TREE & GROUNDS CARE,750,Amenity Areas,Tree felling/maintenance,31-Jan-23,2223/11,SME,N,
10054221,ECOSYSTEMS TREE & GROUNDS CARE,"1,100.00",Amenity Areas,Tree felling/maintenance,31-Jan-23,2223/11,SME,N,
10054222,ECOSYSTEMS TREE & GROUNDS CARE,600,Public Tree Programme,Tree felling/maintenance,31-Jan-23,2223/11,SME,N,
10054781,CORNERSTONE BARRISTERS,"1,310.00",Tenancy Services,Legal Expenses,12-Jan-23,2223/11,SME,N,
10054857,ANNETTE FEENEY,546,Devt Policy & Local Plans,Prof & Consultancy Fees,20-Feb-23,2223/11,ST,Y,50%
10054828,DOTTED EYES LTD,"4,015.00",ICT,Software Licnse (Line of Bus) ,23-Feb-23,2223/11,SME,Y,50%
10054915,POLSTEAD VILLAGE HALL MGMT COMMITTEE,500,Grants & Contrbns,Contributions & Donations,27-Feb-23,2223/11,SME,N,
10054225,VERTAS GROUP LTD,"4,042.70",Central Postal Serv,Postage,31-Jan-23,2223/11,SME,Y,50%
10054008,COLLINS SKIP HIRE,550,Building Services,Waste Disposal,23-Jan-23,2223/11,SME,Y,50%
10054184,COLLINS SKIP HIRE,550,Building Services,Waste Disposal,30-Jan-23,2223/11,SME,Y,50%
10054366,COLLINS SKIP HIRE,550,Building Services,Waste Disposal,06-Feb-23,2223/11,SME,Y,50%
10054584,COLLINS SKIP HIRE,275,Building Services,Waste Disposal,13-Feb-23,2223/11,SME,Y,50%
10054725,COLLINS SKIP HIRE,825,Building Services,Waste Disposal,20-Feb-23,2223/11,SME,Y,50%
10053775,POSTURITE LTD,415,Health & Safety,Furniture,12-Jan-23,2223/11,SME,Y,50%
10054409,POSTURITE LTD,363.33,Health & Safety,Furniture,06-Feb-23,2223/11,SME,Y,50%
10054787,4PRINCIPLES CONSTRUCTION LTD,"5,751.75",Mand Disabled Facilities Grant,Grants,21-Feb-23,2223/11,SME,N,
10054792,4PRINCIPLES CONSTRUCTION LTD,"1,289.97",Mand Disabled Facilities Grant,Grants,22-Feb-23,2223/11,SME,N,
10054078,GASWAY SERVICES LTD,"9,514.00",Central Heating,Improvements,05-Sep-22,2223/11,SME,N,
10054079,GASWAY SERVICES LTD,"9,295.00",Central Heating,Improvements,22-Nov-22,2223/11,SME,N,
10054080,GASWAY SERVICES LTD,"8,500.00",Central Heating,Improvements,22-Nov-22,2223/11,SME,N,
10054081,GASWAY SERVICES LTD,"9,266.50",Central Heating,Improvements,22-Nov-22,2223/11,SME,N,
10054082,GASWAY SERVICES LTD,"9,295.00",Central Heating,Improvements,22-Nov-22,2223/11,SME,N,
10054083,GASWAY SERVICES LTD,"9,295.00",Central Heating,Improvements,22-Nov-22,2223/11,SME,N,
10054084,GASWAY SERVICES LTD,"8,500.00",Central Heating,Improvements,23-Nov-22,2223/11,SME,N,
10054085,GASWAY SERVICES LTD,"9,860.00",Central Heating,Improvements,23-Nov-22,2223/11,SME,N,
10054086,GASWAY SERVICES LTD,"9,195.00",Central Heating,Improvements,22-Nov-22,2223/11,SME,N,
10054087,GASWAY SERVICES LTD,"8,400.00",Central Heating,Improvements,22-Nov-22,2223/11,SME,N,
10054325,PENNA PLC,"9,000.00",Management Team,Agency Staff,02-Feb-23,2223/11,SME,Y,50%
10054326,PENNA PLC,"15,620.00",Management Team,Agency Staff,02-Feb-23,2223/11,SME,Y,50%
10054753,CHEC PLANNING LTD,"5,450.53",Nghbrhd Plan Designations,Prof & Consultancy Fees,20-Feb-23,2223/11,SME,N,
10054060,SUFFOLK MARKET EVENTS,650,Hadleigh Market,Contracted Services,24-Jan-23,2223/11,SME,N,
10054909,SUFFOLK MARKET EVENTS,650,Hadleigh Market,Contracted Services,22-Feb-23,2223/11,SME,N,
10054211,ADVANCE SUPPLIES,461.97,Sheltered Accommodation,Cleaning Materials,30-Jan-23,2223/11,SME,N,
10054176,HAYS SPECIALIST RECRUITMENT LTD,"2,597.40",Commissioning & Procurement,Agency Staff,27-Jan-23,2223/11,LGE,Y,50%
10054236,HAYS SPECIALIST RECRUITMENT LTD,"1,590.32",Assets & Development,Agency Staff,31-Jan-23,2223/11,LGE,Y,50%
10054236,HAYS SPECIALIST RECRUITMENT LTD,397.59,HRA Strategic Property,Agency Staff,31-Jan-23,2223/11,LGE,Y,50%
10054405,HAYS SPECIALIST RECRUITMENT LTD,"1,604.36",Assets & Development,Agency Staff,06-Feb-23,2223/11,LGE,Y,50%
10054405,HAYS SPECIALIST RECRUITMENT LTD,401.08,HRA Strategic Property,Agency Staff,06-Feb-23,2223/11,LGE,Y,50%
10054406,HAYS SPECIALIST RECRUITMENT LTD,"2,478.00",Financial Servs,Agency Staff,06-Feb-23,2223/11,LGE,Y,50%
10054407,HAYS SPECIALIST RECRUITMENT LTD,"2,597.40",Commissioning & Procurement,Agency Staff,06-Feb-23,2223/11,LGE,Y,50%
10054479,HAYS SPECIALIST RECRUITMENT LTD,"3,717.00",Financial Servs,Agency Staff,08-Feb-23,2223/11,LGE,Y,50%
10054569,HAYS SPECIALIST RECRUITMENT LTD,"2,597.40",Commissioning & Procurement,Agency Staff,10-Feb-23,2223/11,LGE,Y,50%
10054616,HAYS SPECIALIST RECRUITMENT LTD,"4,130.00",Financial Servs,Agency Staff,13-Feb-23,2223/11,LGE,Y,50%
10054617,HAYS SPECIALIST RECRUITMENT LTD,"1,473.40",Assets & Development,Agency Staff,13-Feb-23,2223/11,LGE,Y,50%
10054617,HAYS SPECIALIST RECRUITMENT LTD,368.35,HRA Strategic Property,Agency Staff,13-Feb-23,2223/11,LGE,Y,50%
10054719,HAYS SPECIALIST RECRUITMENT LTD,"2,597.40",Commissioning & Procurement,Agency Staff,17-Feb-23,2223/11,LGE,Y,50%
10054768,HAYS SPECIALIST RECRUITMENT LTD,"1,637.10",Assets & Development,Agency Staff,20-Feb-23,2223/11,LGE,Y,50%
10054768,HAYS SPECIALIST RECRUITMENT LTD,409.28,HRA Strategic Property,Agency Staff,20-Feb-23,2223/11,LGE,Y,50%
10054790,HAYS SPECIALIST RECRUITMENT LTD,"4,130.00",Financial Servs,Agency Staff,21-Feb-23,2223/11,LGE,Y,50%
10054300,RICHARD UTTING ASSOCIATES LLP,"1,889.18",Waldingfield Rd S106 Andersons,Prof & Consultancy Fees,31-Jan-23,2223/11,SME,N,
10054425,PUBLIC SEWER SERVICES,350,Kitchens/Bathrooms,Repairs,31-Jan-23,2223/11,SME,N,
10054426,PUBLIC SEWER SERVICES,350,Kitchens/Bathrooms,Repairs,31-Jan-23,2223/11,SME,N,
10054429,PUBLIC SEWER SERVICES,"1,685.38",Sewage Treatment Works,Repairs,31-Jan-23,2223/11,SME,N,
10054433,PUBLIC SEWER SERVICES,"2,220.97",Unadopted Drains & Sewers,Repairs,31-Jan-23,2223/11,SME,N,
10054167,PRIVATE LANDLORD,680,Guaranteed Rent Scheme,Rent Payable,30-Jan-23,2223/11,ST,N,
10054895,PRIVATE LANDLORD,680,Guaranteed Rent Scheme,Rent Payable,27-Feb-23,2223/11,ST,N,
10054269,THE STOWMARKET GLASS COMPANY LTD,362.85,Building Services,Repairs,05-Jan-23,2223/11,SME,N,
10054271,THE STOWMARKET GLASS COMPANY LTD,536.25,Building Services,Repairs,05-Jan-23,2223/11,SME,N,
10054275,THE STOWMARKET GLASS COMPANY LTD,303.85,Window & Door Rplcmts,Repairs,11-Jan-23,2223/11,SME,N,
10054637,ASPECT CONTRACTS LTD,"7,267.00",Asbestos,Improvements,13-Feb-23,2223/11,LGE,N,
10054786,SUPERSTRUCTURES LTD,325,Structural Works,Prof & Consultancy Fees,31-Jan-23,2223/11,SME,N,
20028270,RIX PETROLEUM (EAST ANGLIA) LTD,148.88,Wenham Depot,Heating Oil,02-Feb-23,2223/11,SME,Y,50%
20028270,RIX PETROLEUM (EAST ANGLIA) LTD,"1,328.50",Open Spaces,Plant & Vehicle Fuel,02-Feb-23,2223/11,SME,Y,50%
20028270,RIX PETROLEUM (EAST ANGLIA) LTD,"5,456.89",Tenancy Services,Heating Oil,02-Feb-23,2223/11,SME,N,
10054526,SUDBURY PRINT GROUP LTD,127.76,Tenancy Services,Stationery,07-Feb-23,2223/11,SME,Y,50%
10054526,SUDBURY PRINT GROUP LTD,152.24,Tenants Forum,Misc Supplies & Services Costs,07-Feb-23,2223/11,SME,Y,50%
10054147,NORTHUMBRIAN WATER LTD,69.51,Chilton Depot,Legionella Testing,27-Jan-23,2223/11,LGE,Y,50%
10054147,NORTHUMBRIAN WATER LTD,37.7,HQ Energy,Legionella Testing,27-Jan-23,2223/11,LGE,N,
10054147,NORTHUMBRIAN WATER LTD,293.68,Sheltered Accommodation,Legionella Testing,27-Jan-23,2223/11,LGE,N,
10054147,NORTHUMBRIAN WATER LTD,101.37,Temporary Accommodation,Legionella Testing,27-Jan-23,2223/11,LGE,N,
10054147,NORTHUMBRIAN WATER LTD,254.87,Tenancy Services,Legionella Testing,27-Jan-23,2223/11,LGE,N,
10054147,NORTHUMBRIAN WATER LTD,31.86,Wenham Depot,Legionella Testing,27-Jan-23,2223/11,LGE,Y,50%
10054402,STORETEC SERVICES LTD,626.58,ICT,"Equipment, Tools & Materials",31-Jan-23,2223/11,SME,Y,50%
10053939,GIPPING OCCUPATIONAL HEALTH LTD,873,Health & Safety,Contracted Services,19-Jan-23,2223/11,SME,Y,50%
10054717,GIPPING OCCUPATIONAL HEALTH LTD,747,Health & Safety,Contracted Services,17-Feb-23,2223/11,SME,Y,50%
10054245,AIRMAX REMOTE LTD,459.61,Building Services,Plant & Vehicle - Other costs,31-Jan-23,2223/11,SME,Y,50%
10054239,GRAVITAS RECRUITMENT GROUP LTD,"2,000.00",ICT,Agency Staff,01-Feb-23,2223/11,LGE,Y,50%
10054411,GRAVITAS RECRUITMENT GROUP LTD,"2,500.00",ICT,Agency Staff,07-Feb-23,2223/11,LGE,Y,50%
10054644,GRAVITAS RECRUITMENT GROUP LTD,"2,000.00",ICT,Agency Staff,15-Feb-23,2223/11,LGE,Y,50%
10054732,GRAVITAS RECRUITMENT GROUP LTD,"2,500.00",ICT,Agency Staff,20-Feb-23,2223/11,LGE,Y,50%
10054215,JOHN FORD GROUP LTD,"6,017.90",Mand Disabled Facilities Grant,Grants,24-Jan-23,2223/11,SME,N,
10054166,SUDBURYS,825,Guaranteed Rent Scheme,Rent Payable,30-Jan-23,2223/11,SME,N,
10054690,SUDBURYS,440,Guaranteed Rent Scheme,Rent Payable,20-Feb-23,2223/11,SME,N,
10054894,SUDBURYS,825,Guaranteed Rent Scheme,Rent Payable,27-Feb-23,2223/11,SME,N,
10054379,WILLIAM H BROWN ESTATE AGENTS - SUDBURY,725,Guaranteed Rent Scheme,Rent Payable,06-Feb-23,2223/11,SME,N,
10054383,WILLIAM H BROWN ESTATE AGENTS - SUDBURY,925,Guaranteed Rent Scheme,Rent Payable,06-Feb-23,2223/11,SME,N,
10054192,SOCOTEC UK LIMITED,910.8,Environmental Protection,Contracted Services,30-Jan-23,2223/11,SME,N,
10054248,ABBEYCROFT LEISURE,"3,825.00",Holiday Activity Funding,"Equipment, Tools & Materials",12-Oct-22,2223/11,LGE,N,
10054249,ABBEYCROFT LEISURE,"2,040.00",Holiday Activity Funding,"Equipment, Tools & Materials",11-Nov-22,2223/11,LGE,N,
10054632,ABBEYCROFT LEISURE,"1,020.00",Holiday Activity Funding,"Equipment, Tools & Materials",14-Feb-23,2223/11,LGE,N,
10054019,EARTH ANCHORS LTD,"1,027.00",Neighbourhood Services,Neighbourhood Improvement Proj,18-Jan-23,2223/11,SME,N,
10054227,HAMSON BARRON SMITH LTD,"1,100.00",Assets & Development,Prof & Consultancy Fees,31-Jan-23,2223/11,LGE,N,
10054255,A C LEIGH (NORWICH) LTD,316.08,Building Services,"Equipment, Tools & Materials",30-Jan-23,2223/11,SME,N,
10054750,A C LEIGH (NORWICH) LTD,530.84,Building Services,"Equipment, Tools & Materials",16-Feb-23,2223/11,SME,N,
10054435,SUFFOLK POWER EQUIPMENT,"1,424.00",Open Spaces,"Equipment, Tools & Materials",07-Feb-23,2223/11,ST,N,
10054484,DAVID STAGG & ASSOCIATES LTD T/A DSA ELE,"3,748.39",Rewiring,Major Contracts,08-Feb-23,2223/11,SME,N,
10054561,3 POINT PROPERTY MANAGEMENT LTD,580,Guaranteed Rent Scheme,Rent Payable,13-Feb-23,2223/11,SME,N,
10054150,CHUBB - PENDANT & LANYARD ONLY,282.16,Sheltered Accommodation,Community Alarm Costs,24-Jan-23,2223/11,LGE,N,
10054706,CHUBB - PENDANT & LANYARD ONLY,437.16,Sheltered Accommodation,Community Alarm Costs,14-Feb-23,2223/11,LGE,N,
10054353,STAGE EVENT SECURITY LTD,"1,395.00",Open Spaces,Contracted Services,02-Feb-23,2223/11,SME,N,
10054185,HUGHES TRADE,269.26,Temporary Accommodation,Furniture,30-Jan-23,2223/11,LGE,N,
10054709,HUGHES TRADE,277.93,Homes for Ukraine,Furniture,17-Feb-23,2223/11,LGE,N,
10054038,WASHCO LTD,753.37,Sheltered Accommodation,Repairs,23-Jan-23,2223/11,SME,N,
10053865,ANGLIA COMMERCIAL FLOORING LTD,512.25,Building Services,Repairs,17-Jan-23,2223/11,SME,N,
10053866,ANGLIA COMMERCIAL FLOORING LTD,"1,542.00",Building Services,Repairs,17-Jan-23,2223/11,SME,N,
10054016,ANGLIA COMMERCIAL FLOORING LTD,661.39,Kitchens/Bathrooms,Repairs,23-Jan-23,2223/11,SME,N,
10054320,ANGLIA COMMERCIAL FLOORING LTD,443.38,Voids Maintenance,Repairs,02-Feb-23,2223/11,SME,N,
10054321,ANGLIA COMMERCIAL FLOORING LTD,557.17,Voids Maintenance,Repairs,02-Feb-23,2223/11,SME,N,
10054322,ANGLIA COMMERCIAL FLOORING LTD,353.13,Voids Maintenance,Repairs,02-Feb-23,2223/11,SME,N,
10054386,ANGLIA COMMERCIAL FLOORING LTD,491.65,Kitchens/Bathrooms,Repairs,06-Feb-23,2223/11,SME,N,
10054391,ANGLIA COMMERCIAL FLOORING LTD,"1,358.85",Voids Maintenance,Repairs,06-Feb-23,2223/11,SME,N,
10054756,ANGLIA COMMERCIAL FLOORING LTD,601.26,Building Services,Repairs,20-Feb-23,2223/11,SME,N,
10054759,ANGLIA COMMERCIAL FLOORING LTD,721.51,Kitchens/Bathrooms,Repairs,20-Feb-23,2223/11,SME,N,
20028283,ANGLIAN WATER BUS (NAT) LTD T/A WAVE,128.38,C Parks General,Water Rates - Metered,12-Feb-23,2223/11,LGE,N,
20028283,ANGLIAN WATER BUS (NAT) LTD T/A WAVE,"-1,471.92",Chilton Depot,Water Rates - Metered,12-Feb-23,2223/11,LGE,Y,50%
20028283,ANGLIAN WATER BUS (NAT) LTD T/A WAVE,4.1,Friars Meadow Sudb,Water Rates - Metered,12-Feb-23,2223/11,LGE,N,
20028283,ANGLIAN WATER BUS (NAT) LTD T/A WAVE,44.81,General Rechargeable Works,Misc Supplies & Services Costs,12-Feb-23,2223/11,LGE,N,
20028283,ANGLIAN WATER BUS (NAT) LTD T/A WAVE,60.89,HQ Energy,Water Rates - Metered,12-Feb-23,2223/11,LGE,N,
20028283,ANGLIAN WATER BUS (NAT) LTD T/A WAVE,412.33,Public Conveniences,Water Rates - Metered,12-Feb-23,2223/11,LGE,N,
20028283,ANGLIAN WATER BUS (NAT) LTD T/A WAVE,"3,689.27",Sheltered Accommodation,Water Rates - Metered,12-Feb-23,2223/11,LGE,N,
20028283,ANGLIAN WATER BUS (NAT) LTD T/A WAVE,847.47,Temporary Accommodation,Water Rates - Metered,12-Feb-23,2223/11,LGE,N,
20028283,ANGLIAN WATER BUS (NAT) LTD T/A WAVE,-334.64,Tenancy Services,Water Rates - Metered,12-Feb-23,2223/11,LGE,N,
10054436,STUDLEY CAPITAL LIMITED,"3,325.00",Hamilton Road Regeneration,Prof & Consultancy Fees,07-Feb-23,2223/11,ST,N,
10054557,SMARTSHEET,"3,360.00",HRA Strategic Property,Contracted Services,12-Sep-22,2223/11,LGE,Y,50%
10054247,GREENACRE RECRUITMENT LTD,"3,248.80",Management Team,Agency Staff,01-Feb-23,2223/11,SME,Y,50%
10054539,GREENACRE RECRUITMENT LTD,"3,282.55",Management Team,Agency Staff,09-Feb-23,2223/11,SME,Y,50%
10054668,GREENACRE RECRUITMENT LTD,"3,223.60",Management Team,Agency Staff,16-Feb-23,2223/11,SME,Y,50%
10054803,GREENACRE RECRUITMENT LTD,"2,961.90",Management Team,Agency Staff,22-Feb-23,2223/11,SME,Y,50%
10054196,KERSEY VILLAGE HALL,500,Grants & Contrbns,Contributions & Donations,30-Jan-23,2223/11,SME,N,
10053988,LAYHAM VILLAGE HALL,400,Grants & Contrbns,Contributions & Donations,20-Jan-23,2223/11,SME,N,
10054660,NAYLAND VILLAGE HALL,"2,641.00",Grants & Contrbns,Contributions & Donations,15-Feb-23,2223/11,SME,N,
10054240,BABERGH GROWTH LTD,"2,048.89","Norman Way, Lavenham S106",Prof & Consultancy Fees,31-Jan-23,2223/11,SME,N,
10054246,TIAA LTD,"4,506.38",Internal Audit,Contracted Services,01-Feb-23,2223/11,SME,Y,50%
10054398,BYCHOICE LTD,"1,800.00","Melford Rd, Lavenham S106",Prof & Consultancy Fees,31-Jan-23,2223/11,SME,N,
10054692,BYCHOICE LTD,950,Guaranteed Rent Scheme,Rent Payable,20-Feb-23,2223/11,SME,N,
10054936,MAN WITH A VAN SUDBURY,610,Homeless Prevention Fund,Misc Supplies & Services Costs,27-Feb-23,2223/11,SME,N,
10054207,WATERLOGIC,363.02,Chilton Depot,Contracted Services,15-Dec-22,2223/11,LGE,Y,50%
10054694,REEFER PROPERTIES LTD,695,Guaranteed Rent Scheme,Rent Payable,20-Feb-23,2223/11,SME,N,
10054197,WADDINGTON BROWN LTD,967.12,Organisational Devt,Agency Staff,30-Jan-23,2223/11,SME,Y,50%
10054198,WADDINGTON BROWN LTD,906.68,Organisational Devt,Agency Staff,30-Jan-23,2223/11,SME,Y,50%
10054633,WADDINGTON BROWN LTD,854.08,Organisational Devt,Agency Staff,13-Feb-23,2223/11,SME,Y,50%
10054634,WADDINGTON BROWN LTD,942,Organisational Devt,Agency Staff,13-Feb-23,2223/11,SME,Y,50%
10054795,WADDINGTON BROWN LTD,904.32,Organisational Devt,Agency Staff,20-Feb-23,2223/11,SME,Y,50%
10054431,ACORN MOBILITY SERVICES LTD,"4,780.00",Mand Disabled Facilities Grant,Grants,07-Feb-23,2223/11,LGE,N,
10054168,PRIVATE LANDLORD,515,Guaranteed Rent Scheme,Rent Payable,30-Jan-23,2223/11,ST,N,
10054891,PRIVATE LANDLORD,515,Guaranteed Rent Scheme,Rent Payable,27-Feb-23,2223/11,ST,N,
10054302,GREGG BROWN PHOTOGRAPHY,285,Regen Fund - HQ Sites,Advertising&mkting (non-staff),02-Feb-23,2223/11,ST,N,
10054188,PRIVATE LANDLORD,675,Guaranteed Rent Scheme,Rent Payable,30-Jan-23,2223/11,ST,N,
10054564,PRIVATE LANDLORD,675,Guaranteed Rent Scheme,Rent Payable,13-Feb-23,2223/11,ST,N,
10054911,PRIVATE LANDLORD,675,Guaranteed Rent Scheme,Rent Payable,27-Feb-23,2223/11,ST,N,
10054691,PRIVATE LANDLORD,700,Guaranteed Rent Scheme,Rent Payable,20-Feb-23,2223/11,ST,N,
10054846,EASTLIGHT COMMUNITY HOMES,"1,700.00",Household Support Grant,Misc Supplies & Services Costs,23-Feb-23,2223/11,SME,N,
10054715,PRIVATE LANDLORD,"1,198.00",Guaranteed Rent Scheme,Rent Payable,20-Feb-23,2223/11,ST,N,
10053767,BUCHER MUNICIPAL LTD,818.48,Street & Major Road Cleansing,Plant & Vehicle - Other costs,06-Jan-23,2223/11,LGE,N,
10054577,PAUL WRIGHT & CO,500,Guaranteed Rent Scheme,Rent Payable,13-Feb-23,2223/11,SME,N,
10054173,SEQUENCE UK LTD (WILLIAM H BROWN),700,Guaranteed Rent Scheme,Rent Payable,30-Jan-23,2223/11,LGE,N,
10054713,PRIVATE LANDLORD,550,Guaranteed Rent Scheme,Rent Payable,20-Feb-23,2223/11,ST,N,
10054189,PRIVATE LANDLORD,700,Guaranteed Rent Scheme,Rent Payable,30-Jan-23,2223/11,ST,N,
10054912,PRIVATE LANDLORD,700,Guaranteed Rent Scheme,Rent Payable,27-Feb-23,2223/11,ST,N,
10054684,CONSTABLE MEMORIAL HALL EAST BERGHOLT,"6,730.83",Grants & Contrbns,Grants,17-Feb-23,2223/11,SME,N,
10054494,LNRS DATA SERVICES LTD,"1,775.00",Organisational Devt,Professional Subs (Staff),01-Feb-23,2223/11,LGE,Y,50%
10054169,PRIVATE LANDLORD,490,Guaranteed Rent Scheme,Rent Payable,30-Jan-23,2223/11,ST,N,
10054380,PRIVATE LANDLORD,"1,320.00",Guaranteed Rent Scheme,Rent Payable,06-Feb-23,2223/11,ST,N,
10054892,PRIVATE LANDLORD,490,Guaranteed Rent Scheme,Rent Payable,27-Feb-23,2223/11,ST,N,
10053888,SUFFOLK DOORS & WINDOWS LTD,"1,080.00",Window & Door Rplcmts,BMBS Repairs Work,18-Jan-23,2223/11,SME,N,
10054125,SUFFOLK DOORS & WINDOWS LTD,"1,952.00",Window & Door Rplcmts,Repairs,26-Jan-23,2223/11,SME,N,
10054414,SUFFOLK DOORS & WINDOWS LTD,"1,200.00",Window & Door Rplcmts,Repairs,02-Feb-23,2223/11,SME,N,
10054685,SUFFOLK DOORS & WINDOWS LTD,"4,400.00",Major Imps,Repairs,16-Feb-23,2223/11,SME,N,
10054389,PRIVATE LANDLORD,786.5,Guaranteed Rent Scheme,Rent Payable,06-Feb-23,2223/11,ST,N,
10054354,EASTLIGHT HOMES (GREENACRES),"3,134.20",Household Support Grant,Misc Supplies & Services Costs,03-Feb-23,2223/11,SME,N,
10054575,PRIVATE LANDLORD,650,Guaranteed Rent Scheme,Rent Payable,13-Feb-23,2223/11,ST,N,
10054299,COUNTRYSTYLE RECYCLING LTD,"5,651.92",Bring Sites,Contracted Services,31-Jan-23,2223/11,SME,N,
10054403,ANDERSON DESIGN & BUILD LIMITED,"194,890.60",Waldingfield Rd S106 Andersons,Prof & Consultancy Fees,31-Jan-23,2223/11,SME,N,
10054374,PRIVATE LANDLORD,700,Guaranteed Rent Scheme,Rent Payable,06-Feb-23,2223/11,ST,N,
10054378,PRIVATE LANDLORD,800,Guaranteed Rent Scheme,Rent Payable,06-Feb-23,2223/11,ST,N,
10054417,R HARBORNE PLUMBING SERVICES,"5,820.00",Mand Disabled Facilities Grant,Grants,07-Feb-23,2223/11,SME,N,
10054364,PRIVATE LANDLORD,800,Guaranteed Rent Scheme,Rent Payable,06-Feb-23,2223/11,ST,N,
10054073,ARAN INSULATION LTD,699.96,Insulation Imps,Improvements,25-Jan-23,2223/11,SME,N,
10054370,ARAN INSULATION LTD,"1,294.21",Insulation Imps,Improvements,06-Feb-23,2223/11,SME,N,
10054371,ARAN INSULATION LTD,"2,169.62",Insulation Imps,Improvements,06-Feb-23,2223/11,SME,N,
10054372,ARAN INSULATION LTD,"3,947.91",Insulation Imps,Improvements,06-Feb-23,2223/11,SME,N,
10054394,ARAN INSULATION LTD,"18,190.26",Insulation Imps,Improvements,06-Feb-23,2223/11,SME,N,
10054467,ARAN INSULATION LTD,825.72,Insulation Imps,Improvements,27-Jan-23,2223/11,SME,N,
10054468,ARAN INSULATION LTD,"1,090.00",Insulation Imps,Improvements,02-Feb-23,2223/11,SME,N,
10054469,ARAN INSULATION LTD,"3,427.89",Insulation Imps,Improvements,27-Jan-23,2223/11,SME,N,
10054626,ARAN INSULATION LTD,813.43,Insulation Imps,Improvements,14-Feb-23,2223/11,SME,N,
10054174,PRIVATE LANDLORD,500,Guaranteed Rent Scheme,Rent Payable,30-Jan-23,2223/11,ST,N,
10054693,PRIVATE LANDLORD,580,Guaranteed Rent Scheme,Rent Payable,20-Feb-23,2223/11,ST,N,
10054913,PRIVATE LANDLORD,500,Guaranteed Rent Scheme,Rent Payable,27-Feb-23,2223/11,ST,N,
10054171,PRIVATE LANDLORD,575,Guaranteed Rent Scheme,Rent Payable,30-Jan-23,2223/11,ST,N,
10054910,PRIVATE LANDLORD,575,Guaranteed Rent Scheme,Rent Payable,27-Feb-23,2223/11,ST,N,
10054667,POLYSOLAR LTD,"22,232.29",Public Sector Decarbonisation,Contracted Services,08-Feb-23,2223/11,SME,N,
10053879,URBA,570,Devt Management -Applications,Viability,18-Jan-23,2223/11,SME,N,
10054737,URBA,"3,102.50",Devt Management -Applications,Viability,10-Feb-23,2223/11,SME,N,
10054893,IPSERV LTD,466.5,Central Printing,Commercial Printing,15-Feb-23,2223/11,SME,N,
10054893,IPSERV LTD,696.21,Communications,Commercial Printing,15-Feb-23,2223/11,SME,N,
10054559,SSE,440.85,Other Temp Accommodation,Electricity,05-Jan-23,2223/11,LGE,N,
10054560,SSE,535.96,Other Temp Accommodation,Gas,05-Jan-23,2223/11,LGE,N,
10054623,SSE,306.85,Other Temp Accommodation,Electricity,07-Feb-23,2223/11,LGE,N,
10054488,JACKSON LIFT SERVICES LTD,525,Sheltered Accommodation,Plant Maintenance,03-Feb-23,2223/11,LGE,N,
10054696,DAVID BURR LETTINGS,750,Guaranteed Rent Scheme,Rent Payable,20-Feb-23,2223/11,SME,N,
10053704,FOURWAYS VEHICLE SOLUTIONS LTD,726.6,Open Spaces,"Equipment, Tools & Materials",06-Jan-23,2223/11,SME,N,
10053739,START AFRESH CLEANING LTD,623.67,Open Spaces,Cleaning Materials,31-Dec-22,2223/11,SME,N,
10054548,START AFRESH CLEANING LTD,515.67,Open Spaces,Grounds & Site Maintenance,31-Jan-23,2223/11,SME,N,
10054567,PRIVATE LANDLORD,715,Guaranteed Rent Scheme,Rent Payable,13-Feb-23,2223/11,ST,N,
10054482,THE PLANNING INSPECTORATE,"21,726.84",Devt Policy & Local Plans,Prof & Consultancy Fees,06-Feb-23,2223/11,LGE,Y,50%
10054697,PRIVATE LANDLORD,500,Guaranteed Rent Scheme,Rent Payable,20-Feb-23,2223/11,ST,N,
10054307,METRIC GROUP LTD,"1,200.00",C Parks General,Software Licnse (Line of Bus) ,31-Jan-23,2223/11,SME,N,
10054313,METRIC GROUP LTD,"2,000.00",C Parks General,Software Licnse (Line of Bus) ,31-Jan-23,2223/11,SME,N,
10054597,KEYS REMOVALS LTD,469.43,Homeless Prevention Fund,Removal Expenses,20-Jan-23,2223/11,SME,N,
10054661,ANGLIA SPORTS MANAGEMENT LTD,750,Holiday Activity Funding,"Equipment, Tools & Materials",02-Feb-23,2223/11,SME,N,
10054764,ANGLIA SPORTS MANAGEMENT LTD,"1,797.50",Holiday Activity Funding,"Equipment, Tools & Materials",30-Jan-23,2223/11,SME,N,
10054573,PRIVATE LANDLORD,675,Guaranteed Rent Scheme,Rent Payable,13-Feb-23,2223/11,ST,N,
20028276,PRIVATE LANDLORD,325.02,Guaranteed Rent Scheme,Rent Payable,10-Feb-23,2223/11,ST,N,
10054210,PRIVATE LANDLORD,650,Guaranteed Rent Scheme,Rent Payable,31-Jan-23,2223/11,ST,N,
10054576,PRIVATE LANDLORD,650,Guaranteed Rent Scheme,Rent Payable,13-Feb-23,2223/11,ST,N,
10054714,PRIVATE LANDLORD,650,Guaranteed Rent Scheme,Rent Payable,20-Feb-23,2223/11,ST,N,
10054547,BELL CONTAINER TRADING LTD,695.27,Public Realm TransitionProject,"Equipment, Tools & Materials",25-Jan-23,2223/11,SME,N,
10054797,SANCTUARY HOUSING ASSOCIATION,373.45,Homeless Prevention Fund,Misc Supplies & Services Costs,22-Feb-23,2223/11,SME,N,
10054678,FOREST FOR OUR CHILDREN,"1,000.00",Grants & Contrbns,Contributions & Donations,16-Feb-23,2223/11,SME,N,
10054460,MINI WASTE LTD,645,Open Spaces,Waste Disposal,31-Jan-23,2223/11,SME,N,
10054311,MAXIM SPORTS COACHING,295,Holiday Activity Funding,"Equipment, Tools & Materials",02-Feb-23,2223/11,SME,N,
10054312,MAXIM SPORTS COACHING,"1,045.00",Holiday Activity Funding,"Equipment, Tools & Materials",02-Feb-23,2223/11,SME,N,
10054563,PRIVATE LANDLORD,695,Guaranteed Rent Scheme,Rent Payable,13-Feb-23,2223/11,ST,N,
10054241,GB GEOTECHNICS LTD,"8,510.00",Kingfisher Leisure Centre,Repairs,30-Jan-23,2223/11,SME,N,
10054688,HAMILTON SMITH LETTINGS,670,Guaranteed Rent Scheme,Rent Payable,20-Feb-23,2223/11,SME,N,
20028275,HAMILTON SMITH LETTINGS,262.88,Guaranteed Rent Scheme,Rent Payable,08-Feb-23,2223/11,SME,N,
10054390,JB PROPERTY SOLUTIONS (SUFFOLK) LTD T/A,455,Guaranteed Rent Scheme,Rent Payable,06-Feb-23,2223/11,SME,N,
10054558,KBM HOUSE SHARE & PROPERTY MANAGEMENT LT,550,Guaranteed Rent Scheme,Rent Payable,13-Feb-23,2223/11,SME,N,
10054477,PAY 360 LIMITED,950.86,Bank Chgs,Bank Charges,08-Feb-23,2223/11,LGE,Y,50%
10054501,PAY 360 LIMITED,"4,283.97",Bank Chgs,Bank Charges,09-Feb-23,2223/11,LGE,N,
10054562,PRIVATE LANDLORD,550,Guaranteed Rent Scheme,Rent Payable,13-Feb-23,2223/11,ST,N,
10054689,PRIVATE LANDLORD,885,Guaranteed Rent Scheme,Rent Payable,20-Feb-23,2223/11,ST,N,
10054833,HADLEIGH CYCLING CLUB,270,Womens Cycle Tour,"Equipment, Tools & Materials",23-Feb-23,2223/11,SME,N,
10054568,PRIVATE LANDLORD,750,Guaranteed Rent Scheme,Rent Payable,13-Feb-23,2223/11,ST,N,
10054687,PRIVATE LANDLORD,575,Guaranteed Rent Scheme,Rent Payable,20-Feb-23,2223/11,ST,N,
10054292,AESTIMA LTD,340,Building Services,BMBS Repairs Work,23-Nov-22,2223/11,SME,N,
10054195,NEWSQUEST MEDIA GROUP,"1,065.59",Hadleigh A1071 Workspace,Prof & Consultancy Fees,27-Jan-23,2223/11,LGE,N,
10054480,NEWSQUEST MEDIA GROUP,"1,054.72",Devt Management -Applications,Advertising&mkting (non-staff),08-Feb-23,2223/11,LGE,N,
10054674,NEWSQUEST MEDIA GROUP,824,Devt Management -Applications,Advertising&mkting (non-staff),15-Feb-23,2223/11,LGE,N,
10054806,NEWSQUEST MEDIA GROUP,824,Devt Management -Applications,Advertising&mkting (non-staff),22-Feb-23,2223/11,LGE,N,
10054889,NEWSQUEST MEDIA GROUP,659.2,Taxi & Private Hire Licensing,Advertising&mkting (non-staff),24-Feb-23,2223/11,LGE,N,
10054612,BELL DECORATING GROUP LTD,"17,260.23",Planned Maint - Ext Painting,Major Contracts,13-Feb-23,2223/11,LGE,N,
10054791,IMTECH INVIRON LIMITED,"60,000.00",Pld Maint/Enhncmts-Corp Bldgs,Improvements,22-Feb-23,2223/11,LGE,Y,50%
10054253,MARKS CONSULTING PARTNERS LIMTED,"1,700.00",Building Servs Tech Staff,Agency Staff,01-Feb-23,2223/11,SME,Y,50%
10054475,MARKS CONSULTING PARTNERS LIMTED,"1,700.00",Building Servs Tech Staff,Agency Staff,08-Feb-23,2223/11,SME,Y,50%
10054648,MARKS CONSULTING PARTNERS LIMTED,"1,700.00",Building Servs Tech Staff,Agency Staff,15-Feb-23,2223/11,SME,Y,50%
10054800,MARKS CONSULTING PARTNERS LIMTED,"1,900.00",Building Servs Tech Staff,Agency Staff,22-Feb-23,2223/11,SME,Y,
10054034,FAITHORN FARRELL TIMMS,975,HRA Strategic Property,Prof & Consultancy Fees,20-Dec-22,2223/11,SME,Y,50%
10054256,FAITHORN FARRELL TIMMS,"2,500.00",HRA Strategic Property,Contracted Services,31-Jan-23,2223/11,SME,Y,50%
10053661,GCS COMPLIANCE LTD,442.5,Building Services,Prof & Consultancy Fees,31-Dec-22,2223/11,SME,N,
10054412,GCS COMPLIANCE LTD,"1,281.82",Building Services,Prof & Consultancy Fees,31-Jan-23,2223/11,SME,N,
10054388,SOCITM ADVISORY LTD,"17,025.00",ICT - Finance System,Contracted Services,02-Feb-23,2223/11,SME,Y,50%
10054602,GREENHALGH KERR,"1,368.00",Shared Revenues Partnership,Misc Supplies & Services Costs,31-Jan-23,2223/11,SME,N,
10054603,GREENHALGH KERR,"1,026.00",Shared Revenues Partnership,Misc Supplies & Services Costs,22-Dec-22,2223/11,SME,N,
10054204,PRIVATE LANDLORD,575,Guaranteed Rent Scheme,Rent Payable,31-Jan-23,2223/11,ST,N,
10054251,PRECISION RESOURCE GROUP LTD T/A PANORAM,"2,812.50",HRA Strategic Property,Agency Staff,01-Feb-23,2223/11,LGE,Y,50%
10054483,PRECISION RESOURCE GROUP LTD T/A PANORAM,"2,812.50",HRA Strategic Property,Agency Staff,08-Feb-23,2223/11,LGE,Y,50%
10054658,PRECISION RESOURCE GROUP LTD T/A PANORAM,"2,812.50",HRA Strategic Property,Agency Staff,15-Feb-23,2223/11,LGE,Y,50%
10054811,PRECISION RESOURCE GROUP LTD T/A PANORAM,"2,812.50",HRA Strategic Property,Agency Staff,22-Feb-23,2223/11,LGE,Y,50%
10054843,CUTLERS WOOD LTD,465,Homeless Prevention Fund,Misc Supplies & Services Costs,14-Feb-23,2223/11,SME,N,
10054897,CUTLERS WOOD LTD,"7,479.80",Homelessness Private Sector,Misc Supplies & Services Costs,24-Feb-23,2223/11,SME,N,
20028278,CUTLERS WOOD LTD,750,Guaranteed Rent Scheme,Rent Payable,15-Feb-23,2223/11,SME,N,
10054695,PRIVATE LANDLORD,575,Guaranteed Rent Scheme,Rent Payable,20-Feb-23,2223/11,ST,N,
10054705,R G MAINTENANCE SERVICES LTD,300,Neighbourhood Services,Neighbourhood Improvement Proj,17-Feb-23,2223/11,SME,N,
10054393,HOME TO RENT LTD,975,Guaranteed Rent Scheme,Rent Payable,06-Feb-23,2223/11,SME,N,
10054392,PRIVATE LANDLORD,"1,000.00",Guaranteed Rent Scheme,Rent Payable,06-Feb-23,2223/11,ST,N,
10054495,APROPOS TRAINING LIMITED,"1,020.00",Health & Safety,Training,08-Feb-23,2223/11,SME,Y,50%
10054509,MORE IQ LIMITED,"3,200.00",Building Services,Prof & Consultancy Fees,10-Feb-23,2223/11,SME,Y,50%
10054810,LAPWING SUFFOLK LTD,"10,800.00",Shared Prosperity Fund,Contributions & Donations,22-Feb-23,2223/11,SME,N,
10054128,B A TURNER SITE INVESTIGATION LTD,440,Roads and Paths,Prof & Consultancy Fees,26-Jan-23,2223/11,SME,N,
10054323,EMBRIDGE CONSULTING (UK) LTD,"2,550.00",ICT - Finance System,Prof & Consultancy Fees,31-Jan-23,2223/11,SME,Y,50%
10054315,HIREBASE (HUWS GRAY LTD),324.3,Assets & Development,Repairs,31-Jan-23,2223/11,LGE,N,
10054698,BUTCHER ANDREWS SOLICITORS,910.8,Renovation/Home Repair Grants,Grants,17-Feb-23,2223/11,SME,N,
20028284,SEFE ENERGY LIMITED,479.09,Belle Vue House,Gas,16-Feb-23,2223/11,LGE,N,
20028284,SEFE ENERGY LIMITED,71.18,HQ Energy,Gas,16-Feb-23,2223/11,LGE,N,
20028284,SEFE ENERGY LIMITED,"6,090.18",Sheltered Accommodation,Gas,16-Feb-23,2223/11,LGE,N,
20028284,SEFE ENERGY LIMITED,671.42,Temporary Accommodation,Gas,16-Feb-23,2223/11,LGE,N,
10054170,HADLEIGH & DISTRICT ANGLING SOCIETY,500,Grants & Contrbns,Contributions & Donations,27-Jan-23,2223/11,SME,N,
10054190,HIGH STREET SOLICITORS,"4,000.00",Building Services,BMBS Repairs Work,30-Jan-23,2223/11,SME,N,
10054209,SUFFOLK BEFRIENDING SCHEME FOR PEOPLE WI,"42,630.02",CIL Funded REFCUS,Grants,31-Jan-23,2223/11,SME,N,
10054518,SUFFOLK BEFRIENDING SCHEME FOR PEOPLE WI,"18,276.59",CIL Funded REFCUS,Grants,09-Feb-23,2223/11,SME,N,
10054413,THE FLOWER SHOP,502.5,Cost of Democracy,Chairman's Expenses,26-Jan-23,2223/11,SME,N,
10054533,BURES BAPTIST CHURCH,"1,000.00",CCB Warm Spaces,"Equipment, Tools & Materials",09-Feb-23,2223/11,SME,N,
10054541,PRIVATE LANDLORD,"1,550.00",Homeless Prevention Fund,Misc Supplies & Services Costs,09-Feb-23,2223/11,SME,N,
10054524,AWH LEGAL LTD,"1,400.00",Building Services,BMBS Repairs Work,10-Feb-23,2223/11,SME,N,
10054517,ALTON PLUMBING LTD,"4,441.28",Renovation/Home Repair Grants,Grants,09-Feb-23,2223/11,SME,N,
10054772,GLEMSFORD COFFEE MORNING,300,Grants & Contrbns,Contributions & Donations,21-Feb-23,2223/11,SME,N,
311,SSE,-440.85,Other Temp Accommodation,Electricity,15-Feb-23,2223/11,LGE,N,
10054942,AARON SERVICES LTD,"28,814.11",Planned Maint - Heating,Property Servicing,24-Feb-23,2223/12,SME,N,
10055052,AARON SERVICES LTD,"27,286.09",Planned Maint - Heating,Property Servicing,25-Jan-23,2223/12,SME,N,
20028289,AARON SERVICES LTD,"4,514.91",Current Liabilities,Cert IBS Creditors Holding ac,24-Feb-23,2223/12,SME,N,
20028296,AARON SERVICES LTD,"9,988.21",Current Liabilities,Cert IBS Creditors Holding ac,20-Feb-23,2223/12,SME,N,
20028297,AARON SERVICES LTD,"19,664.20",Current Liabilities,Cert IBS Creditors Holding ac,03-Mar-23,2223/12,SME,N,
20028298,AARON SERVICES LTD,"3,534.16",Current Liabilities,Cert IBS Creditors Holding ac,14-Mar-23,2223/12,SME,N,
20028313,AARON SERVICES LTD,"5,699.24",Current Liabilities,Cert IBS Creditors Holding ac,21-Mar-23,2223/12,SME,N,
10055197,AE WHITE SURFACING,372,Insurance Claims,Misc Premises Costs,28-Feb-23,2223/12,SME,N,
10055267,AE WHITE SURFACING,"1,350.00",Roads and Paths,Improvements,09-Mar-23,2223/12,SME,N,
10055268,AE WHITE SURFACING,"3,995.00",Chilton Depot,Grounds & Site Maintenance,09-Mar-23,2223/12,SME,Y,50%
10055317,AE WHITE SURFACING,"1,238.00",Public Tree Programme,Tree felling/maintenance,13-Mar-23,2223/12,SME,N,
10055648,AE WHITE SURFACING,"2,697.00",Building Services,Repairs,24-Mar-23,2223/12,SME,N,
10055018,ALPHETON GARAGE LTD,500,Taxi & Private Hire Licensing,Contracted Services,01-Mar-23,2223/12,SME,N,
10055199,BINDER LTD,124,Sewage Treatment Works,Contracted Services,07-Mar-23,2223/12,SME,N,
10055199,BINDER LTD,187,Sewage Treatment Works,Contracted Services,07-Mar-23,2223/12,SME,N,
10055064,BOTTOMLINE TECHNOLOGIES,701.21,ICT,Software Licnse (Line of Bus) ,28-Feb-23,2223/12,LGE,Y,50%
10055157,BOWER FULLER,"1,272.24",Temporary Accommodation,Electricity,28-Feb-23,2223/12,SME,N,
10055159,BOWER FULLER,"2,573.34",Sheltered Accommodation,Fire Prevention,28-Feb-23,2223/12,SME,N,
10055160,BOWER FULLER,832.24,Tenancy Services,Repairs,28-Feb-23,2223/12,SME,N,
10055161,BOWER FULLER,797.74,Tenancy Services,Repairs,28-Feb-23,2223/12,SME,N,
10055162,BOWER FULLER,865.28,Tenancy Services,Repairs,28-Feb-23,2223/12,SME,N,
10055163,BOWER FULLER,"3,347.03",Public Conveniences,Repairs,28-Feb-23,2223/12,SME,N,
10055164,BOWER FULLER,"1,827.15",Sheltered Accommodation,Fire Prevention,28-Feb-23,2223/12,SME,N,
10055165,BOWER FULLER,892.26,Sheltered Accommodation,Repairs,28-Feb-23,2223/12,SME,N,
10055166,BOWER FULLER,273.68,Tenancy Services,Repairs,28-Feb-23,2223/12,SME,N,
10055167,BOWER FULLER,"2,560.03",Sheltered Accommodation,Fire Prevention,28-Feb-23,2223/12,SME,N,
10055168,BOWER FULLER,"2,394.06",Tenancy Services,Fire Prevention,28-Feb-23,2223/12,SME,N,
10055169,BOWER FULLER,"1,667.55",Tenancy Services,Fire Prevention,28-Feb-23,2223/12,SME,N,
10055170,BOWER FULLER,"1,073.29",Sheltered Accommodation,Repairs,28-Feb-23,2223/12,SME,N,
10055175,BOWER FULLER,256.47,Open Spaces,"Equipment, Tools & Materials",28-Feb-23,2223/12,SME,N,
10055438,BOWER FULLER,"17,065.99",Planned Maint - Heating,Property Servicing,16-Mar-23,2223/12,SME,N,
10055382,AQUASAMPLERS,775,Water Sampling,Sampling & Analysis,31-Jan-23,2223/12,SME,N,
10055273,CHAMBERLIN HALL,"13,709.39",Comm Devt Grants,Grants,10-Mar-23,2223/12,SME,N,
10055349,CHAPPLE SIGNS LTD,309.48,C Parks General,"Equipment, Tools & Materials",14-Mar-23,2223/12,SME,N,
10055235,CHIPSIDE LTD,435.84,C Parks General,Contracted Services,28-Feb-23,2223/12,SME,N,
10055696,CLARKE FENCING LTD,"1,050.00",Neighbourhood Services,Neighbourhood Improvement Proj,27-Mar-23,2223/12,SME,N,
10055697,CLARKE FENCING LTD,"1,950.00",Neighbourhood Services,Neighbourhood Improvement Proj,27-Mar-23,2223/12,SME,N,
10054711,D W ADAMS LTD,"1,806.00",Council House Adaptions,Improvements,17-Feb-23,2223/12,SME,N,
10055101,D W ADAMS LTD,"7,286.00",Council House Adaptions,Improvements,03-Mar-23,2223/12,SME,N,
10055102,D W ADAMS LTD,"1,694.00",Council House Adaptions,Improvements,03-Mar-23,2223/12,SME,N,
10055481,D W ADAMS LTD,"5,171.00",Council House Adaptions,Improvements,17-Mar-23,2223/12,SME,N,
10055800,D W ADAMS LTD,557,Building Services,Repairs,30-Mar-23,2223/12,SME,N,
10055801,D W ADAMS LTD,"5,833.00",Council House Adaptions,Improvements,30-Mar-23,2223/12,SME,N,
10055802,D W ADAMS LTD,361,Building Services,Repairs,30-Mar-23,2223/12,SME,N,
10055223,DMA HEALTH AND SAFETY LTD,462,Building Services,Training,08-Mar-23,2223/12,SME,Y,50%
10055724,DMA HEALTH AND SAFETY LTD,435,Structural Works,Prof & Consultancy Fees,28-Mar-23,2223/12,SME,N,
10055134,DOLPHIN STAIRLIFTS (EAST ANGLIA) LTD,"5,528.00",Mand Disabled Facilities Grant,Grants,07-Mar-23,2223/12,SME,N,
10055143,CIVICA ELECTION SERVICES,"1,170.58",Electoral Registration,Returning Officer Fees,16-Jan-23,2223/12,LGE,N,
10055150,CIVICA ELECTION SERVICES,"1,861.15",Electoral Registration,Returning Officer Fees,10-Jan-23,2223/12,LGE,N,
10055089,ENER-G SWITCH2 LTD,414.33,Temporary Accommodation,Repairs,01-Mar-23,2223/12,SME,N,
10055340,ENGLISH SECURITY,"2,424.80",Sheltered Accommodation,Fire Prevention,13-Mar-23,2223/12,SME,N,
10055684,ENGLISH SECURITY,285.44,Sheltered Accommodation,Fire Prevention,27-Mar-23,2223/12,SME,N,
10055819,ENGLISH SECURITY,779.04,Temporary Accommodation,Fire Prevention,30-Mar-23,2223/12,SME,N,
10055825,ENGLISH SECURITY,600,Sheltered Accommodation,Fire Prevention,30-Mar-23,2223/12,SME,N,
10055827,ENGLISH SECURITY,326.06,Sheltered Accommodation,Fire Prevention,30-Mar-23,2223/12,SME,N,
10055828,ENGLISH SECURITY,402.49,Tenancy Services,Fire Prevention,30-Mar-23,2223/12,SME,N,
10055832,ENGLISH SECURITY,866.63,Sheltered Accommodation,Fire Prevention,30-Mar-23,2223/12,SME,N,
10055837,ENGLISH SECURITY,358,Sheltered Accommodation,Fire Prevention,30-Mar-23,2223/12,SME,N,
10054934,FELLBRIDGE BUILDING SERVICES,810.49,Building Services,Repairs,27-Feb-23,2223/12,SME,N,
10055098,FELLBRIDGE BUILDING SERVICES,"6,349.29",Kitchens/Bathrooms,Repairs,03-Mar-23,2223/12,SME,N,
10055283,FELLBRIDGE BUILDING SERVICES,"14,312.23",Voids Maintenance,Repairs,10-Mar-23,2223/12,SME,N,
10055284,FELLBRIDGE BUILDING SERVICES,517.98,Building Services,Repairs,10-Mar-23,2223/12,SME,N,
10055285,FELLBRIDGE BUILDING SERVICES,432,Building Services,Repairs,10-Mar-23,2223/12,SME,N,
10055518,FELLBRIDGE BUILDING SERVICES,"17,254.15",Voids Maintenance,Repairs,20-Mar-23,2223/12,SME,N,
10055558,FELLBRIDGE BUILDING SERVICES,691.48,Building Services,Repairs,20-Mar-23,2223/12,SME,N,
10055611,FELLBRIDGE BUILDING SERVICES,867.68,Building Services,Repairs,23-Feb-23,2223/12,SME,N,
10055612,FELLBRIDGE BUILDING SERVICES,451.6,Building Services,Repairs,23-Feb-23,2223/12,SME,N,
10055613,FELLBRIDGE BUILDING SERVICES,345.48,Building Services,Repairs,23-Feb-23,2223/12,SME,N,
10055614,FELLBRIDGE BUILDING SERVICES,"5,654.50",Voids Maintenance,Repairs,23-Mar-23,2223/12,SME,N,
10055615,FELLBRIDGE BUILDING SERVICES,"4,220.14",Voids Maintenance,Repairs,23-Mar-23,2223/12,SME,N,
10055630,FELLBRIDGE BUILDING SERVICES,813.15,Building Services,Repairs,23-Mar-23,2223/12,SME,N,
10055808,FELLBRIDGE BUILDING SERVICES,377.01,Voids Maintenance,Repairs,30-Mar-23,2223/12,SME,N,
10055809,FELLBRIDGE BUILDING SERVICES,"2,571.34",Voids Maintenance,Repairs,30-Mar-23,2223/12,SME,N,
10055839,FELLBRIDGE BUILDING SERVICES,"2,753.67",Building Services,Repairs,30-Mar-23,2223/12,SME,N,
10054959,FORE-MOST GARAGE DOORS LTD,970,"Garages, Forecourts & Stores",Repairs,28-Feb-23,2223/12,SME,N,
10055387,GB ADAPTIONS LTD,"6,062.00",Mand Disabled Facilities Grant,Grants,15-Mar-23,2223/12,SME,N,
10055390,GB ADAPTIONS LTD,"6,607.00",Mand Disabled Facilities Grant,Grants,16-Mar-23,2223/12,SME,N,
10055121,G4S CASH SOLUTIONS LTD,476.87,C Parks General,Audit Fees,28-Feb-23,2223/12,LGE,N,
10055021,GHB ROOFING,"14,294.65",Roofing,Repairs,31-Jan-23,2223/12,SME,N,
10055151,GHB ROOFING,920,Building Services,Repairs,28-Feb-23,2223/12,SME,N,
10055152,GHB ROOFING,670,Roofing,Repairs,28-Feb-23,2223/12,SME,N,
10055153,GHB ROOFING,"1,240.00",Building Services,Repairs,28-Feb-23,2223/12,SME,N,
10055575,KEN GRIME & SON LTD,"1,068.61",Voids Maintenance,Repairs,21-Mar-23,2223/12,SME,N,
10054945,KENDA-CLEAN,43.15,Chilton Depot,Window Cleaning,27-Feb-23,2223/12,SME,Y,50%
10054945,KENDA-CLEAN,"1,939.41",Sheltered Accommodation,Window Cleaning,27-Feb-23,2223/12,SME,N,
10054945,KENDA-CLEAN,27.09,Temporary Accommodation,Window Cleaning,27-Feb-23,2223/12,SME,N,
10054945,KENDA-CLEAN,376.35,Tenancy Services,Window Cleaning,27-Feb-23,2223/12,SME,N,
10055792,KENDA-CLEAN,25,Chilton Depot,Window Cleaning,29-Mar-23,2223/12,SME,Y,50%
10055792,KENDA-CLEAN,"1,420.00",Sheltered Accommodation,Window Cleaning,29-Mar-23,2223/12,SME,N,
10055792,KENDA-CLEAN,15,Temporary Accommodation,Window Cleaning,29-Mar-23,2223/12,SME,N,
10055792,KENDA-CLEAN,227,Tenancy Services,Window Cleaning,29-Mar-23,2223/12,SME,N,
10055726,KEYWAYS THE LOCKSMITHS LTD,325,Sheltered Accommodation,Repairs,28-Mar-23,2223/12,SME,N,
10055377,M & H CIVIL ENGINEERING LTD,740.9,Building Services,Repairs,14-Mar-23,2223/12,SME,N,
10055658,M & H CIVIL ENGINEERING LTD,928.5,Building Services,Repairs,23-Mar-23,2223/12,SME,N,
10054963,MALJON TIMBER PRESERVATION LTD,690,Building Services,Repairs,16-Jan-23,2223/12,SME,N,
10055391,MARTIN BROKERS ( UK ) PLC,739.73,Treasury Management,Prof & Consultancy Fees,28-Feb-23,2223/12,LGE,N,
10055014,MATERIAL CHANGE COMPOSTING LTD,"1,924.81",Open Spaces,Waste Disposal,28-Feb-23,2223/12,LGE,N,
10055039,MB TREES (EAST ANGLIA) LTD,"5,168.75",Public Tree Programme,Tree felling/maintenance,02-Mar-23,2223/12,SME,N,
10055439,MB TREES (EAST ANGLIA) LTD,"2,100.00",Assets & Development,Contracted Services,16-Mar-23,2223/12,SME,N,
10054960,MERCURY BUILDING SERVICES LTD,"3,489.00",Kingfisher Leisure Centre,Repairs,28-Feb-23,2223/12,SME,N,
10055595,MERCURY BUILDING SERVICES LTD,276,Public Sector Decarbonisation,Prof & Consultancy Fees,22-Mar-23,2223/12,SME,Y,50%
10055595,MERCURY BUILDING SERVICES LTD,615,Hadleigh Pool,Repairs,22-Mar-23,2223/12,SME,N,
10054318,MIXBROW LTD,"9,175.19",Council House Adaptions,Improvements,02-Feb-23,2223/12,SME,N,
10054707,MIXBROW LTD,"3,114.00",Council House Adaptions,Improvements,07-Feb-23,2223/12,SME,N,
10054708,MIXBROW LTD,"2,850.00",Council House Adaptions,Improvements,07-Feb-23,2223/12,SME,N,
10054939,MIXBROW LTD,"6,471.06",Council House Adaptions,Improvements,24-Feb-23,2223/12,SME,N,
10054965,MIXBROW LTD,"9,829.60",Council House Adaptions,Improvements,27-Feb-23,2223/12,SME,N,
10055248,MIXBROW LTD,"6,663.63",Council House Adaptions,Improvements,09-Mar-23,2223/12,SME,N,
10055259,MIXBROW LTD,"5,486.25",Council House Adaptions,Improvements,09-Mar-23,2223/12,SME,N,
10055352,MONTHIND CLEAN LTD,665.83,Jnt Waste Contract,General Cleaning,15-Mar-23,2223/12,LGE,Y,50%
10055721,NORFOLK COUNTY COUNCIL,"9,469.44",Strategic Housing,Subscriptions,24-Mar-23,2223/12,LGE,N,
10055046,PRO-FLAT SPECIALIST SERVICES LTD,"14,375.00",Roofing,Repairs,28-Feb-23,2223/12,SME,N,
10055286,PRO-FLAT SPECIALIST SERVICES LTD,780,Building Services,Repairs,28-Feb-23,2223/12,SME,N,
10055604,PRO-FLAT SPECIALIST SERVICES LTD,"3,535.00",Roofing,Repairs,22-Mar-23,2223/12,SME,N,
10055805,PRO-FLAT SPECIALIST SERVICES LTD,"1,195.00",Building Services,Repairs,30-Mar-23,2223/12,SME,N,
10055806,PRO-FLAT SPECIALIST SERVICES LTD,"1,080.00",Building Services,Repairs,30-Mar-23,2223/12,SME,N,
10054229,R H ENVIRONMENTAL LTD,"8,625.00",Housing Standards,Prof & Consultancy Fees,31-Jan-23,2223/12,LGE,N,
10054782,R H ENVIRONMENTAL LTD,670.5,Housing Standards,Training,21-Feb-23,2223/12,LGE,N,
10054896,R H ENVIRONMENTAL LTD,"12,756.00",Housing Standards,Training,24-Feb-23,2223/12,LGE,N,
10054952,R H ENVIRONMENTAL LTD,"7,125.00",Housing Standards,Prof & Consultancy Fees,28-Feb-23,2223/12,LGE,N,
10054980,R H ENVIRONMENTAL LTD,"6,000.00",ICT,Software Licnse (Line of Bus) ,28-Feb-23,2223/12,LGE,Y,50%
10055811,R H ENVIRONMENTAL LTD,"1,500.00",Housing Standards,Prof & Consultancy Fees,30-Mar-23,2223/12,LGE,N,
10055812,R H ENVIRONMENTAL LTD,"3,000.00",Housing Standards,Training,30-Mar-23,2223/12,LGE,N,
10055813,R H ENVIRONMENTAL LTD,"3,750.00",Housing Standards,Training,30-Mar-23,2223/12,LGE,N,
10054651,REID PLUMBING & HEATING CONTRACTORS LTD,"22,248.32",Central Heating,Major Contracts,15-Feb-23,2223/12,SME,N,
10054765,REID PLUMBING & HEATING CONTRACTORS LTD,"20,711.90",Central Heating,Major Contracts,20-Feb-23,2223/12,SME,N,
10054799,REID PLUMBING & HEATING CONTRACTORS LTD,"4,552.62",Central Heating,Major Contracts,22-Feb-23,2223/12,SME,N,
10055010,REID PLUMBING & HEATING CONTRACTORS LTD,"11,632.16",Central Heating,Major Contracts,01-Mar-23,2223/12,SME,N,
10055237,REID PLUMBING & HEATING CONTRACTORS LTD,"5,011.60",Central Heating,Major Contracts,09-Mar-23,2223/12,SME,N,
10055411,REID PLUMBING & HEATING CONTRACTORS LTD,"14,992.70",Central Heating,Major Contracts,15-Mar-23,2223/12,SME,N,
10055544,REID PLUMBING & HEATING CONTRACTORS LTD,"10,644.25",Central Heating,Major Contracts,20-Mar-23,2223/12,SME,N,
10055568,REID PLUMBING & HEATING CONTRACTORS LTD,"22,648.60",Central Heating,Major Contracts,21-Mar-23,2223/12,SME,N,
10055154,SANDY LANE NURSERY,490.5,Public Tree Programme,Tree felling/maintenance,10-Jan-23,2223/12,SME,Y,50%
10055277,SEAGER HOME SOLUTIONS,"47,844.82",Kitchens/Bathrooms,Major Contracts,10-Mar-23,2223/12,SME,N,
10055532,SEAGER HOME SOLUTIONS,"6,698.00",Mand Disabled Facilities Grant,Grants,20-Mar-23,2223/12,SME,N,
10055008,SPALDINGS LTD,338.77,Open Spaces,"Equipment, Tools & Materials",28-Feb-23,2223/12,SME,N,
10055414,SUDBURY OFFICE SUPPLIES,278.2,Sheltered General Mgmt,Stationery,13-Mar-23,2223/12,SME,N,
10055205,SUFFOLK LIBRARIES IPS LTD IPSWICH,"1,000.00",Grants & Contrbns,Contributions & Donations,08-Mar-23,2223/12,LGE,N,
10055261,SUFFOLK LIBRARIES IPS LTD IPSWICH,400,Grants & Contrbns,Contributions & Donations,09-Mar-23,2223/12,LGE,N,
10055263,SUFFOLK LIBRARIES IPS LTD IPSWICH,"1,000.00",Grants & Contrbns,Contributions & Donations,09-Mar-23,2223/12,LGE,N,
10055437,SUFFOLK LIBRARIES IPS LTD IPSWICH,260,Grants & Contrbns,Contributions & Donations,16-Mar-23,2223/12,LGE,N,
10055712,SUFFOLK TREE SERVICES LTD,450,Public Tree Programme,Tree felling/maintenance,27-Mar-23,2223/12,SME,N,
10054878,SUREFIX,"7,550.00",Window & Door Rplcmts,Repairs,23-Feb-23,2223/12,SME,N,
10054879,SUREFIX,"1,025.00",Insulation Imps,Repairs,23-Feb-23,2223/12,SME,N,
10055075,SUREFIX,254.25,Building Services,Repairs,01-Mar-23,2223/12,SME,N,
10055076,SUREFIX,"1,875.00",Window & Door Rplcmts,Repairs,24-Feb-23,2223/12,SME,N,
10055078,SUREFIX,"2,700.00",Window & Door Rplcmts,Repairs,02-Mar-23,2223/12,SME,N,
10055315,SUREFIX,571.92,Building Services,Repairs,16-Jan-23,2223/12,SME,N,
10055655,SUREFIX,300,Building Services,Repairs,17-Mar-23,2223/12,SME,N,
10055870,SUREFIX,900,Window & Door Rplcmts,Repairs,27-Mar-23,2223/12,SME,N,
10055871,SUREFIX,450,Council House Adaptions,Improvements,27-Mar-23,2223/12,SME,N,
10055872,SUREFIX,"2,400.00",Window & Door Rplcmts,Repairs,30-Mar-23,2223/12,SME,N,
10055873,SUREFIX,950,Kitchens/Bathrooms,Repairs,28-Mar-23,2223/12,SME,N,
10055874,SUREFIX,"1,500.00",Building Services,Repairs,29-Mar-23,2223/12,SME,N,
10055875,SUREFIX,"1,150.00",Voids Maintenance,Repairs,31-Mar-23,2223/12,SME,N,
10055876,SUREFIX,"2,267.82",Building Services,Repairs,31-Mar-23,2223/12,SME,N,
10054938,THERMATECH,"2,400.00",Sheltered Accommodation,Fire Prevention,28-Feb-23,2223/12,SME,N,
10055299,THERMATECH,450,Asbestos,Repairs,10-Mar-23,2223/12,SME,N,
10055300,THERMATECH,"2,025.00",Temporary Accommodation,Fire Prevention,10-Mar-23,2223/12,SME,N,
10055700,THERMATECH,"7,900.00",Fire Risk Assessment (Flats),Prof & Consultancy Fees,27-Mar-23,2223/12,SME,N,
10054953,WEST END REHOMING,404.56,Dog Control,Collection Charges,01-Mar-23,2223/12,SME,N,
10055071,WINDIMAN LTD,"1,280.00",Window & Door Rplcmts,Annual Bldg Maint Contracts,28-Feb-23,2223/12,SME,N,
10055370,WINDIMAN LTD,"6,110.00",Window & Door Rplcmts,Repairs,14-Mar-23,2223/12,SME,N,
10055589,WINDIMAN LTD,"1,040.00",Window & Door Rplcmts,Repairs,22-Mar-23,2223/12,SME,N,
10054854,WORKWEAR (EAST ANGLIA) LTD,"1,752.90",Open Spaces,Protective clothing,20-Feb-23,2223/12,SME,N,
10055041,WORKWEAR (EAST ANGLIA) LTD,197.99,Open Spaces,Protective clothing,23-Feb-23,2223/12,SME,N,
10055041,WORKWEAR (EAST ANGLIA) LTD,198,Street & Major Road Cleansing,Protective clothing,23-Feb-23,2223/12,SME,N,
10055707,MITIE PROPERTY SERVICES (UK) LTD,"84,510.37",Planned Maint - Ext Painting,External Painting,28-Feb-23,2223/12,SME,N,
10055441,ESSEX COUNTY COUNCIL,"2,024.00",Pre App Charging,Landscape Consultancy,16-Mar-23,2223/12,LGE,N,
10055442,ESSEX COUNTY COUNCIL,"5,390.00",Devt Management -Applications,Landscape Consultancy,16-Mar-23,2223/12,LGE,N,
10055598,ESSEX COUNTY COUNCIL,504,Pre App Charging,Ecology Consultancy,22-Mar-23,2223/12,LGE,N,
10055633,ESSEX COUNTY COUNCIL,"5,147.00",Devt Management -Applications,Ecology Consultancy,23-Mar-23,2223/12,LGE,N,
10055634,ESSEX COUNTY COUNCIL,"6,118.00",Devt Management -Applications,Landscape Consultancy,23-Mar-23,2223/12,LGE,N,
10055635,ESSEX COUNTY COUNCIL,"2,316.00",Devt Management -Applications,Prof & Consultancy Fees,23-Mar-23,2223/12,LGE,N,
10055785,IDOX SOFTWARE LTD,"3,050.00",Economy & Business,Prof & Consultancy Fees,29-Mar-23,2223/12,SME,Y,50%
10055758,CIPFA BUSINESS LTD,"8,095.00",Financial Servs,Subscriptions,15-Mar-23,2223/12,LGE,Y,50%
10055146,IPSWICH BOROUGH COUNCIL,"705,477.00",Enterprise Zones,Prof & Consultancy Fees,06-Mar-23,2223/12,LGE,N,
10055257,IPSWICH BOROUGH COUNCIL,"1,651.13",Endeavour House - HQ,NNDR Payable,02-Mar-23,2223/12,LGE,Y,50%
10055608,IPSWICH BOROUGH COUNCIL,445,Shared Revenues Partnership,Contributions to other Bodies,22-Mar-23,2223/12,LGE,N,
20028295,EDF ENERGY,506.15,Belle Vue House,Electricity,14-Feb-23,2223/12,LGE,N,
20028295,EDF ENERGY,943.61,C Parks General,Electricity,14-Feb-23,2223/12,LGE,N,
20028295,EDF ENERGY,"1,071.38",Climate Change and Sustainabil,Electricity,14-Feb-23,2223/12,LGE,N,
20028295,EDF ENERGY,190.59,Community Safety-CCTV,Electricity,14-Feb-23,2223/12,LGE,N,
20028295,EDF ENERGY,105.2,Hadleigh Market,Electricity,14-Feb-23,2223/12,LGE,N,
20028295,EDF ENERGY,"5,974.17",Hadleigh Pool,Electricity,14-Feb-23,2223/12,LGE,N,
20028295,EDF ENERGY,83.99,Headquarters General,Electricity,14-Feb-23,2223/12,LGE,N,
20028295,EDF ENERGY,"1,820.78",HQ Energy,Electricity,14-Feb-23,2223/12,LGE,N,
20028295,EDF ENERGY,"18,039.52",Kingfisher Leisure Centre,Electricity,14-Feb-23,2223/12,LGE,N,
20028295,EDF ENERGY,20.48,Navigation House,Electricity,14-Feb-23,2223/12,LGE,N,
20028295,EDF ENERGY,772.02,Public Conveniences,Electricity,14-Feb-23,2223/12,LGE,N,
20028295,EDF ENERGY,767.7,Sewage Treatment Works,Electricity,14-Feb-23,2223/12,LGE,N,
20028295,EDF ENERGY,"22,517.92",Sheltered Accommodation,Electricity,14-Feb-23,2223/12,LGE,N,
20028295,EDF ENERGY,523.75,SP Comm Alarms (Non-SH),Electricity,14-Feb-23,2223/12,LGE,N,
20028295,EDF ENERGY,951.69,Temporary Accommodation,Electricity,14-Feb-23,2223/12,LGE,N,
20028295,EDF ENERGY,"15,037.40",Tenancy Services,Electricity,14-Feb-23,2223/12,LGE,N,
20028295,EDF ENERGY,551,Wenham Depot,Electricity,14-Feb-23,2223/12,LGE,Y,50%
20028309,EDF ENERGY,207.04,Belle Vue House,Electricity,14-Mar-23,2223/12,LGE,N,
20028309,EDF ENERGY,728.64,C Parks General,Electricity,14-Mar-23,2223/12,LGE,N,
20028309,EDF ENERGY,6.33,Calais St Depot,Electricity,14-Mar-23,2223/12,LGE,N,
20028309,EDF ENERGY,"44,118.12",Chilton Depot,Electricity,14-Mar-23,2223/12,LGE,Y,50%
20028309,EDF ENERGY,765.88,Climate Change and Sustainabil,Electricity,14-Mar-23,2223/12,LGE,N,
20028309,EDF ENERGY,290.61,Community Safety-CCTV,Electricity,14-Mar-23,2223/12,LGE,N,
20028309,EDF ENERGY,30.14,Hadleigh Market,Electricity,14-Mar-23,2223/12,LGE,N,
20028309,EDF ENERGY,"5,168.23",Hadleigh Pool,Electricity,14-Mar-23,2223/12,LGE,N,
20028309,EDF ENERGY,10.08,Headquarters General,Electricity,14-Mar-23,2223/12,LGE,N,
20028309,EDF ENERGY,"1,770.46",HQ Energy,Electricity,14-Mar-23,2223/12,LGE,N,
20028309,EDF ENERGY,"8,616.22",Kingfisher Leisure Centre,Electricity,14-Mar-23,2223/12,LGE,N,
20028309,EDF ENERGY,17.9,Navigation House,Electricity,14-Mar-23,2223/12,LGE,N,
20028309,EDF ENERGY,578.79,Public Conveniences,Electricity,14-Mar-23,2223/12,LGE,N,
20028309,EDF ENERGY,66.99,Sewage Treatment Works,Electricity,14-Mar-23,2223/12,LGE,N,
20028309,EDF ENERGY,"20,244.18",Sheltered Accommodation,Electricity,14-Mar-23,2223/12,LGE,N,
20028309,EDF ENERGY,164.32,SP Comm Alarms (Non-SH),Electricity,14-Mar-23,2223/12,LGE,N,
20028309,EDF ENERGY,614.36,Temporary Accommodation,Electricity,14-Mar-23,2223/12,LGE,N,
20028309,EDF ENERGY,"10,726.86",Tenancy Services,Electricity,14-Mar-23,2223/12,LGE,N,
20028309,EDF ENERGY,394.77,Wenham Depot,Electricity,14-Mar-23,2223/12,LGE,Y,50%
20028293,GPC BARCLAYS,"3,000.00",Current Assets,Barclaycard Control,16-Feb-23,2223/12,LGE,Y,14%
20028310,GPC BARCLAYS,"12,036.81",Current Assets,Barclaycard Control,16-Mar-23,2223/12,LGE,Y,10%
10054754,STANNAH STAIRLIFTS LTD,"2,373.00",Council House Adaptions,Improvements,20-Feb-23,2223/12,LGE,N,
10054948,STANNAH STAIRLIFTS LTD,"5,626.00",Council House Adaptions,Improvements,28-Feb-23,2223/12,LGE,N,
10055333,STANNAH STAIRLIFTS LTD,"2,691.00",Mand Disabled Facilities Grant,Grants,13-Mar-23,2223/12,LGE,N,
10055367,STANNAH STAIRLIFTS LTD,"2,373.00",Mand Disabled Facilities Grant,Grants,14-Mar-23,2223/12,LGE,N,
10055368,STANNAH STAIRLIFTS LTD,"3,292.00",Council House Adaptions,Improvements,14-Mar-23,2223/12,LGE,N,
10055007,ASSINGTON PARISH COUNCIL,500,Grants & Contrbns,Contributions & Donations,01-Mar-23,2223/12,SME,N,
20028320,BENTLEY VILLAGE HALL,320.31,Bring Sites,Contributions & Donations,29-Mar-23,2223/12,SME,N,
10055583,BOXFORD PARISH COUNCIL,515,Grants & Contrbns,Contributions & Donations,22-Mar-23,2223/12,SME,N,
10055274,BRENT ELEIGH PARISH COUNCIL,380,Grants & Contrbns,Contributions & Donations,10-Mar-23,2223/12,SME,N,
20028301,BURES ST MARY PARISH COUNCIL,370.5,Street & Major Road Cleansing,Contributions & Donations,16-Mar-23,2223/12,SME,N,
20028364,CAPEL ST MARY PARISH COUNCIL,587.86,Bring Sites,Contributions & Donations,29-Mar-23,2223/12,SME,N,
20028343,CHELMONDISTON PARISH COUNCIL,596.76,Bring Sites,Contributions & Donations,29-Mar-23,2223/12,SME,N,
10055133,EAST BERGHOLT PARISH COUNCIL,"2,519.79",S106 Open Spaces Expenditure,Grants,07-Mar-23,2223/12,SME,N,
20028302,EAST BERGHOLT PARISH COUNCIL,"1,235.00",Street & Major Road Cleansing,Contributions & Donations,16-Mar-23,2223/12,SME,N,
10055560,ELMSETT PARISH COUNCIL,350,Grants & Contrbns,Contributions & Donations,20-Mar-23,2223/12,SME,N,
10055386,GLEMSFORD PARISH COUNCIL,"6,857.24",Comm Devt Grants,Grants,15-Mar-23,2223/12,SME,N,
10055458,GLEMSFORD PARISH COUNCIL,"40,793.63",S106 Open Spaces Expenditure,Grants,17-Mar-23,2223/12,SME,N,
10055620,GLEMSFORD PARISH COUNCIL,"2,200.00",Building Services,BMBS Repairs Work,23-Mar-23,2223/12,SME,N,
10055571,GREAT CORNARD PARISH COUNCIL,"55,927.50",CIL Funded REFCUS,Grants,21-Mar-23,2223/12,SME,N,
20028352,GREAT CORNARD PARISH COUNCIL,483.88,Bring Sites,Contributions & Donations,29-Mar-23,2223/12,SME,N,
20028353,GREAT WALDINGFIELD BOWLS & SOCIAL CLUB,325.49,Bring Sites,Contributions & Donations,29-Mar-23,2223/12,SME,N,
10055282,HADLEIGH MARKET FEOFFMENT CHARITY,570,Elections,Returning Officer Fees,10-Mar-23,2223/12,SME,N,
10055270,HADLEIGH TOWN COUNCIL,"2,997.50",Headquarters General,Rent Payable,08-Mar-23,2223/12,SME,N,
20028355,HINTLESHAM & CHATTISHAM COMMUNITY COUNCI,653.24,Bring Sites,Contributions & Donations,29-Mar-23,2223/12,SME,N,
20028303,HOLBROOK PARISH COUNCIL,802.75,Street & Major Road Cleansing,Contributions & Donations,16-Mar-23,2223/12,SME,N,
20028305,LAVENHAM PARISH COUNCIL,"2,593.50",Street & Major Road Cleansing,Contributions & Donations,16-Mar-23,2223/12,SME,N,
20028377,LAWSHALL PARISH COUNCIL,310.34,Bring Sites,Contributions & Donations,29-Mar-23,2223/12,SME,N,
10055141,LAYHAM PARISH COUNCIL,400,Grants & Contrbns,Contributions & Donations,07-Mar-23,2223/12,SME,N,
20028330,LEAVENHEATH VILLAGE HALL,440.71,Bring Sites,Contributions & Donations,29-Mar-23,2223/12,SME,N,
20028306,LONG MELFORD PARISH COUNCIL,"1,111.50",Street & Major Road Cleansing,Contributions & Donations,16-Mar-23,2223/12,SME,N,
20028332,LONG MELFORD PARISH COUNCIL,553,Bring Sites,Contributions & Donations,29-Mar-23,2223/12,SME,N,
10055275,MONKS ELEIGH PARISH COUNCIL,450,Grants & Contrbns,Contributions & Donations,10-Mar-23,2223/12,SME,N,
20028358,NEWTON PARISH COUNCIL,263.36,Bring Sites,Contributions & Donations,29-Mar-23,2223/12,SME,N,
10055436,ORMISTON SUDBURY ACADEMY,500,Economy & Business,Contributions & Donations,16-Mar-23,2223/12,SME,N,
10055389,RAYDON PARISH COUNCIL,385,Grants & Contrbns,Contributions & Donations,15-Mar-23,2223/12,SME,N,
10054836,SPROUGHTON PARISH COUNCIL,"2,000.00",Grants & Contrbns,Contributions & Donations,23-Feb-23,2223/12,SME,N,
10055869,STRATFORD ST MARY PARISH COUNCIL,500,Grants & Contrbns,Contributions & Donations,31-Mar-23,2223/12,SME,N,
20028304,STRATFORD ST MARY PARISH COUNCIL,308.75,Street & Major Road Cleansing,Contributions & Donations,16-Mar-23,2223/12,SME,N,
10055564,SUDBURY COMMON LANDS CHARITY,"14,574.82",Open Spaces,Contracted Services,21-Mar-23,2223/12,SME,N,
10055573,SUDBURY TOWN COUNCIL,260,RHSSF,Prof & Consultancy Fees,21-Mar-23,2223/12,SME,N,
20028361,SUDBURY TOWN COUNCIL,"1,148.80",Bring Sites,Contributions & Donations,29-Mar-23,2223/12,SME,N,
20028370,TEENAGE CANCER TRUST,293.76,Bring Sites,Contributions & Donations,29-Mar-23,2223/12,LGE,N,
10055480,THE BRIDGE PROJECT SUDBURY,"20,000.00",Comm Devt Grants,Grants,17-Mar-23,2223/12,SME,N,
10054505,SUFFOLK COUNTY COUNCIL,545,Land Chgs,Contracted Services,08-Feb-23,2223/12,LGE,N,
10054931,SUFFOLK COUNTY COUNCIL,341.56,ICT,Desktop Software,24-Feb-23,2223/12,LGE,Y,50%
10054932,SUFFOLK COUNTY COUNCIL,"7,500.00",Womens Cycle Tour,"Equipment, Tools & Materials",24-Feb-23,2223/12,LGE,N,
10054933,SUFFOLK COUNTY COUNCIL,"2,560.00",Pre App Charging,Highways  Consultancy,27-Feb-23,2223/12,LGE,N,
10055036,SUFFOLK COUNTY COUNCIL,"177,295.42",ICT,Major Contracts,01-Mar-23,2223/12,LGE,Y,50%
10055081,SUFFOLK COUNTY COUNCIL,"8,700.00",ICT,Computer Equpt Purchases,02-Mar-23,2223/12,LGE,Y,50%
10055114,SUFFOLK COUNTY COUNCIL,"28,820.95",ICT-Hardware/Software Refresh,Computer Equpt Purchases,03-Mar-23,2223/12,LGE,Y,100%
10055114,SUFFOLK COUNTY COUNCIL,"28,820.96",ICT-Web Site Enhncmts,Computer Equpt Purchases,03-Mar-23,2223/12,LGE,N,
10055240,SUFFOLK COUNTY COUNCIL,"6,187.00",Independent Living Service,Contracted Services,09-Mar-23,2223/12,LGE,N,
10055417,SUFFOLK COUNTY COUNCIL,"9,067.84",Domestic Waste,MRF Disposal,14-Mar-23,2223/12,LGE,N,
10055417,SUFFOLK COUNTY COUNCIL,"6,261.25",Garden Waste,Garden Waste Disposal,14-Mar-23,2223/12,LGE,N,
10055418,SUFFOLK COUNTY COUNCIL,"3,139.84",Pre App Charging,Highways  Consultancy,14-Mar-23,2223/12,LGE,N,
10055419,SUFFOLK COUNTY COUNCIL,"10,000.00",AONB Contributions,Contributions & Donations,14-Mar-23,2223/12,LGE,N,
10055428,SUFFOLK COUNTY COUNCIL,"1,045.38",Info Mgmt,Contracted Services,15-Mar-23,2223/12,LGE,Y,50%
10055507,SUFFOLK COUNTY COUNCIL,483.69,ICT,Computer Equpt Purchases,17-Mar-23,2223/12,LGE,Y,50%
10055610,SUFFOLK COUNTY COUNCIL,"33,476.70",ICT-Hardware/Software Refresh,Computer Equpt Purchases,22-Mar-23,2223/12,LGE,Y,50%
10055641,SUFFOLK COUNTY COUNCIL,"1,443.00",RAMS,Misc Supplies & Services Costs,21-Mar-23,2223/12,LGE,N,
10055650,SUFFOLK COUNTY COUNCIL,"7,594.32",Domestic Waste,MRF Disposal,23-Mar-23,2223/12,LGE,N,
10055650,SUFFOLK COUNTY COUNCIL,"8,363.52",Garden Waste,Garden Waste Disposal,23-Mar-23,2223/12,LGE,N,
10055737,SUFFOLK COUNTY COUNCIL,"2,042.50",ICT-Hardware/Software Refresh,Computer Equpt Purchases,24-Mar-23,2223/12,LGE,Y,50%
10055756,SUFFOLK COUNTY COUNCIL,690,Organisational Devt,Corporate Training,24-Mar-23,2223/12,LGE,Y,50%
10055769,SUFFOLK COUNTY COUNCIL,"3,963.21",Tenancy Services,Electricity,28-Mar-23,2223/12,LGE,N,
10055804,SUFFOLK COUNTY COUNCIL,402.32,General Rechargeable Works,Misc Supplies & Services Costs,29-Mar-23,2223/12,LGE,N,
10055842,SUFFOLK COUNTY COUNCIL,"68,895.28",Organisational Devt,Contracted Services,29-Mar-23,2223/12,LGE,Y,50%
10054899,REED SPECIALIST RECRUITMENT LTD,766.64,Financial Servs,Agency Staff,17-Feb-23,2223/12,LGE,Y,50%
10055105,REED SPECIALIST RECRUITMENT LTD,685.83,Financial Servs,Agency Staff,24-Feb-23,2223/12,LGE,Y,50%
10055305,REED SPECIALIST RECRUITMENT LTD,766.64,Financial Servs,Agency Staff,03-Mar-23,2223/12,LGE,Y,50%
10055495,REED SPECIALIST RECRUITMENT LTD,766.64,Financial Servs,Agency Staff,10-Mar-23,2223/12,LGE,Y,50%
10055674,REED SPECIALIST RECRUITMENT LTD,766.64,Financial Servs,Agency Staff,17-Mar-23,2223/12,LGE,Y,50%
10054850,UNIT 4 BUSINESS SOFTWARE LIMITED,"21,221.16",ICT - Finance System,Contracted Services,23-Feb-23,2223/12,LGE,Y,50%
10055675,TELEFONICA UK LIMITED - O2,329.21,ICT,Telephone Costs,27-Mar-23,2223/12,LGE,Y,50%
10055291,LACY SCOTT & KNIGHT,550,Assets & Development,Prof & Consultancy Fees,10-Mar-23,2223/12,SME,N,
10055216,SUFFOLK COUNTY COUNCIL,"2,285.72",Ext Audit,Audit Fees,07-Mar-23,2223/12,LGE,N,
10055451,SUFFOLK COUNTY COUNCIL,425,Ext Audit,Audit Fees,28-Feb-23,2223/12,LGE,N,
10055462,ZURICH MUNICIPAL,"1,834.54",Insurance Premiums,Premises Insurance,08-Mar-23,2223/12,LGE,N,
10055463,ZURICH MUNICIPAL,"136,068.02",Insurance Premiums,Premises Insurance,08-Mar-23,2223/12,LGE,N,
10055463,ZURICH MUNICIPAL,"37,622.57",Insurance Premiums,Vehicle/Lease Car Insurance,08-Mar-23,2223/12,LGE,N,
10055463,ZURICH MUNICIPAL,"153,249.59",Insurance Premiums,Employees Insurances,08-Mar-23,2223/12,LGE,N,
10055463,ZURICH MUNICIPAL,"7,477.11",Insurance Premiums,Miscellaneous Insurances,08-Mar-23,2223/12,LGE,N,
10055464,ZURICH MUNICIPAL,"8,922.98",Insurance Premiums,Miscellaneous Insurances,08-Mar-23,2223/12,LGE,N,
10055091,LEX AUTOLEASE,365.95,Building Services,Lease Cars - Payment,27-Feb-23,2223/12,SME,Y,50%
10055092,LEX AUTOLEASE,365.95,Building Services,Lease Cars - Payment,27-Feb-23,2223/12,SME,Y,50%
10055465,LEX AUTOLEASE,323.02,Building Services,Lease Cars - Payment,28-Feb-23,2223/12,SME,Y,50%
10055466,LEX AUTOLEASE,304.25,Building Services,Lease Cars - Payment,28-Feb-23,2223/12,SME,Y,50%
10055467,LEX AUTOLEASE,376.73,Building Services,Lease Cars - Payment,02-Mar-23,2223/12,SME,Y,50%
10055468,LEX AUTOLEASE,318.97,Building Services,Lease Cars - Payment,07-Mar-23,2223/12,SME,Y,50%
10055469,LEX AUTOLEASE,332.77,Building Services,Lease Cars - Payment,08-Mar-23,2223/12,SME,Y,50%
10055470,LEX AUTOLEASE,380.78,Building Services,Lease Cars - Payment,08-Mar-23,2223/12,SME,Y,50%
10055471,LEX AUTOLEASE,328.72,Building Services,Lease Cars - Payment,09-Mar-23,2223/12,SME,Y,50%
10055472,LEX AUTOLEASE,311.34,Building Services,Lease Cars - Payment,09-Mar-23,2223/12,SME,Y,50%
10055473,LEX AUTOLEASE,336.11,Building Services,Lease Cars - Payment,09-Mar-23,2223/12,SME,Y,50%
10055474,LEX AUTOLEASE,331.38,Building Services,Lease Cars - Payment,12-Mar-23,2223/12,SME,Y,50%
10055475,LEX AUTOLEASE,311.43,Building Services,Lease Cars - Payment,12-Mar-23,2223/12,SME,Y,50%
10055476,LEX AUTOLEASE,324.97,Building Services,Lease Cars - Payment,12-Mar-23,2223/12,SME,Y,50%
10055477,LEX AUTOLEASE,355.2,Building Services,Lease Cars - Payment,12-Mar-23,2223/12,SME,Y,50%
10055478,LEX AUTOLEASE,346.16,Building Services,Lease Cars - Payment,12-Mar-23,2223/12,SME,Y,50%
10054873,HADLEIGH UNITED REFORMED CHURCH,"2,875.00",Temporary Accommodation,Rent Payable,24-Feb-23,2223/12,SME,N,
10055516,EAST BERGHOLT HIGH SCHOOL,500,Economy & Business,Contributions & Donations,20-Mar-23,2223/12,SME,N,
20028350,EAST BERGHOLT HIGH SCHOOL,299.78,Bring Sites,Contributions & Donations,29-Mar-23,2223/12,SME,N,
10055132,ELMSETT & ALDHAM VILLAGE HALL MGMT CTTE,500,Grants & Contrbns,Contributions & Donations,06-Mar-23,2223/12,SME,N,
10054831,WHYBROW PROPERTY SOLUTIONS LTD,"9,256.17",Voids Maintenance,Repairs,23-Feb-23,2223/12,SME,N,
10054832,WHYBROW PROPERTY SOLUTIONS LTD,"7,056.22",Voids Maintenance,Repairs,23-Feb-23,2223/12,SME,N,
10054834,WHYBROW PROPERTY SOLUTIONS LTD,"4,350.74",Voids Maintenance,Repairs,23-Feb-23,2223/12,SME,N,
10054920,WHYBROW PROPERTY SOLUTIONS LTD,445,Tenancy Services,Fire Prevention,23-Feb-23,2223/12,SME,N,
10054921,WHYBROW PROPERTY SOLUTIONS LTD,407.2,Responsive maintenance,Repairs,24-Feb-23,2223/12,SME,N,
10055072,WHYBROW PROPERTY SOLUTIONS LTD,"7,409.47",Voids Maintenance,Repairs,02-Mar-23,2223/12,SME,N,
10055080,WHYBROW PROPERTY SOLUTIONS LTD,"6,825.89",Voids Maintenance,Repairs,02-Mar-23,2223/12,SME,N,
10055082,WHYBROW PROPERTY SOLUTIONS LTD,"8,000.00",Voids Maintenance,Repairs,02-Mar-23,2223/12,SME,N,
10055142,WHYBROW PROPERTY SOLUTIONS LTD,721.24,Voids Maintenance,Repairs,06-Mar-23,2223/12,SME,N,
10055303,WHYBROW PROPERTY SOLUTIONS LTD,300,Building Services,Repairs,09-Mar-23,2223/12,SME,N,
10055339,WHYBROW PROPERTY SOLUTIONS LTD,337.21,Voids Maintenance,Repairs,13-Mar-23,2223/12,SME,N,
10055353,WHYBROW PROPERTY SOLUTIONS LTD,445,Tenancy Services,Fire Prevention,02-Mar-23,2223/12,SME,N,
10055406,WHYBROW PROPERTY SOLUTIONS LTD,"1,430.61",Other Temp Accommodation,Misc Supplies & Services Costs,14-Mar-23,2223/12,SME,N,
10055491,WHYBROW PROPERTY SOLUTIONS LTD,"2,895.56","Fences, Gates and Walls",Repairs,16-Mar-23,2223/12,SME,N,
10055554,WHYBROW PROPERTY SOLUTIONS LTD,"3,788.20",Responsive maintenance,Repairs,09-Mar-23,2223/12,SME,N,
10055593,WHYBROW PROPERTY SOLUTIONS LTD,"11,847.58",Voids Maintenance,Repairs,16-Mar-23,2223/12,SME,N,
10055669,WHYBROW PROPERTY SOLUTIONS LTD,"2,182.60",Responsive maintenance,Repairs,24-Mar-23,2223/12,SME,N,
10055670,WHYBROW PROPERTY SOLUTIONS LTD,"7,878.65",Insurance Claims,Misc Premises Costs,24-Mar-23,2223/12,SME,N,
10055799,WHYBROW PROPERTY SOLUTIONS LTD,"7,000.00",Voids Maintenance,Repairs,29-Mar-23,2223/12,SME,N,
10054817,L A C CLEANING CONTRACTORS LIMITED,709.95,Wenham Depot TDP,General Cleaning,22-Feb-23,2223/12,SME,Y,50%
10054946,L A C CLEANING CONTRACTORS LIMITED,"1,996.25",Voids Maintenance,Repairs,28-Feb-23,2223/12,SME,N,
10054947,L A C CLEANING CONTRACTORS LIMITED,977.5,Voids Maintenance,Repairs,16-Feb-23,2223/12,SME,N,
10055147,L A C CLEANING CONTRACTORS LIMITED,422.5,Voids Maintenance,Repairs,07-Mar-23,2223/12,SME,N,
10055148,L A C CLEANING CONTRACTORS LIMITED,295.5,Voids Maintenance,Repairs,07-Mar-23,2223/12,SME,N,
10055207,L A C CLEANING CONTRACTORS LIMITED,"1,785.50",Voids Maintenance,Repairs,08-Mar-23,2223/12,SME,N,
10055271,L A C CLEANING CONTRACTORS LIMITED,"1,155.25",Voids Maintenance,Repairs,10-Mar-23,2223/12,SME,N,
10055347,L A C CLEANING CONTRACTORS LIMITED,"1,485.25",Voids Maintenance,Repairs,14-Mar-23,2223/12,SME,N,
10055422,L A C CLEANING CONTRACTORS LIMITED,485.5,Building Services,Repairs,15-Mar-23,2223/12,SME,N,
10055484,L A C CLEANING CONTRACTORS LIMITED,275.5,Voids Maintenance,Repairs,17-Mar-23,2223/12,SME,N,
10055486,L A C CLEANING CONTRACTORS LIMITED,395.5,Voids Maintenance,Repairs,17-Mar-23,2223/12,SME,N,
10055774,L A C CLEANING CONTRACTORS LIMITED,906.45,Wenham Depot TDP,General Cleaning,27-Mar-23,2223/12,SME,Y,50%
10055775,L A C CLEANING CONTRACTORS LIMITED,648.48,Sheltered Accommodation,General Cleaning,27-Mar-23,2223/12,SME,N,
10055779,L A C CLEANING CONTRACTORS LIMITED,"2,430.50",Voids Maintenance,Repairs,29-Mar-23,2223/12,SME,N,
10055553,ARMSTRONG YORK ASBESTOS ENVIRONMENTAL,"10,177.93",Asbestos Survey & Reinspection,Prof & Consultancy Fees,28-Feb-23,2223/12,SME,N,
20028341,BURES SPORTS GROUND COMMITTEE,692.92,Bring Sites,Contributions & Donations,29-Mar-23,2223/12,SME,N,
10054664,DMP TRAINING (UK),"1,670.00",Open Spaces,Training,12-Feb-23,2223/12,SME,N,
10055656,DMP TRAINING (UK),"1,836.00",Open Spaces,Training,23-Mar-23,2223/12,SME,N,
10055051,TRADITION (UK) LTD,"2,586.30",Treasury Management,Prof & Consultancy Fees,28-Feb-23,2223/12,LGE,N,
20028335,ST HELENA HOSPICE,265.2,Bring Sites,Contributions & Donations,29-Mar-23,2223/12,SME,N,
10055794,COMMUNITY ACTION SUFFOLK,"2,000.00",Strategic Housing,Prof & Consultancy Fees,30-Mar-23,2223/12,SME,N,
10055677,GRANICUS FIRMSTEP LIMITED,"9,255.50",ICT,Software Licnse (Line of Bus) ,24-Mar-23,2223/12,SME,Y,50%
10055088,HOLBROOK & DISTRICT PRE-SCHOOL PLAYGROUP,500,Grants & Contrbns,Contributions & Donations,03-Mar-23,2223/12,SME,N,
20028338,SUFFOLK COMMUNITY FOUNDATION,290.7,Bring Sites,Contributions & Donations,29-Mar-23,2223/12,SME,N,
10054666,CONCERTUS DESIGN & PROPERTY CONSULTANTS,"4,252.50",Public Conveniences,Repairs,31-Jan-23,2223/12,SME,N,
10055138,CONCERTUS DESIGN & PROPERTY CONSULTANTS,652.5,Public Conveniences,Repairs,31-Jan-23,2223/12,SME,N,
10055139,CONCERTUS DESIGN & PROPERTY CONSULTANTS,"4,443.75",Public Conveniences,Repairs,28-Feb-23,2223/12,SME,N,
10054955,DALROD (UK) LTD,"19,400.00",Chilton Depot,Repairs,28-Feb-23,2223/12,SME,Y,50%
10055118,OPUS PEOPLE SOLUTIONS LTD,197.78,Health & Safety,Agency Staff,02-Mar-23,2223/12,SME,N,
10055118,OPUS PEOPLE SOLUTIONS LTD,309.42,Homeless Prevention Fund,Agency Staff,02-Mar-23,2223/12,SME,N,
10055118,OPUS PEOPLE SOLUTIONS LTD,68.28,Dev Mgmt - Applications,Agency Staff,02-Mar-23,2223/12,SME,N,
10055312,OPUS PEOPLE SOLUTIONS LTD,197.79,Health & Safety,Agency Staff,09-Mar-23,2223/12,SME,N,
10055312,OPUS PEOPLE SOLUTIONS LTD,341.62,Homeless Prevention Fund,Agency Staff,09-Mar-23,2223/12,SME,N,
10055312,OPUS PEOPLE SOLUTIONS LTD,68.28,Dev Mgmt - Applications,Agency Staff,09-Mar-23,2223/12,SME,N,
10055517,OPUS PEOPLE SOLUTIONS LTD,338.64,Homeless Prevention Fund,Agency Staff,16-Mar-23,2223/12,SME,N,
10055517,OPUS PEOPLE SOLUTIONS LTD,68.28,Dev Mgmt - Applications,Agency Staff,16-Mar-23,2223/12,SME,N,
10055691,OPUS PEOPLE SOLUTIONS LTD,333.38,Homeless Prevention Fund,Agency Staff,23-Mar-23,2223/12,SME,N,
10055691,OPUS PEOPLE SOLUTIONS LTD,197.78,Dev Mgmt - Applications,Agency Staff,23-Mar-23,2223/12,SME,N,
10055889,OPUS PEOPLE SOLUTIONS LTD,345.37,Homeless Prevention Fund,Agency Staff,30-Mar-23,2223/12,SME,N,
10055889,OPUS PEOPLE SOLUTIONS LTD,197.78,Health & Safety,Agency Staff,30-Mar-23,2223/12,SME,N,
10054826,ROSE BUILDERS LTD,"22,627.73",Structural Works,Major Contracts,31-Jan-23,2223/12,SME,N,
10055069,ECOSYSTEMS TREE & GROUNDS CARE,"2,300.00",Amenity Areas,Tree felling/maintenance,03-Mar-23,2223/12,SME,N,
10055085,ECOSYSTEMS TREE & GROUNDS CARE,"2,420.00",Public Tree Programme,Tree felling/maintenance,03-Mar-23,2223/12,SME,N,
10055787,ECOSYSTEMS TREE & GROUNDS CARE,350,Tenancy Services,Tree felling/maintenance,29-Mar-23,2223/12,SME,N,
10055788,ECOSYSTEMS TREE & GROUNDS CARE,325,Amenity Areas,Tree felling/maintenance,29-Mar-23,2223/12,SME,N,
10055789,ECOSYSTEMS TREE & GROUNDS CARE,600,Tenancy Services,Tree felling/maintenance,29-Mar-23,2223/12,SME,N,
10055790,ECOSYSTEMS TREE & GROUNDS CARE,310,Amenity Areas,Tree felling/maintenance,29-Mar-23,2223/12,SME,N,
10055791,ECOSYSTEMS TREE & GROUNDS CARE,375,Tenancy Services,Tree felling/maintenance,29-Mar-23,2223/12,SME,N,
10055851,ECOSYSTEMS TREE & GROUNDS CARE,"1,025.00",Amenity Areas,Tree felling/maintenance,30-Mar-23,2223/12,SME,N,
10055852,ECOSYSTEMS TREE & GROUNDS CARE,400,Public Tree Programme,Tree felling/maintenance,30-Mar-23,2223/12,SME,N,
10055853,ECOSYSTEMS TREE & GROUNDS CARE,600,Amenity Areas,Tree felling/maintenance,30-Mar-23,2223/12,SME,N,
10055854,ECOSYSTEMS TREE & GROUNDS CARE,"1,600.00",Amenity Areas,Tree felling/maintenance,30-Mar-23,2223/12,SME,N,
10055855,ECOSYSTEMS TREE & GROUNDS CARE,"1,050.00",Amenity Areas,Tree felling/maintenance,30-Mar-23,2223/12,SME,N,
10055856,ECOSYSTEMS TREE & GROUNDS CARE,800,Amenity Areas,Tree felling/maintenance,30-Mar-23,2223/12,SME,N,
10055857,ECOSYSTEMS TREE & GROUNDS CARE,"4,370.00",Public Tree Programme,Tree felling/maintenance,30-Mar-23,2223/12,SME,N,
10055858,ECOSYSTEMS TREE & GROUNDS CARE,"4,750.00",Public Tree Programme,Tree felling/maintenance,30-Mar-23,2223/12,SME,N,
10055859,ECOSYSTEMS TREE & GROUNDS CARE,"3,400.00",Public Tree Programme,Tree felling/maintenance,30-Mar-23,2223/12,SME,N,
10055767,INSPIRE SUFFOLK LTD,"1,711.57",Holiday Activity Funding,"Equipment, Tools & Materials",29-Mar-23,2223/12,SME,N,
10053426,VERTAS GROUP LTD,"11,429.75",Central Postal Serv,Postage,29-Dec-22,2223/12,SME,Y,50%
10055022,VERTAS GROUP LTD,"12,223.97",Central Postal Serv,Postage,28-Feb-23,2223/12,SME,Y,50%
10055017,COLLINS SKIP HIRE,275,Building Services,Waste Disposal,28-Feb-23,2223/12,SME,Y,50%
10055149,POSTURITE LTD,"1,129.52",Health & Safety,Furniture,06-Mar-23,2223/12,SME,Y,50%
10055447,POSTURITE LTD,373.5,Organisational Devt,Health & Safety Training,16-Mar-23,2223/12,SME,Y,67%
10055447,POSTURITE LTD,124.5,Organisational Devt,Training,16-Mar-23,2223/12,SME,N,
10055366,4PRINCIPLES CONSTRUCTION LTD,"6,276.80",Mand Disabled Facilities Grant,Grants,14-Mar-23,2223/12,SME,N,
10055388,GREAT WALDINGFIELD VILLAGE HALL,"30,824.92",CIL Funded REFCUS,Grants,15-Mar-23,2223/12,SME,N,
10055084,BIRKETTS LLP,550,BMS Invest,Legal Expenses,30-Dec-22,2223/12,LGE,N,
10055123,BIRKETTS LLP,396,Organisational Devt,Professional Subs (Staff),28-Dec-22,2223/12,LGE,Y,50%
10055713,FORESOLUTIONS LTD,450,Open Spaces,Plant & Vehicle - Other costs,27-Mar-23,2223/12,SME,N,
10055048,PENNA PLC,"14,300.00",Management Team,Agency Staff,02-Mar-23,2223/12,SME,Y,50%
10055049,PENNA PLC,"2,160.00",Management Team,Agency Staff,02-Mar-23,2223/12,SME,Y,50%
10055782,"DUNCAN, CAMERON AND HUTCHINSON LTD","24,974.11","1-3 Queensland, Shotley",Major Contracts,09-Mar-23,2223/12,SME,N,
10055753,BROWNE JACOBSON LLP,902,GF - Misc Capital Receipts,Legal Expenses,27-Mar-23,2223/12,SME,N,
10055722,HADLEIGH CRICKET CLUB,"2,885.00",Grants & Contrbns,Contributions & Donations,28-Mar-23,2223/12,SME,N,
10055770,HADLEIGH CRICKET CLUB,"1,200.00",New Bld/acquisition,Prof & Consultancy Fees,23-Mar-23,2223/12,SME,N,
10055585,SUFFOLK MARKET EVENTS,650,Hadleigh Market,Contracted Services,21-Mar-23,2223/12,SME,N,
10055427,ADVANCE SUPPLIES,385.87,Sheltered Accommodation,Cleaning Materials,15-Mar-23,2223/12,SME,N,
10054898,HAYS SPECIALIST RECRUITMENT LTD,"2,597.40",Commissioning & Procurement,Agency Staff,24-Feb-23,2223/12,LGE,Y,50%
10055009,HAYS SPECIALIST RECRUITMENT LTD,"4,630.00",Financial Servs,Agency Staff,28-Feb-23,2223/12,LGE,Y,50%
10055031,HAYS SPECIALIST RECRUITMENT LTD,"1,069.38",ICT - Finance System,Agency Staff,01-Mar-23,2223/12,LGE,Y,50%
10055032,HAYS SPECIALIST RECRUITMENT LTD,"1,782.30",ICT - Finance System,Agency Staff,01-Mar-23,2223/12,LGE,Y,50%
10055103,HAYS SPECIALIST RECRUITMENT LTD,"1,558.44",Commissioning & Procurement,Agency Staff,03-Mar-23,2223/12,LGE,Y,50%
10055144,HAYS SPECIALIST RECRUITMENT LTD,"2,118.88",Assets & Development,Agency Staff,06-Mar-23,2223/12,LGE,Y,50%
10055144,HAYS SPECIALIST RECRUITMENT LTD,529.71,HRA Strategic Property,Agency Staff,06-Mar-23,2223/12,LGE,Y,50%
10055145,HAYS SPECIALIST RECRUITMENT LTD,"3,923.50",Financial Servs,Agency Staff,06-Mar-23,2223/12,LGE,Y,50%
10055203,HAYS SPECIALIST RECRUITMENT LTD,"1,337.76",Assets & Development,Agency Staff,07-Mar-23,2223/12,LGE,Y,50%
10055203,HAYS SPECIALIST RECRUITMENT LTD,334.43,HRA Strategic Property,Agency Staff,07-Mar-23,2223/12,LGE,Y,50%
10055233,HAYS SPECIALIST RECRUITMENT LTD,"1,782.30",ICT - Finance System,Agency Staff,08-Mar-23,2223/12,LGE,Y,50%
10055344,HAYS SPECIALIST RECRUITMENT LTD,"2,597.40",Commissioning & Procurement,Agency Staff,13-Mar-23,2223/12,LGE,Y,50%
10055345,HAYS SPECIALIST RECRUITMENT LTD,"4,130.00",Financial Servs,Agency Staff,13-Mar-23,2223/12,LGE,Y,50%
10055346,HAYS SPECIALIST RECRUITMENT LTD,"1,894.36",Assets & Development,Agency Staff,13-Mar-23,2223/12,LGE,Y,50%
10055346,HAYS SPECIALIST RECRUITMENT LTD,473.6,HRA Strategic Property,Agency Staff,13-Mar-23,2223/12,LGE,Y,50%
10055426,HAYS SPECIALIST RECRUITMENT LTD,"1,782.30",ICT - Finance System,Agency Staff,15-Mar-23,2223/12,LGE,Y,50%
10055493,HAYS SPECIALIST RECRUITMENT LTD,"2,597.40",Commissioning & Procurement,Agency Staff,17-Mar-23,2223/12,LGE,Y,50%
10055563,HAYS SPECIALIST RECRUITMENT LTD,"1,239.00",Financial Servs,Agency Staff,20-Mar-23,2223/12,LGE,Y,50%
10055596,HAYS SPECIALIST RECRUITMENT LTD,"1,782.30",ICT - Finance System,Agency Staff,22-Mar-23,2223/12,LGE,Y,50%
10055597,HAYS SPECIALIST RECRUITMENT LTD,"1,683.88",Assets & Development,Agency Staff,22-Mar-23,2223/12,LGE,Y,50%
10055597,HAYS SPECIALIST RECRUITMENT LTD,420.96,HRA Strategic Property,Agency Staff,22-Mar-23,2223/12,LGE,Y,50%
10055671,HAYS SPECIALIST RECRUITMENT LTD,"2,597.40",Commissioning & Procurement,Agency Staff,24-Mar-23,2223/12,LGE,Y,50%
10055705,HAYS SPECIALIST RECRUITMENT LTD,"2,778.00",Financial Servs,Agency Staff,27-Mar-23,2223/12,LGE,Y,50%
10055706,HAYS SPECIALIST RECRUITMENT LTD,"1,870.98",Assets & Development,Agency Staff,27-Mar-23,2223/12,LGE,Y,50%
10055706,HAYS SPECIALIST RECRUITMENT LTD,467.74,HRA Strategic Property,Agency Staff,27-Mar-23,2223/12,LGE,Y,50%
10055814,HAYS SPECIALIST RECRUITMENT LTD,"1,782.30",ICT - Finance System,Agency Staff,29-Mar-23,2223/12,LGE,Y,50%
10052853,RICHARD UTTING ASSOCIATES LLP,"2,890.00",Bourne Hill Wherstead S106 acq,Prof & Consultancy Fees,31-Oct-22,2223/12,SME,N,
10052854,RICHARD UTTING ASSOCIATES LLP,"2,890.00",Bourne Hill Wherstead S106 acq,Prof & Consultancy Fees,30-Nov-22,2223/12,SME,N,
10054428,PUBLIC SEWER SERVICES,"8,322.66",Major Imps,Improvements,31-Jan-23,2223/12,SME,N,
10055356,PUBLIC SEWER SERVICES,"1,059.68",Building Services,Repairs,28-Feb-23,2223/12,SME,N,
10055533,PUBLIC SEWER SERVICES,"1,815.23",Building Services,Repairs,20-Mar-23,2223/12,SME,N,
10055534,PUBLIC SEWER SERVICES,338.23,Roads and Paths,Prof & Consultancy Fees,20-Mar-23,2223/12,SME,N,
10055541,PUBLIC SEWER SERVICES,450.64,Building Services,Repairs,20-Mar-23,2223/12,SME,N,
10055644,PUBLIC SEWER SERVICES,758.15,Building Services,Repairs,24-Mar-23,2223/12,SME,N,
10055746,PLACE SERVICES,822,RAMS,Prof & Consultancy Fees,28-Mar-23,2223/12,SME,Y,50%
10055060,THE STOWMARKET GLASS COMPANY LTD,298.9,Building Services,Repairs,06-Feb-23,2223/12,SME,N,
10055555,ASPECT CONTRACTS LTD,"7,013.00",Asbestos,Improvements,15-Mar-23,2223/12,LGE,N,
10055302,THE OFFSHOOT FOUNDATION,360,Holiday Activity Funding,"Equipment, Tools & Materials",10-Mar-23,2223/12,SME,N,
20028294,RIX PETROLEUM (EAST ANGLIA) LTD,"1,302.80",Tenancy Services,Heating Oil,03-Mar-23,2223/12,SME,N,
10055895,KNOWLES ASSOCIATES TFM LTD,389.03,Building Services,Lease Cars - Payment,08-Feb-23,2223/12,SME,Y,50%
10055895,KNOWLES ASSOCIATES TFM LTD,25.94,Public Realm TransitionProject,"Equipment, Tools & Materials",08-Feb-23,2223/12,SME,N,
10055895,KNOWLES ASSOCIATES TFM LTD,8.64,RHSSF,"Equipment, Tools & Materials",08-Feb-23,2223/12,SME,N,
10055895,KNOWLES ASSOCIATES TFM LTD,8.64,Building Services,Vehicle Hire,08-Feb-23,2223/12,SME,Y,50%
10054853,NORTHUMBRIAN WATER LTD,69.51,Chilton Depot,Legionella Testing,24-Feb-23,2223/12,LGE,Y,50%
10054853,NORTHUMBRIAN WATER LTD,37.7,HQ Energy,Legionella Testing,24-Feb-23,2223/12,LGE,N,
10054853,NORTHUMBRIAN WATER LTD,293.68,Sheltered Accommodation,Legionella Testing,24-Feb-23,2223/12,LGE,N,
10054853,NORTHUMBRIAN WATER LTD,101.37,Temporary Accommodation,Legionella Testing,24-Feb-23,2223/12,LGE,N,
10054853,NORTHUMBRIAN WATER LTD,254.87,Tenancy Services,Legionella Testing,24-Feb-23,2223/12,LGE,N,
10054853,NORTHUMBRIAN WATER LTD,31.86,Wenham Depot,Legionella Testing,24-Feb-23,2223/12,LGE,Y,50%
10055766,NORTHUMBRIAN WATER LTD,69.51,Chilton Depot,Legionella Testing,29-Mar-23,2223/12,LGE,Y,50%
10055766,NORTHUMBRIAN WATER LTD,37.73,HQ Energy,Legionella Testing,29-Mar-23,2223/12,LGE,N,
10055766,NORTHUMBRIAN WATER LTD,293.65,Sheltered Accommodation,Legionella Testing,29-Mar-23,2223/12,LGE,N,
10055766,NORTHUMBRIAN WATER LTD,101.37,Temporary Accommodation,Legionella Testing,29-Mar-23,2223/12,LGE,N,
10055766,NORTHUMBRIAN WATER LTD,254.87,Tenancy Services,Legionella Testing,29-Mar-23,2223/12,LGE,N,
10055766,NORTHUMBRIAN WATER LTD,31.86,Wenham Depot,Legionella Testing,29-Mar-23,2223/12,LGE,Y,50%
10055247,STORETEC SERVICES LTD,424.44,ICT,"Equipment, Tools & Materials",28-Feb-23,2223/12,SME,Y,50%
10055379,GIPPING OCCUPATIONAL HEALTH LTD,408,Health & Safety,Contracted Services,12-Mar-23,2223/12,SME,Y,50%
10055807,GIPPING OCCUPATIONAL HEALTH LTD,675,Health & Safety,Contracted Services,30-Mar-23,2223/12,SME,Y,50%
10055011,AIRMAX REMOTE LTD,459.61,Building Services,Plant & Vehicle - Other costs,28-Feb-23,2223/12,SME,Y,50%
10054917,GRAVITAS RECRUITMENT GROUP LTD,"2,000.00",ICT,Agency Staff,27-Feb-23,2223/12,LGE,Y,50%
10055156,GRAVITAS RECRUITMENT GROUP LTD,"2,000.00",ICT,Agency Staff,07-Mar-23,2223/12,LGE,Y,50%
10055323,GRAVITAS RECRUITMENT GROUP LTD,"2,000.00",ICT,Agency Staff,13-Mar-23,2223/12,LGE,Y,50%
10055582,GRAVITAS RECRUITMENT GROUP LTD,"2,000.00",ICT,Agency Staff,22-Mar-23,2223/12,LGE,Y,50%
10055714,GRAVITAS RECRUITMENT GROUP LTD,"2,000.00",ICT,Agency Staff,28-Mar-23,2223/12,LGE,Y,50%
10055342,WS TRAINING LTD,"6,580.00",Building Services,Training,13-Mar-23,2223/12,SME,Y,50%
10055685,RESIDENTIALLY CHARTERED SURVEYORS,400,Tenancy Services,Prof & Consultancy Fees,16-Mar-23,2223/12,SME,N,
10055452,IPSWICH TOWN FOOTBALL CLUB CO. LTD,397.65,Housing Standards,Room Hire,14-Mar-23,2223/12,LGE,N,
10055453,IPSWICH TOWN FOOTBALL CLUB CO. LTD,397.65,Housing Standards,Room Hire,14-Mar-23,2223/12,LGE,N,
10055454,IPSWICH TOWN FOOTBALL CLUB CO. LTD,397.65,Housing Standards,Room Hire,14-Mar-23,2223/12,LGE,N,
10055097,TOP FLOORS (EAST ANGLIA) LTD,447.64,Other Temp Accommodation,"Equipment, Tools & Materials",23-Feb-23,2223/12,SME,N,
10055343,TOP FLOORS (EAST ANGLIA) LTD,"1,803.41",Other Temp Accommodation,"Equipment, Tools & Materials",28-Feb-23,2223/12,SME,N,
10055815,LICENCE CHECK LTD,"3,850.00",Health & Safety,Contracted Services,30-Mar-23,2223/12,SME,Y,50%
10055502,SUDBURYS,440,Guaranteed Rent Scheme,Rent Payable,20-Mar-23,2223/12,SME,N,
10054966,WILLIAM H BROWN ESTATE AGENTS - SUDBURY,725,Guaranteed Rent Scheme,Rent Payable,01-Mar-23,2223/12,SME,N,
10054999,WILLIAM H BROWN ESTATE AGENTS - SUDBURY,925,Guaranteed Rent Scheme,Rent Payable,01-Mar-23,2223/12,SME,N,
10055816,MTM PLANT AND SALES LTD,575.16,Open Spaces,"Equipment, Tools & Materials",31-Mar-23,2223/12,SME,N,
10055817,MTM PLANT AND SALES LTD,495.16,Open Spaces,"Equipment, Tools & Materials",31-Mar-23,2223/12,SME,Y,100%
10054763,ABBEYCROFT LEISURE,859.88,Holiday Activity Funding,"Equipment, Tools & Materials",15-Feb-23,2223/12,LGE,N,
10055455,ABBEYCROFT LEISURE,429.94,Holiday Activity Funding,"Equipment, Tools & Materials",13-Mar-23,2223/12,LGE,N,
10055456,ABBEYCROFT LEISURE,"1,020.00",Holiday Activity Funding,"Equipment, Tools & Materials",13-Mar-23,2223/12,LGE,N,
10055457,ABBEYCROFT LEISURE,"2,040.00",Holiday Activity Funding,"Equipment, Tools & Materials",01-Mar-23,2223/12,LGE,N,
10055577,ABBEYCROFT LEISURE,"3,772.83",Holiday Activity Funding,"Equipment, Tools & Materials",21-Mar-23,2223/12,LGE,N,
10055578,ABBEYCROFT LEISURE,"1,800.00",Holiday Activity Funding,"Equipment, Tools & Materials",21-Mar-23,2223/12,LGE,N,
10054726,BELLWAY HOMES LIMITED (ESSEX DIVISION),"92,707.97",Bourne Hill Wherstead S106 acq,Prof & Consultancy Fees,17-Feb-23,2223/12,LGE,N,
10055331,A C LEIGH (NORWICH) LTD,"1,007.13",Building Services,"Equipment, Tools & Materials",08-Mar-23,2223/12,SME,N,
10055679,A C LEIGH (NORWICH) LTD,283.92,Building Services,"Equipment, Tools & Materials",21-Mar-23,2223/12,SME,N,
10055374,SUFFOLK POWER EQUIPMENT,"1,242.00",Open Spaces,"Equipment, Tools & Materials",14-Mar-23,2223/12,ST,N,
20028339,BOXFORD PLAYING FIELDS MANAGEMENT COMMIT,444.04,Bring Sites,Contributions & Donations,29-Mar-23,2223/12,SME,N,
10055298,3 POINT PROPERTY MANAGEMENT LTD,580,Guaranteed Rent Scheme,Rent Payable,13-Mar-23,2223/12,SME,N,
10054979,FLAGSHIP HOUSING GROUP LTD-RENT ACCOUNT,"1,584.07",Household Support Grant,Misc Supplies & Services Costs,01-Mar-23,2223/12,LGE,N,
10054851,EDMUNDSON ELECTRICAL LTD (IPSWICH),608.42,Building Services,Repairs,16-Feb-23,2223/12,LGE,N,
10054852,EDMUNDSON ELECTRICAL LTD (IPSWICH),700.47,Building Services,Repairs,16-Feb-23,2223/12,LGE,Y,50%
10055104,EDMUNDSON ELECTRICAL LTD (IPSWICH),474.18,Building Services,Repairs,03-Mar-23,2223/12,LGE,Y,50%
10055444,EDMUNDSON ELECTRICAL LTD (IPSWICH),404.94,Building Services,Repairs,15-Mar-23,2223/12,LGE,Y,50%
10055494,EDMUNDSON ELECTRICAL LTD (IPSWICH),797.65,Building Services,Repairs,17-Mar-23,2223/12,LGE,Y,50%
10055601,EDMUNDSON ELECTRICAL LTD (IPSWICH),291.74,Building Services,Repairs,22-Mar-23,2223/12,LGE,Y,50%
10055673,EDMUNDSON ELECTRICAL LTD (IPSWICH),251.98,Building Services,Repairs,24-Mar-23,2223/12,LGE,Y,50%
10055847,EDMUNDSON ELECTRICAL LTD (IPSWICH),789.4,Building Services,Repairs,22-Mar-23,2223/12,LGE,Y,50%
10055848,EDMUNDSON ELECTRICAL LTD (IPSWICH),338.93,Building Services,Repairs,30-Mar-23,2223/12,LGE,Y,50%
10054796,WEST SUFFOLK COUNCIL,333.33,Community Safety-CCTV,Contributions to other Bodies,24-Nov-22,2223/12,LGE,N,
10054989,WEST SUFFOLK COUNCIL,500,Community Safety-CCTV,"Equipment, Tools & Materials",23-Feb-23,2223/12,LGE,N,
10055653,EAST SUFFOLK COUNCIL,"2,000.00",Independent Living Service,Prof & Consultancy Fees,22-Mar-23,2223/12,LGE,Y,50%
10055126,STAGE EVENT SECURITY LTD,"1,260.00",Open Spaces,Contracted Services,02-Mar-23,2223/12,SME,N,
10054903,HUGHES TRADE,308.7,Other Temp Accommodation,Furniture,25-Feb-23,2223/12,LGE,N,
10055083,HUGHES TRADE,308.7,Temporary Accommodation,Furniture,03-Mar-23,2223/12,LGE,N,
10055380,HUGHES TRADE,808.16,Other Temp Accommodation,Furniture,14-Mar-23,2223/12,LGE,N,
10054777,APTL ENTERPRISES LTD,"3,710.00",PV Panels,Contracted Services,22-Dec-22,2223/12,SME,N,
10054778,APTL ENTERPRISES LTD,"5,506.67",PV Panels,Contracted Services,31-Jan-23,2223/12,SME,N,
10054847,APTL ENTERPRISES LTD,"11,134.00",PV Panels,Contracted Services,21-Feb-23,2223/12,SME,N,
10054950,APTL ENTERPRISES LTD,"5,506.67",PV Panels,Contracted Services,28-Feb-23,2223/12,SME,N,
10054985,WASHCO LTD,347.49,Temporary Accommodation,Misc Supplies & Services Costs,17-Feb-23,2223/12,SME,N,
10055584,PEOPLE FOCUSED TRAINING & SOLUTIONS LTD,"2,280.00",Community Safety-General,Contributions & Donations,18-Mar-23,2223/12,ST,N,
10054757,ANGLIA COMMERCIAL FLOORING LTD,589.23,Building Services,Repairs,20-Feb-23,2223/12,SME,N,
10055053,ANGLIA COMMERCIAL FLOORING LTD,557.17,Voids Maintenance,Repairs,02-Mar-23,2223/12,SME,N,
10055062,ANGLIA COMMERCIAL FLOORING LTD,641.69,Building Services,Repairs,02-Mar-23,2223/12,SME,N,
10055086,ANGLIA COMMERCIAL FLOORING LTD,325.67,Voids Maintenance,Repairs,02-Mar-23,2223/12,SME,N,
10055253,ANGLIA COMMERCIAL FLOORING LTD,667.03,Voids Maintenance,Repairs,02-Mar-23,2223/12,SME,N,
10055254,ANGLIA COMMERCIAL FLOORING LTD,533.62,Voids Maintenance,Repairs,20-Feb-23,2223/12,SME,N,
10055322,ANGLIA COMMERCIAL FLOORING LTD,392.37,Voids Maintenance,Repairs,20-Feb-23,2223/12,SME,N,
10055727,ANGLIA COMMERCIAL FLOORING LTD,"1,242.15",Assets & Development,Repairs,14-Mar-23,2223/12,SME,N,
10055730,ANGLIA COMMERCIAL FLOORING LTD,625.31,Building Services,Repairs,28-Mar-23,2223/12,SME,N,
10055731,ANGLIA COMMERCIAL FLOORING LTD,"1,191.77",Building Services,Repairs,28-Mar-23,2223/12,SME,N,
10055732,ANGLIA COMMERCIAL FLOORING LTD,846.17,Building Services,Repairs,28-Mar-23,2223/12,SME,N,
10055734,ANGLIA COMMERCIAL FLOORING LTD,609.83,Building Services,Repairs,28-Mar-23,2223/12,SME,N,
10055735,ANGLIA COMMERCIAL FLOORING LTD,986.07,Building Services,Repairs,28-Mar-23,2223/12,SME,N,
10055736,ANGLIA COMMERCIAL FLOORING LTD,625.31,Building Services,Repairs,13-Mar-23,2223/12,SME,N,
10055748,ANGLIA COMMERCIAL FLOORING LTD,"1,088.64",Voids Maintenance,Repairs,29-Mar-23,2223/12,SME,N,
10055797,ANGLIA COMMERCIAL FLOORING LTD,607.27,Building Services,Repairs,13-Mar-23,2223/12,SME,N,
20028308,ANGLIAN WATER BUS (NAT) LTD T/A WAVE,116.4,C Parks General,Water Rates - Metered,12-Mar-23,2223/12,LGE,N,
20028308,ANGLIAN WATER BUS (NAT) LTD T/A WAVE,214.01,Chilton Depot,Water Rates - Metered,12-Mar-23,2223/12,LGE,Y,50%
20028308,ANGLIAN WATER BUS (NAT) LTD T/A WAVE,3.71,Friars Meadow Sudb,Water Rates - Metered,12-Mar-23,2223/12,LGE,N,
20028308,ANGLIAN WATER BUS (NAT) LTD T/A WAVE,41.66,General Rechargeable Works,Misc Supplies & Services Costs,12-Mar-23,2223/12,LGE,N,
20028308,ANGLIAN WATER BUS (NAT) LTD T/A WAVE,54.9,HQ Energy,Water Rates - Metered,12-Mar-23,2223/12,LGE,N,
20028308,ANGLIAN WATER BUS (NAT) LTD T/A WAVE,373.95,Public Conveniences,Water Rates - Metered,12-Mar-23,2223/12,LGE,N,
20028308,ANGLIAN WATER BUS (NAT) LTD T/A WAVE,"1,383.10",Sheltered Accommodation,Water Rates - Metered,12-Mar-23,2223/12,LGE,N,
20028308,ANGLIAN WATER BUS (NAT) LTD T/A WAVE,638.72,Temporary Accommodation,Water Rates - Metered,12-Mar-23,2223/12,LGE,N,
20028308,ANGLIAN WATER BUS (NAT) LTD T/A WAVE,83.99,Tenancy Services,Water Rates - Metered,12-Mar-23,2223/12,LGE,N,
20028381,ST EDMUNDSBURY & IPSWICH DIOCESAN MAT,318.45,Bring Sites,Contributions & Donations,29-Mar-23,2223/12,LGE,N,
10055100,STUDLEY CAPITAL LIMITED,"2,375.00",Hamilton Road Regeneration,Prof & Consultancy Fees,03-Mar-23,2223/12,ST,N,
10054824,GREENACRE RECRUITMENT LTD,960,Building Services,Agency Staff,22-Feb-23,2223/12,SME,Y,50%
10055015,GREENACRE RECRUITMENT LTD,"3,499.70",Management Team,Agency Staff,01-Mar-23,2223/12,SME,Y,50%
10055016,GREENACRE RECRUITMENT LTD,"2,400.00",Building Services,Agency Staff,01-Mar-23,2223/12,SME,Y,50%
10055218,GREENACRE RECRUITMENT LTD,"2,400.00",Building Services,Agency Staff,08-Mar-23,2223/12,SME,Y,50%
10055219,GREENACRE RECRUITMENT LTD,"3,475.40",Management Team,Agency Staff,08-Mar-23,2223/12,SME,Y,50%
10055423,GREENACRE RECRUITMENT LTD,"3,495.20",Management Team,Agency Staff,15-Mar-23,2223/12,SME,Y,50%
10055424,GREENACRE RECRUITMENT LTD,"2,400.00",Building Services,Agency Staff,15-Mar-23,2223/12,SME,Y,50%
10055586,GREENACRE RECRUITMENT LTD,"3,133.35",Management Team,Agency Staff,22-Mar-23,2223/12,SME,Y,50%
10055587,GREENACRE RECRUITMENT LTD,"2,400.00",Building Services,Agency Staff,22-Mar-23,2223/12,SME,Y,50%
10055759,GREENACRE RECRUITMENT LTD,"2,400.00",Building Services,Agency Staff,29-Mar-23,2223/12,SME,Y,50%
10054943,GLEMSFORD VILLAGE HALL,450,Grants & Contrbns,Contributions & Donations,27-Feb-23,2223/12,SME,N,
20028328,HOLBROOK VILLAGE HALL,314.5,Bring Sites,Contributions & Donations,29-Mar-23,2223/12,SME,N,
10054978,TIAA LTD,"4,506.38",Internal Audit,Contracted Services,01-Mar-23,2223/12,SME,Y,50%
10055662,BYCHOICE LTD,950,Guaranteed Rent Scheme,Rent Payable,27-Mar-23,2223/12,SME,N,
10054937,DEMOCRACY COUNTS LTD,"3,350.00",Electoral Registration,Returning Officer Fees,22-Feb-23,2223/12,SME,N,
10055136,DEMOCRACY COUNTS LTD,"10,000.00",Electoral Registration,Returning Officer Fees,31-Jan-23,2223/12,SME,N,
10055375,MAN WITH A VAN SUDBURY,296.25,Homeless Prevention Fund,Misc Supplies & Services Costs,14-Mar-23,2223/12,SME,N,
10055744,PINSENT MASONS LLP,"1,272.00",Organisational Devt,Corporate Training,27-Feb-23,2223/12,LGE,Y,50%
10055410,GATEHOUSE CARING IN EAST ANGLIA,291,RoughSleepersInterventionYr3,Misc Supplies & Services Costs,15-Mar-23,2223/12,SME,N,
10055660,REEFER PROPERTIES LTD,695,Guaranteed Rent Scheme,Rent Payable,27-Mar-23,2223/12,SME,N,
10054456,WADDINGTON BROWN LTD,942,Organisational Devt,Agency Staff,06-Feb-23,2223/12,SME,Y,50%
10054457,WADDINGTON BROWN LTD,883.13,Organisational Devt,Agency Staff,06-Feb-23,2223/12,SME,Y,50%
10054976,WADDINGTON BROWN LTD,"1,168.08",Organisational Devt,Agency Staff,27-Feb-23,2223/12,SME,Y,50%
10055211,WADDINGTON BROWN LTD,"1,350.20",Organisational Devt,Agency Staff,06-Mar-23,2223/12,SME,Y,50%
10055413,WADDINGTON BROWN LTD,"1,325.08",Organisational Devt,Agency Staff,13-Mar-23,2223/12,SME,Y,50%
10055591,WADDINGTON BROWN LTD,"1,017.36",Organisational Devt,Agency Staff,20-Mar-23,2223/12,SME,Y,50%
10055739,WADDINGTON BROWN LTD,992.24,Organisational Devt,Agency Staff,27-Mar-23,2223/12,SME,Y,50%
10055288,HOMETRACK DATA SYSTEMS LTD,"2,250.00",Strategic Housing,Prof & Consultancy Fees,10-Mar-23,2223/12,SME,N,
10055440,TOTALMOBILE LTD,"2,138.40",Health & Safety,"Equipment, Tools & Materials",16-Mar-23,2223/12,SME,Y,50%
10055663,PRIVATE LANDLORD,515,Guaranteed Rent Scheme,Rent Payable,27-Mar-23,2223/12,ST,N,
10055001,PRIVATE LANDLORD,675,Guaranteed Rent Scheme,Rent Payable,01-Mar-23,2223/12,ST,N,
10055510,PRIVATE LANDLORD,700,Guaranteed Rent Scheme,Rent Payable,20-Mar-23,2223/12,ST,N,
10054540,BRANCHLINES,"1,000.00",Grants & Contrbns,Contributions & Donations,17-Aug-22,2223/12,SME,N,
10054242,NOVUS PROPERTY SOLUTIONS LTD,"5,670.65",Planned Maint - Ext Painting,External Painting,31-Jan-23,2223/12,LGE,N,
10055694,PRIVATE LANDLORD,"1,198.00",Guaranteed Rent Scheme,Rent Payable,27-Mar-23,2223/12,ST,N,
10054916,SOUTH NORFOLK FIRE,275,Organisational Devt,Health & Safety Training,24-Feb-23,2223/12,SME,Y,50%
10054522,BUCHER MUNICIPAL LTD,818.48,Street & Major Road Cleansing,Plant & Vehicle - Other costs,07-Feb-23,2223/12,LGE,N,
10055256,BUCHER MUNICIPAL LTD,818.48,Street & Major Road Cleansing,Plant & Vehicle - Other costs,02-Mar-23,2223/12,LGE,N,
10055307,PAUL WRIGHT & CO,500,Guaranteed Rent Scheme,Rent Payable,13-Mar-23,2223/12,SME,N,
10055530,PRIVATE LANDLORD,550,Guaranteed Rent Scheme,Rent Payable,20-Mar-23,2223/12,ST,N,
10055665,PRIVATE LANDLORD,700,Guaranteed Rent Scheme,Rent Payable,27-Mar-23,2223/12,ST,N,
10054981,PRIVATE LANDLORD,"1,320.00",Guaranteed Rent Scheme,Rent Payable,01-Mar-23,2223/12,ST,N,
10055087,AMPLIS CONSTRUCTION LTD,"7,105.36","Fences, Gates and Walls",Major Contracts,14-Feb-23,2223/12,SME,N,
10055508,SUFFOLK DOORS & WINDOWS LTD,"1,550.00",Window & Door Rplcmts,Repairs,20-Mar-23,2223/12,SME,N,
10055512,SUFFOLK DOORS & WINDOWS LTD,"1,580.00",Building Services,Repairs,20-Mar-23,2223/12,SME,N,
10054996,PRIVATE LANDLORD,786.5,Guaranteed Rent Scheme,Rent Payable,01-Mar-23,2223/12,ST,N,
10055220,DAVID KNIGHTS T/A DAVID BROWN,300,Assets & Development,Prof & Consultancy Fees,08-Mar-23,2223/12,ST,N,
10055294,PRIVATE LANDLORD,650,Guaranteed Rent Scheme,Rent Payable,13-Mar-23,2223/12,ST,N,
10054638,COUNTRYSTYLE RECYCLING LTD,600,Street & Major Road Cleansing,"Equipment, Tools & Materials",31-Jan-23,2223/12,SME,N,
10054638,COUNTRYSTYLE RECYCLING LTD,800,Street & Major Road Cleansing,"Equipment, Tools & Materials",31-Jan-23,2223/12,SME,N,
10055070,COUNTRYSTYLE RECYCLING LTD,"3,619.17",Bring Sites,Contracted Services,28-Feb-23,2223/12,SME,N,
10055241,COUNTRYSTYLE RECYCLING LTD,400,Street & Major Road Cleansing,"Equipment, Tools & Materials",28-Feb-23,2223/12,SME,N,
10055581,ANDERSON DESIGN & BUILD LIMITED,"176,367.54",Waldingfield Rd S106 Andersons,Prof & Consultancy Fees,28-Feb-23,2223/12,SME,N,
10054973,PRIVATE LANDLORD,800,Guaranteed Rent Scheme,Rent Payable,01-Mar-23,2223/12,ST,N,
10055350,PRIVATE LANDLORD,750,Guaranteed Rent Scheme,Rent Payable,14-Mar-23,2223/12,ST,N,
10055335,TT MAN WITH A VAN,550,Homeless Prevention Fund,Removal Expenses,08-Mar-23,2223/12,ST,N,
10055000,PRIVATE LANDLORD,800,Guaranteed Rent Scheme,Rent Payable,01-Mar-23,2223/12,ST,N,
10054628,ARAN INSULATION LTD,"18,337.68",Insulation Imps,Improvements,14-Feb-23,2223/12,SME,N,
10054629,ARAN INSULATION LTD,"1,383.45",Insulation Imps,Improvements,14-Feb-23,2223/12,SME,N,
10054771,ARAN INSULATION LTD,"9,932.11",Insulation Imps,Improvements,21-Feb-23,2223/12,SME,N,
10054940,ARAN INSULATION LTD,"7,374.01",Insulation Imps,Improvements,27-Feb-23,2223/12,SME,N,
10054940,ARAN INSULATION LTD,"19,031.79",Insulation Imps,Improvements,27-Feb-23,2223/12,SME,N,
10054977,ARAN INSULATION LTD,"1,030.36",Insulation Imps,Repairs,01-Mar-23,2223/12,SME,N,
10055234,ARAN INSULATION LTD,914.62,Voids Maintenance,Repairs,09-Mar-23,2223/12,SME,N,
10055497,PRIVATE LANDLORD,580,Guaranteed Rent Scheme,Rent Payable,20-Mar-23,2223/12,ST,N,
10055110,STORM ENVIRONMENTAL LTD,"6,346.00",Bins,Bins,27-Feb-23,2223/12,SME,N,
10055393,IHASCO LTD,"3,400.00",Organisational Devt,Corporate Training,11-Jan-23,2223/12,SME,Y,50%
10055664,PRIVATE LANDLORD,575,Guaranteed Rent Scheme,Rent Payable,27-Mar-23,2223/12,ST,N,
10055810,URBA,548,Devt Management -Applications,Viability,30-Mar-23,2223/12,SME,N,
10055028,IPSERV LTD,204.75,Central Printing,Commercial Printing,01-Mar-23,2223/12,SME,N,
10055028,IPSERV LTD,788.34,Communications,Commercial Printing,01-Mar-23,2223/12,SME,N,
10055515,DAVID BURR LETTINGS,750,Guaranteed Rent Scheme,Rent Payable,20-Mar-23,2223/12,SME,N,
10054686,FOURWAYS VEHICLE SOLUTIONS LTD,726.6,Open Spaces,"Equipment, Tools & Materials",02-Feb-23,2223/12,SME,N,
10055190,FOURWAYS VEHICLE SOLUTIONS LTD,726.6,Open Spaces,Plant & Vehicle - Other costs,02-Mar-23,2223/12,SME,N,
10054986,START AFRESH CLEANING LTD,515.67,Street & Major Road Cleansing,General Cleaning,28-Feb-23,2223/12,SME,N,
10055243,REGENCY GUARDING & EVENTS LTD,610,Open Spaces,Contracted Services,10-Oct-22,2223/12,SME,N,
10055296,PRIVATE LANDLORD,715,Guaranteed Rent Scheme,Rent Payable,13-Mar-23,2223/12,ST,N,
10055513,PRIVATE LANDLORD,500,Guaranteed Rent Scheme,Rent Payable,20-Mar-23,2223/12,ST,N,
10053633,METRIC GROUP LTD,"5,500.00",C Parks General,Contracted Services,05-Jan-23,2223/12,SME,N,
10055505,METRIC GROUP LTD,"2,500.00",C Parks General,Contracted Services,14-Mar-23,2223/12,SME,N,
10055751,KEYS REMOVALS LTD,469.43,Homeless Prevention Fund,Removal Expenses,23-Mar-23,2223/12,SME,N,
10055638,ANGLIA SPORTS MANAGEMENT LTD,"2,741.67",Holiday Activity Funding,"Equipment, Tools & Materials",22-Mar-23,2223/12,SME,N,
10055783,PREMIER EDUCATION,"1,013.33",Holiday Activity Funding,"Equipment, Tools & Materials",27-Mar-23,2223/12,SME,N,
10055295,PRIVATE LANDLORD,675,Guaranteed Rent Scheme,Rent Payable,13-Mar-23,2223/12,ST,N,
10055002,PRIVATE LANDLORD,500,Guaranteed Rent Scheme,Rent Payable,01-Mar-23,2223/12,ST,N,
10055308,PRIVATE LANDLORD,650,Guaranteed Rent Scheme,Rent Payable,13-Mar-23,2223/12,ST,N,
10055531,PRIVATE LANDLORD,650,Guaranteed Rent Scheme,Rent Payable,20-Mar-23,2223/12,ST,N,
10054964,BELL CONTAINER TRADING LTD,628,Public Realm TransitionProject,"Equipment, Tools & Materials",24-Feb-23,2223/12,SME,N,
10055741,BELL CONTAINER TRADING LTD,695.27,Public Realm TransitionProject,"Equipment, Tools & Materials",24-Mar-23,2223/12,SME,N,
10055222,THE BUMBLEBEE CHILDRENS CHARITY,"2,000.00",Grants & Contrbns,Contributions & Donations,08-Mar-23,2223/12,SME,N,
10055225,THE BUMBLEBEE CHILDRENS CHARITY,"1,500.00",Grants & Contrbns,Contributions & Donations,08-Mar-23,2223/12,SME,N,
10055489,COPDOCK AND WASHBROOK PRE SCHOOL,"2,000.00",Comm Devt Grants,Grants,17-Mar-23,2223/12,SME,N,
10055244,MINI WASTE LTD,"1,003.00",Open Spaces,Waste Disposal,28-Feb-23,2223/12,SME,N,
10055327,MAXIM SPORTS COACHING,522.5,Holiday Activity Funding,"Equipment, Tools & Materials",13-Mar-23,2223/12,SME,N,
10055482,MAXIM SPORTS COACHING,"1,805.00",Holiday Activity Funding,"Equipment, Tools & Materials",17-Mar-23,2223/12,SME,N,
20028315,PRIVATE LANDLORD,725,Guaranteed Rent Scheme,Rent Payable,22-Mar-23,2223/12,ST,N,
10055511,HAMILTON SMITH LETTINGS,670,Guaranteed Rent Scheme,Rent Payable,20-Mar-23,2223/12,SME,N,
10055045,BRITISH GAS TRADING LTD,24.8,Voids Maintenance,Gas,13-Feb-23,2223/12,LGE,N,
10055045,BRITISH GAS TRADING LTD,"1,233.29",Voids Maintenance,Electricity,13-Feb-23,2223/12,LGE,Y,63%
10054997,JB PROPERTY SOLUTIONS (SUFFOLK) LTD T/A,455,Guaranteed Rent Scheme,Rent Payable,01-Mar-23,2223/12,SME,N,
10055292,KBM HOUSE SHARE & PROPERTY MANAGEMENT LT,550,Guaranteed Rent Scheme,Rent Payable,13-Mar-23,2223/12,SME,N,
10055376,PAY 360 LIMITED,649.21,Bank Chgs,Bank Charges,06-Mar-23,2223/12,LGE,Y,50%
10055433,PAY 360 LIMITED,"7,385.35",Bank Chgs,Bank Charges,15-Mar-23,2223/12,LGE,N,
10055293,PRIVATE LANDLORD,550,Guaranteed Rent Scheme,Rent Payable,13-Mar-23,2223/12,ST,N,
10055204,HADLEIGH GRAND FEOFFMENT CHARITY,"3,078.00",Renovation/Home Repair Grants,Grants,08-Mar-23,2223/12,SME,N,
10054055,ACCENTURE (UK) LTD,"7,080.00",ICT,Software Licences (Corporate) ,09-Jan-23,2223/12,LGE,Y,50%
10055265,A W & D HAMMOND LTD,"24,685.00",Vehicle and Plant Renewals,Plant & Vehicle - Purchase,01-Feb-23,2223/12,LGE,N,
10055266,A W & D HAMMOND LTD,"24,685.00",Vehicle and Plant Renewals,Plant & Vehicle - Purchase,01-Feb-23,2223/12,LGE,N,
10055711,ZOO AND WILDLIFE SOLUTIONS LTD,300,Organisational Devt,Training,20-Jan-23,2223/12,SME,Y,50%
10055297,PRIVATE LANDLORD,750,Guaranteed Rent Scheme,Rent Payable,13-Mar-23,2223/12,ST,N,
10055496,PRIVATE LANDLORD,575,Guaranteed Rent Scheme,Rent Payable,20-Mar-23,2223/12,ST,N,
10055115,JPK TRADE SUPPLIES LTD,"1,400.00",Street & Major Road Cleansing,"Equipment, Tools & Materials",01-Mar-23,2223/12,SME,N,
10055029,NEWSQUEST MEDIA GROUP,"1,318.40",Council Tax Collection,Advertising&mkting (non-staff),28-Feb-23,2223/12,LGE,N,
10055030,NEWSQUEST MEDIA GROUP,824,Devt Management -Applications,Advertising&mkting (non-staff),28-Feb-23,2223/12,LGE,N,
10055221,NEWSQUEST MEDIA GROUP,412,Devt Management -Applications,Advertising&mkting (non-staff),08-Mar-23,2223/12,LGE,N,
10055341,NEWSQUEST MEDIA GROUP,421.56,Street & Major Road Cleansing,Plant & Vehicle - Other costs,13-Mar-23,2223/12,LGE,N,
10055421,NEWSQUEST MEDIA GROUP,912.6,Devt Management -Applications,Advertising&mkting (non-staff),15-Mar-23,2223/12,LGE,N,
10055580,NEWSQUEST MEDIA GROUP,"1,036.20",Devt Policy & Local Plans,Advertising&mkting (non-staff),21-Mar-23,2223/12,LGE,Y,50%
10055592,NEWSQUEST MEDIA GROUP,912.6,Devt Management -Applications,Advertising&mkting (non-staff),22-Mar-23,2223/12,LGE,N,
10055780,NEWSQUEST MEDIA GROUP,541.8,Devt Management -Applications,Advertising&mkting (non-staff),29-Mar-23,2223/12,LGE,N,
10054712,TILLER (THE PADDOCKS) LTD,"394,400.00","The Paddocks, Lavenham",Purchase of Land & Buildings,14-Feb-23,2223/12,SME,N,
10055492,INSIGHT TECHNOLOGY (SUFFOLK) LTD,"2,344.80",Sheltered Accommodation,Fire Prevention,17-Mar-23,2223/12,SME,N,
10055567,BELL DECORATING GROUP LTD,"4,960.63",Planned Maint - Ext Painting,Major Contracts,21-Mar-23,2223/12,LGE,N,
10055843,BELL DECORATING GROUP LTD,"12,991.31",Planned Maint - Ext Painting,Major Contracts,30-Mar-23,2223/12,LGE,N,
10055499,IMTECH INVIRON LIMITED,"60,000.00",Pld Maint/Enhncmts-Corp Bldgs,Improvements,20-Mar-23,2223/12,LGE,Y,50%
10055561,J COOK CARPENTRY LTD,650,Sheltered Accommodation,Fire Prevention,20-Mar-23,2223/12,SME,N,
10055013,MARKS CONSULTING PARTNERS LIMTED,"1,950.00",Building Servs Tech Staff,Agency Staff,01-Mar-23,2223/12,SME,Y,50%
10055208,MARKS CONSULTING PARTNERS LIMTED,"1,950.00",Building Servs Tech Staff,Agency Staff,08-Mar-23,2223/12,SME,Y,50%
10055412,MARKS CONSULTING PARTNERS LIMTED,"1,950.00",Building Servs Tech Staff,Agency Staff,15-Mar-23,2223/12,SME,Y,50%
10055865,MARKS CONSULTING PARTNERS LIMTED,780,Building Servs Tech Staff,Agency Staff,31-Mar-23,2223/12,SME,Y,50%
10055043,THE GARDEN MUSEUM,"3,611.75",Grants & Contrbns,Grants,02-Mar-23,2223/12,SME,N,
10055701,THE GARDEN MUSEUM,"10,829.66",Comm Devt Grants,Grants,27-Mar-23,2223/12,SME,N,
10055206,GCS COMPLIANCE LTD,"2,064.40",Building Services,Prof & Consultancy Fees,28-Feb-23,2223/12,SME,N,
10054967,SOCITM ADVISORY LTD,"21,635.00",ICT - Finance System,Contracted Services,28-Feb-23,2223/12,SME,Y,50%
10054935,UNIQUE OFFICE SOLUTIONS LTD,"144,631.20",Pld Maint/Enhncmts-Corp Bldgs,Furniture,27-Feb-23,2223/12,SME,Y,50%
10054914,PRIVATE LANDLORD,575,Guaranteed Rent Scheme,Rent Payable,28-Feb-23,2223/12,ST,N,
10055661,PRIVATE LANDLORD,575,Guaranteed Rent Scheme,Rent Payable,27-Mar-23,2223/12,ST,N,
10055012,PRECISION RESOURCE GROUP LTD T/A PANORAM,"2,812.50",HRA Strategic Property,Agency Staff,01-Mar-23,2223/12,LGE,Y,50%
10055217,PRECISION RESOURCE GROUP LTD T/A PANORAM,"2,812.50",HRA Strategic Property,Agency Staff,08-Mar-23,2223/12,LGE,Y,50%
10055606,PRECISION RESOURCE GROUP LTD T/A PANORAM,"2,812.50",HRA Strategic Property,Agency Staff,22-Mar-23,2223/12,LGE,Y,50%
10055765,PRECISION RESOURCE GROUP LTD T/A PANORAM,"2,812.50",HRA Strategic Property,Agency Staff,29-Mar-23,2223/12,LGE,Y,50%
10055841,PRECISION RESOURCE GROUP LTD T/A PANORAM,"2,400.00",Building Servs Tech Staff,Agency Staff,22-Mar-23,2223/12,LGE,Y,50%
10054998,CUTLERS WOOD LTD,750,Guaranteed Rent Scheme,Rent Payable,01-Mar-23,2223/12,SME,N,
10055255,CUTLERS WOOD LTD,"1,965.50",Homeless Prevention Fund,Misc Supplies & Services Costs,14-Feb-23,2223/12,SME,N,
10055514,PRIVATE LANDLORD,575,Guaranteed Rent Scheme,Rent Payable,20-Mar-23,2223/12,ST,N,
10055245,R G MAINTENANCE SERVICES LTD,850,Neighbourhood Services,Neighbourhood Improvement Proj,08-Mar-23,2223/12,SME,N,
10055004,HOME TO RENT LTD,975,Guaranteed Rent Scheme,Rent Payable,01-Mar-23,2223/12,SME,N,
10055003,PRIVATE LANDLORD,"1,000.00",Guaranteed Rent Scheme,Rent Payable,01-Mar-23,2223/12,ST,N,
10055035,TODD STORAGE,336,Homeless Prevention Fund,Removal Expenses,01-Feb-23,2223/12,SME,N,
10055137,TODD STORAGE,372,Homeless Prevention Fund,Removal Expenses,01-Mar-23,2223/12,SME,N,
10055214,APROPOS TRAINING LIMITED,"1,360.00",Organisational Devt,Health & Safety Training,08-Mar-23,2223/12,SME,Y,50%
10055215,APROPOS TRAINING LIMITED,340,Organisational Devt,Training,08-Mar-23,2223/12,SME,N,
10055747,B A TURNER SITE INVESTIGATION LTD,300,Roads and Paths,Prof & Consultancy Fees,29-Mar-23,2223/12,SME,N,
10055063,HIREBASE (HUWS GRAY LTD),282,Assets & Development,Repairs,28-Feb-23,2223/12,LGE,N,
20028314,SEFE ENERGY LIMITED,428.65,Belle Vue House,Gas,17-Mar-23,2223/12,LGE,N,
20028314,SEFE ENERGY LIMITED,64.3,HQ Energy,Gas,17-Mar-23,2223/12,LGE,N,
20028314,SEFE ENERGY LIMITED,"5,082.18",Sheltered Accommodation,Gas,17-Mar-23,2223/12,LGE,N,
20028314,SEFE ENERGY LIMITED,380.82,Temporary Accommodation,Gas,17-Mar-23,2223/12,LGE,N,
10055212,ALL STAR TRAINING,"3,040.00",Organisational Devt,Health & Safety Training,27-Feb-23,2223/12,SME,Y,50%
10055566,ALL STAR TRAINING,"1,575.00",Organisational Devt,Health & Safety Training,21-Mar-23,2223/12,SME,Y,50%
10055720,ALL STAR TRAINING,895,Organisational Devt,Health & Safety Training,28-Mar-23,2223/12,SME,Y,50%
10055559,SUFFOLK BEFRIENDING SCHEME FOR PEOPLE WI,"11,620.95",CIL Funded REFCUS,Grants,14-Mar-23,2223/12,SME,N,
10054649,SIGNIX LTD,"43,916.25",Carbon Monoxide Detectors,Major Contracts,03-Feb-23,2223/12,SME,N,
10054649,SIGNIX LTD,"43,916.25",Smoke Alarms (Bbgh Standard),Major Contracts,03-Feb-23,2223/12,SME,N,
10054650,SIGNIX LTD,"56,985.30",Carbon Monoxide Detectors,Major Contracts,10-Feb-23,2223/12,SME,N,
10054650,SIGNIX LTD,"56,985.30",Smoke Alarms (Bbgh Standard),Major Contracts,10-Feb-23,2223/12,SME,N,
10054652,SIGNIX LTD,"13,101.72",Carbon Monoxide Detectors,Major Contracts,13-Feb-23,2223/12,SME,N,
10054652,SIGNIX LTD,"13,101.72",Smoke Alarms (Bbgh Standard),Major Contracts,13-Feb-23,2223/12,SME,N,
10054653,SIGNIX LTD,"4,286.03",Carbon Monoxide Detectors,Major Contracts,13-Feb-23,2223/12,SME,N,
10054653,SIGNIX LTD,"4,286.03",Smoke Alarms (Bbgh Standard),Major Contracts,13-Feb-23,2223/12,SME,N,
10055687,SIGNIX LTD,"12,469.94",Carbon Monoxide Detectors,Major Contracts,03-Mar-23,2223/12,SME,N,
10055687,SIGNIX LTD,"12,469.94",Smoke Alarms (Bbgh Standard),Major Contracts,03-Mar-23,2223/12,SME,N,
10055688,SIGNIX LTD,"2,696.26",Carbon Monoxide Detectors,Major Contracts,03-Mar-23,2223/12,SME,N,
10055688,SIGNIX LTD,"2,696.26",Smoke Alarms (Bbgh Standard),Major Contracts,03-Mar-23,2223/12,SME,N,
10055689,SIGNIX LTD,745.57,Carbon Monoxide Detectors,Major Contracts,03-Mar-23,2223/12,SME,N,
10055689,SIGNIX LTD,745.57,Smoke Alarms (Bbgh Standard),Major Contracts,03-Mar-23,2223/12,SME,N,
10054900,ELECTRIC CENTRE LTD,"1,334.10",Building Services,Repairs,14-Feb-23,2223/12,LGE,Y,50%
10054901,ELECTRIC CENTRE LTD,"2,721.19",Building Services,Repairs,14-Feb-23,2223/12,LGE,Y,50%
10055130,HADLEIGH ENVIRONMENTAL ACTION TEAM,754,Grants & Contrbns,Contributions & Donations,06-Mar-23,2223/12,SME,N,
10055260,HADLEIGH ENVIRONMENTAL ACTION TEAM,474,Grants & Contrbns,Contributions & Donations,09-Mar-23,2223/12,SME,N,
10055238,HOLLAND & HOLLAND LANDSCAPING,"1,510.00","Angel Court, Hadleigh",Repairs,09-Mar-23,2223/12,SME,N,
10055262,HADLEIGH COMMUNITY CHOIR,600,Grants & Contrbns,Contributions & Donations,09-Mar-23,2223/12,SME,N,
10055252,HADLEIGH MENS SHED,550,Grants & Contrbns,Contributions & Donations,09-Mar-23,2223/12,SME,N,
10055272,HADLEIGH MENS SHED,754,Grants & Contrbns,Contributions & Donations,10-Mar-23,2223/12,SME,N,
10055269,PRIVATE LANDLORD,999,Household Support Grant,Misc Supplies & Services Costs,10-Mar-23,2223/12,SME,N,
10055301,SHOTLEY DRAMA GROUP,800,Grants & Contrbns,Contributions & Donations,10-Mar-23,2223/12,SME,N,
10055622,CHELMER HOUSING PARTNERSHIP,"1,485.72",Household Support Grant,Misc Supplies & Services Costs,23-Mar-23,2223/12,SME,N,
10055459,ALL SAINTS LAWSHALL PRIMARY SCHOOL PTA,615,Grants & Contrbns,Contributions & Donations,17-Mar-23,2223/12,SME,N,
10055579,WILES PROPERTY,950,Household Support Grant,Misc Supplies & Services Costs,21-Mar-23,2223/12,SME,N,
10055793,MENOPAUSE IN THE WORKPLACE LTD,"1,495.00",Organisational Devt,Corporate Training,30-Mar-23,2223/12,SME,Y,50%
10055784,BARRY DRURY PROPERTIES LTD,900,Homeless Prevention Fund,Misc Supplies & Services Costs,29-Mar-23,2223/12,SME,N,
10055877,DMA HEALTH AND SAFETY LTD,-47.5,Public Sector Decarbonisation,Prof & Consultancy Fees,31-Mar-23,2223/12,SME,N,
10055893,NORFOLK COUNTY COUNCIL,"-9,469.44",Strategic Housing,Subscriptions,28-Mar-23,2223/12,LGE,N,
1106,SOLACE GROUP LTD,90,Current Assets,LLOYDS GENERAL PAYMENTS,17-Mar-23,2223/12,SME,N,
20028311,SOLACE GROUP LTD,-90,Management Team,Subscriptions,10-Mar-23,2223/12,SME,Y,50%
1103,SUFFOLK COUNTY COUNCIL,"-1,230.00",Land Chgs,Contracted Services,06-Mar-23,2223/12,LGE,N,
1099,NORTHERN HOUSING CONSORTIUM,162.78,Current Assets,LLOYDS GENERAL PAYMENTS,01-Mar-23,2223/12,SME,N,
20028312,PUBLIC SEWER SERVICES,"-15,572.85",Major Imps,Improvements,28-Feb-23,2223/12,SME,N,
10055006,KNOWLES ASSOCIATES TFM LTD,-190,Building Services,Lease Cars - Payment,27-Feb-23,2223/12,SME,Y,50%
1100,COOKS BLIND AND SHUTTERS LTD,-362,Creeting Rd Depot,Repairs,31-Dec-22,2223/12,SME,Y,50%
10055187,TODD STORAGE,-216,Homeless Prevention Fund,Removal Expenses,07-Mar-23,2223/12,SME,N,
